 Batch Number,Vendor Name,Invoice Number, Line,Line Amount,Account Description,Issue Date ,Total Amount Paid,Department,Proclass
701673,THOMPSONS SOLICITORS==========,9521*,2,"20,061.53",CLAIMANT COSTS AGREED,02/03/16,"20,061.53",Compensation Budgets,Legal Services
260216G,VCG KESTREL LIMITED===========,000002911,1,"6,720.00",PRINTING,03/03/16,"6,720.00",LFB 150th Anniversary,Facilities & Management S
290216K,DORMA UK LTD==================,0000040707,1,377.21,TACTICAL DAY TO DAY,03/03/16,377.21,Technical And Service Support,"Works - Construction, R&M"
290216K,GOVNET COMMUNICATIONS=========,0000096939,1,385.00,CONSULTANTS,03/03/16,385.00,National Operational Guidance Project,Human Resources
260216G,MOOLANDS LTD,00004115,1,"9,247.96",STRATEGIC (NON CYCLICAL),03/03/16,"9,247.96",Technical And Service Support,"Works - Construction, R&M"
260216G,MOOLANDS LTD,00004116,1,"9,765.00",STRATEGIC (NON CYCLICAL),03/03/16,"9,765.00",Technical And Service Support,"Works - Construction, R&M"
260216G,MOOLANDS LTD,00004117,1,"8,645.53",STRATEGIC (NON CYCLICAL),03/03/16,"8,645.53",Technical And Service Support,"Works - Construction, R&M"
290216K,SCREWFIX DIRECT LTD===========,0689455054,1,514.97,OPERATIONAL EQUIP-PURCHASE,03/03/16,514.97,Operational Policy,Building Constr Materials
290216K,SCREWFIX DIRECT LTD===========,0693267445,1,254.48,OPERATIONAL EQUIP-PURCHASE,03/03/16,254.48,Operational Policy,Building Constr Materials
290216K,BROWNS OF BEXLEY,10/02/2016,1,510.00,COMMUNITY RELATIONS,03/03/16,510.00,Community Safety Delivery,Catering
800076985,*JAMES HUNTER (OUTFITTERS) LTD,108543,1,251.09,CLOTHING,03/03/16,251.09,Operations Non Fire Stations,Clothing
150216C,MORRISEY ELECTRICAL & BUILDING,1100,1,"44,881.46",DEVELOPMENT  EXPENSES-CONTRACT,03/03/16,"44,881.46",Technical and Service Support,"Works - Construction, R&M"
190216G,NISBETS=======================,12370009,1,529.99,CATERING EQUIPMENT,03/03/16,529.99,Operations Fire Stations,Catering
170216F,REAM CONTRACTS LTD,13510,1,"12,895.00",STRATEGIC (NON CYCLICAL),03/03/16,"12,895.00",Technical and Service Support,Building Constr Materials
260216G,RESPIREX======================,154668,1,237.02,REPAIR & MAINTENANCE,03/03/16,806.02,Technical And Service Support,Clothing
260216G,RESPIREX======================,154668,2,569.00,REPAIR & MAINTENANCE,03/03/16,,Technical And Service Support,Clothing
290216K,PA ASSOCIATES (UK) LTD========,16009,1,852.50,CONSULTANTS,03/03/16,852.50,Technical And Service Support,Environmental Services
250216G,*NPS (SHOES) LTD,16110,1,30.05,CLOTHING,03/03/16,"1,541.80",Operations Fire Stations,Clothing
250216G,*NPS (SHOES) LTD,16110,2,30.05,CLOTHING,03/03/16,,Operations Fire Stations,Clothing
250216G,*NPS (SHOES) LTD,16110,3,30.05,CLOTHING,03/03/16,,Operations Fire Stations,Clothing
250216G,*NPS (SHOES) LTD,16110,4,30.05,CLOTHING,03/03/16,,Operations Fire Stations,Clothing
250216G,*NPS (SHOES) LTD,16110,5,30.05,CLOTHING,03/03/16,,Operations Fire Stations,Clothing
250216G,*NPS (SHOES) LTD,16110,6,30.05,CLOTHING,03/03/16,,Operations Fire Stations,Clothing
250216G,*NPS (SHOES) LTD,16110,7,30.05,CLOTHING,03/03/16,,Operations Fire Stations,Clothing
250216G,*NPS (SHOES) LTD,16110,8,35.00,CLOTHING,03/03/16,,Operations Fire Stations,Clothing
250216G,*NPS (SHOES) LTD,16110,9,29.45,CLOTHING,03/03/16,,Operations Fire Stations,Clothing
250216G,*NPS (SHOES) LTD,16110,10,29.45,CLOTHING,03/03/16,,Operations Fire Stations,Clothing
250216G,*NPS (SHOES) LTD,16110,11,29.45,CLOTHING,03/03/16,,Fire Safety Regulation,Clothing
250216G,*NPS (SHOES) LTD,16110,12,29.45,CLOTHING,03/03/16,,Command Units,Clothing
250216G,*NPS (SHOES) LTD,16110,13,29.45,CLOTHING,03/03/16,,Operations Fire Stations,Clothing
250216G,*NPS (SHOES) LTD,16110,14,29.45,CLOTHING,03/03/16,,Operations Fire Stations,Clothing
250216G,*NPS (SHOES) LTD,16110,15,29.45,CLOTHING,03/03/16,,Operations Fire Stations,Clothing
250216G,*NPS (SHOES) LTD,16110,16,28.45,CLOTHING,03/03/16,,Fire Safety Regulation,Clothing
250216G,*NPS (SHOES) LTD,16110,17,41.10,CLOTHING,03/03/16,,Fire Safety Regulation,Clothing
250216G,*NPS (SHOES) LTD,16110,18,30.05,CLOTHING,03/03/16,,Operations Fire Stations,Clothing
250216G,*NPS (SHOES) LTD,16110,19,30.05,CLOTHING,03/03/16,,Operations Fire Stations,Clothing
250216G,*NPS (SHOES) LTD,16110,20,30.05,CLOTHING,03/03/16,,Operations Fire Stations,Clothing
250216G,*NPS (SHOES) LTD,16110,21,30.05,CLOTHING,03/03/16,,Operations Fire Stations,Clothing
250216G,*NPS (SHOES) LTD,16110,22,30.05,CLOTHING,03/03/16,,Operations Fire Stations,Clothing
250216G,*NPS (SHOES) LTD,16110,23,30.05,CLOTHING,03/03/16,,Operations Fire Stations,Clothing
250216G,*NPS (SHOES) LTD,16110,24,30.05,CLOTHING,03/03/16,,Operations Fire Stations,Clothing
250216G,*NPS (SHOES) LTD,16110,25,30.05,CLOTHING,03/03/16,,Fire Safety Regulation,Clothing
250216G,*NPS (SHOES) LTD,16110,26,30.05,CLOTHING,03/03/16,,Operations Fire Stations,Clothing
250216G,*NPS (SHOES) LTD,16110,27,30.05,CLOTHING,03/03/16,,Operations Fire Stations,Clothing
250216G,*NPS (SHOES) LTD,16110,28,30.05,CLOTHING,03/03/16,,Operations Fire Stations,Clothing
250216G,*NPS (SHOES) LTD,16110,29,30.05,CLOTHING,03/03/16,,Fire Safety Regulation,Clothing
250216G,*NPS (SHOES) LTD,16110,30,30.05,CLOTHING,03/03/16,,Operations Fire Stations,Clothing
250216G,*NPS (SHOES) LTD,16110,31,30.05,CLOTHING,03/03/16,,Operations Fire Stations,Clothing
250216G,*NPS (SHOES) LTD,16110,32,29.45,CLOTHING,03/03/16,,Operations Fire Stations,Clothing
250216G,*NPS (SHOES) LTD,16110,33,29.45,CLOTHING,03/03/16,,Operations Fire Stations,Clothing
250216G,*NPS (SHOES) LTD,16110,34,29.45,CLOTHING,03/03/16,,Operations Fire Stations,Clothing
250216G,*NPS (SHOES) LTD,16110,35,29.45,CLOTHING,03/03/16,,Operations Fire Stations,Clothing
250216G,*NPS (SHOES) LTD,16110,36,29.45,CLOTHING,03/03/16,,Operations Fire Stations,Clothing
250216G,*NPS (SHOES) LTD,16110,37,29.45,CLOTHING,03/03/16,,Operations Fire Stations,Clothing
250216G,*NPS (SHOES) LTD,16110,38,29.45,CLOTHING,03/03/16,,Operations Fire Stations,Clothing
250216G,*NPS (SHOES) LTD,16110,39,29.45,CLOTHING,03/03/16,,Operations Fire Stations,Clothing
250216G,*NPS (SHOES) LTD,16110,40,29.45,CLOTHING,03/03/16,,Operations Fire Stations,Clothing
250216G,*NPS (SHOES) LTD,16110,41,29.45,CLOTHING,03/03/16,,Operations Fire Stations,Clothing
250216G,*NPS (SHOES) LTD,16110,42,29.45,CLOTHING,03/03/16,,Operations Fire Stations,Clothing
250216G,*NPS (SHOES) LTD,16110,43,29.45,CLOTHING,03/03/16,,Operations Fire Stations,Clothing
250216G,*NPS (SHOES) LTD,16110,44,29.45,CLOTHING,03/03/16,,Operations Fire Stations,Clothing
250216G,*NPS (SHOES) LTD,16110,45,41.10,CLOTHING,03/03/16,,Operations Fire Stations,Clothing
250216G,*NPS (SHOES) LTD,16110,46,41.10,CLOTHING,03/03/16,,Operations Fire Stations,Clothing
250216G,*NPS (SHOES) LTD,16110,47,41.10,CLOTHING,03/03/16,,Operations Fire Stations,Clothing
250216G,*NPS (SHOES) LTD,16110,48,58.90,CLOTHING,03/03/16,,Operations Fire Stations,Clothing
250216G,*NPS (SHOES) LTD,16110,49,35.00,CLOTHING,03/03/16,,Operations Fire Stations,Clothing
260216G,PERCEPTION DYNAMICS LTD,167173,1,455.00,PROFESSIONAL DEVELOPMENT,03/03/16,455.00,Development and Training,Consultancy
170216F,GREATER LONDON AUTHORITY======,1800005493,1,"24,000.00",CONSULTANTS,03/03/16,"24,000.00",Information Management,Statutory Bodies
230216F,DYSLEXIA ACTION,201508,1,525.00,LEARNING SUPPORT,03/03/16,525.00,Development and Training,Human Resources
190216G,ENERGY AUDITING AGENCY LTD====,20161153,1,990.00,PROFESSIONAL SERVICES,03/03/16,990.00,Technical And Service Support,Statutory Bodies
260216G,CRISPIN HUGHES================,2335,1,320.00,PRESS OFFICE,03/03/16,320.00,Community Safety Delivery,Facilities & Management S
260216G,AECOM INFRASTRUCTURE &,28250816,1,971.57,STRATEGIC (NON CYCLICAL),03/03/16,971.57,Technical And Service Support,Consultancy
290216K,LONDON SOUTH BANK UNIVERSITY==,283814,1,610.00,PROFESSIONAL DEVELOPMENT,03/03/16,610.00,Fire Safety Regulation,Human Resources
260216G,ARKAS LIMITED=================,28427,1,247.00,STRATEGIC (CYCLICAL),03/03/16,823.00,Technical And Service Support,"Works - Construction, R&M"
260216G,ARKAS LIMITED=================,28427,2,197.50,TACTICAL DAY TO DAY,03/03/16,,Technical And Service Support,"Works - Construction, R&M"
260216G,ARKAS LIMITED=================,28427,3,214.00,STRATEGIC (CYCLICAL),03/03/16,,Technical And Service Support,"Works - Construction, R&M"
260216G,ARKAS LIMITED=================,28427,4,164.50,STRATEGIC (CYCLICAL),03/03/16,,Technical And Service Support,"Works - Construction, R&M"
260216G,ARKAS LIMITED=================,28428,1,181.00,TACTICAL DAY TO DAY,03/03/16,728.31,Technical And Service Support,"Works - Construction, R&M"
260216G,ARKAS LIMITED=================,28428,2,164.50,STRATEGIC (CYCLICAL),03/03/16,,Technical And Service Support,"Works - Construction, R&M"
260216G,ARKAS LIMITED=================,28428,3,201.81,STRATEGIC (CYCLICAL),03/03/16,,Technical And Service Support,"Works - Construction, R&M"
260216G,ARKAS LIMITED=================,28428,4,181.00,STRATEGIC (CYCLICAL),03/03/16,,Technical And Service Support,"Works - Construction, R&M"
260216G,ARKAS LIMITED=================,28430,1,164.50,STRATEGIC (CYCLICAL),03/03/16,825.79,Technical And Service Support,"Works - Construction, R&M"
260216G,ARKAS LIMITED=================,28430,2,295.74,TACTICAL DAY TO DAY,03/03/16,,Technical And Service Support,"Works - Construction, R&M"
260216G,ARKAS LIMITED=================,28430,3,181.00,STRATEGIC (CYCLICAL),03/03/16,,Technical And Service Support,"Works - Construction, R&M"
260216G,ARKAS LIMITED=================,28430,4,184.55,STRATEGIC (CYCLICAL),03/03/16,,Technical And Service Support,"Works - Construction, R&M"
260216G,ARKAS LIMITED=================,28461,1,211.93,STRATEGIC (CYCLICAL),03/03/16,731.06,Technical And Service Support,"Works - Construction, R&M"
260216G,ARKAS LIMITED=================,28461,2,188.60,STRATEGIC (CYCLICAL),03/03/16,,Technical And Service Support,"Works - Construction, R&M"
260216G,ARKAS LIMITED=================,28461,3,330.53,STRATEGIC (CYCLICAL),03/03/16,,Technical And Service Support,"Works - Construction, R&M"
260216G,ARKAS LIMITED=================,28464,1,346.00,STRATEGIC (CYCLICAL),03/03/16,"1,404.84",Technical And Service Support,"Works - Construction, R&M"
260216G,ARKAS LIMITED=================,28464,2,214.00,STRATEGIC (CYCLICAL),03/03/16,,Technical And Service Support,"Works - Construction, R&M"
260216G,ARKAS LIMITED=================,28464,3,247.00,STRATEGIC (CYCLICAL),03/03/16,,Technical And Service Support,"Works - Construction, R&M"
260216G,ARKAS LIMITED=================,28464,4,597.84,STRATEGIC (CYCLICAL),03/03/16,,Technical And Service Support,"Works - Construction, R&M"
260216G,ARKAS LIMITED=================,28550,1,"4,416.00",STRATEGIC (CYCLICAL),03/03/16,"4,416.00",Technical and Service Support,"Works - Construction, R&M"
150216C,DRAEGER SAFETY UK LIMITED=====,2910042134,1,636.50,PROTECTIVE EQUIPT - PARTS,03/03/16,666.95,Technical and Service Support,Fire & Rescue
150216C,DRAEGER SAFETY UK LIMITED=====,2910042134,2,30.45,PROTECTIVE EQUIPT - PARTS,03/03/16,,Technical and Service Support,Fire & Rescue
701672,*BURLINGTON UNIFORMS LTD,29773*,1,288.60,UNIFORMS - POMS,03/03/16,288.60,Procurement,Clothing
190216G,B NOKES CONTRACTS LTD,3136,1,460.00,TACTICAL DAY TO DAY,03/03/16,460.00,Technical And Service Support,"Works - Construction, R&M"
190216G,B NOKES CONTRACTS LTD,3151,1,972.00,TACTICAL DAY TO DAY,03/03/16,972.00,Technical And Service Support,"Works - Construction, R&M"
260216G,B NOKES CONTRACTS LTD,3154,1,"5,372.00",STRATEGIC (NON CYCLICAL),03/03/16,"6,416.00",Technical and Service Support,"Works - Construction, R&M"
260216G,B NOKES CONTRACTS LTD,3154,2,"1,044.00",STRATEGIC (NON CYCLICAL),03/03/16,,Technical and Service Support,"Works - Construction, R&M"
260216G,B NOKES CONTRACTS LTD,3156,1,861.75,STRATEGIC (NON CYCLICAL),03/03/16,861.75,Technical and Service Support,"Works - Construction, R&M"
260216G,BRISTOL UNIFORMS LTD==========,334055,1,772.51,CLOTHING,03/03/16,772.51,Procurement,Clothing
260216G,BRISTOL UNIFORMS LTD==========,334057,1,"4,060.01",CLOTHING,03/03/16,"4,060.01",Procurement,Clothing
260216G,BRISTOL UNIFORMS LTD==========,334058,1,"199,159.92",CLOTHING,03/03/16,"199,159.92",Procurement,Clothing
290216K,BRISTOL UNIFORMS LTD==========,334064,1,"1,259.48",CLOTHING,03/03/16,"1,259.48",Procurement,Clothing
260216G,HUNTERS CONTRACTS LIMITED,353224,1,828.00,OFFICE FURNITURE,03/03/16,828.00,Communications,Furniture
260216G,BT GLOBAL SERVICES============,405714,1,"39,327.00",MAINTENANCE & SUPPORT,03/03/16,"39,327.00",Information and Communication Technology,ICT
141389,MR JACK FERRO=================,423880,1,"1,625.00",COUNSELS FEES,03/03/16,"1,625.00",Compensation Budgets,Legal Services
290216K,ELLE MEDIA GROUP,4419,1,"1,715.00",PRINTING,03/03/16,"1,715.00",LFB 150th Anniversary,Facilities & Management S
260216G,SPORTSAFE UK LTD==============,483667,1,315.72,GYM EQUIPMENT,03/03/16,315.72,Technical And Service Support,Sports & Playground Equip
260216G,FOCUS & VISION TECHNOLOGY LTD,50418,1,520.36,MEDICAL EXPENSES CONTRACT,03/03/16,520.36,HR Management,Healthcare
260216G,FOCUS & VISION TECHNOLOGY LTD,50453,1,838.99,MEDICAL EXPENSES CONTRACT,03/03/16,838.99,HR Management,Healthcare
260216G,FOCUS & VISION TECHNOLOGY LTD,50501,1,"1,480.48",MEDICAL EXPENSES CONTRACT,03/03/16,"1,480.48",HR Management,Healthcare
260216G,FOCUS & VISION TECHNOLOGY LTD,50534,1,"1,136.80",MEDICAL EXPENSES CONTRACT,03/03/16,"1,136.80",HR Management,Healthcare
260216G,FOCUS & VISION TECHNOLOGY LTD,50566,1,365.60,MEDICAL EXPENSES CONTRACT,03/03/16,365.60,HR Management,Healthcare
180216G,HP INC UK LIMITED,5231309,1,"102,960.00",MAINTENANCE & SUPPORT,03/03/16,"104,585.80",Information and Communication Technology,ICT
180216G,HP INC UK LIMITED,5231309,2,"1,625.80",MAINTENANCE & SUPPORT,03/03/16,,Information and Communication Technology,ICT
290216K,FAHEY BUILDERS LTD============,5331,1,"1,670.00",STRATEGIC (NON CYCLICAL),03/03/16,"6,680.00",Technical and Service Support,"Works - Construction, R&M"
290216K,FAHEY BUILDERS LTD============,5331,2,"1,670.00",STRATEGIC (NON CYCLICAL),03/03/16,,Technical and Service Support,"Works - Construction, R&M"
290216K,FAHEY BUILDERS LTD============,5331,3,"1,670.00",STRATEGIC (NON CYCLICAL),03/03/16,,Technical and Service Support,"Works - Construction, R&M"
290216K,FAHEY BUILDERS LTD============,5331,4,"1,670.00",STRATEGIC (NON CYCLICAL),03/03/16,,Technical and Service Support,"Works - Construction, R&M"
290216K,FAHEY BUILDERS LTD============,5332,1,"1,670.00",STRATEGIC (NON CYCLICAL),03/03/16,"6,680.00",Technical and Service Support,"Works - Construction, R&M"
290216K,FAHEY BUILDERS LTD============,5332,2,"1,670.00",STRATEGIC (NON CYCLICAL),03/03/16,,Technical and Service Support,"Works - Construction, R&M"
290216K,FAHEY BUILDERS LTD============,5332,3,"1,670.00",STRATEGIC (NON CYCLICAL),03/03/16,,Technical and Service Support,"Works - Construction, R&M"
290216K,FAHEY BUILDERS LTD============,5332,4,"1,670.00",STRATEGIC (NON CYCLICAL),03/03/16,,Technical and Service Support,"Works - Construction, R&M"
290216K,FAHEY BUILDERS LTD============,5333,1,"4,988.00",STRATEGIC (NON CYCLICAL),03/03/16,"4,988.00",Technical and Service Support,"Works - Construction, R&M"
141382,MARSDEN FIRE SAFETY LTD,597,1,"2,995.00",OPERATIONAL EQUIP-PURCHASE,03/03/16,"2,995.00",Central Finance,Fire & Rescue
290216K,CAPITA SECURE INFO SOLUTIONS,6060009886,1,"10,367.00",CAMS CONTRACT,03/03/16,"10,367.00",CAMS Project,ICT
180216G,A P HILLS SIGNS===============,6234,1,327.00,GENERAL,03/03/16,327.00,Exercise Unified Response,Building Constr Materials
170216G,J HUDSON & CO (WHISTLES)LTD,66367,1,521.14,GENERAL CONSUMABLES,03/03/16,521.14,Procurement,Fire & Rescue
290216K,TRY & LILLY LTD===============,68365,1,94.46,UNIFORMS - POMS,03/03/16,330.61,Procurement,Clothing
290216K,TRY & LILLY LTD===============,68365,2,236.15,UNIFORMS - POMS,03/03/16,,Procurement,Clothing
260216G,*SUPPLIES TEAM================,7953375,1,"2,325.60",PUBLIC RELATIONS,03/03/16,"4,058.10",LFB 150th Anniversary,ICT
260216G,*SUPPLIES TEAM================,7953375,2,"1,253.50",PUBLIC RELATIONS,03/03/16,,LFB 150th Anniversary,ICT
260216G,*SUPPLIES TEAM================,7953375,3,479.00,PUBLIC RELATIONS,03/03/16,,LFB 150th Anniversary,ICT
170216G,*SUPPLIES TEAM================,8023196,1,693.00,PUBLIC RELATIONS,03/03/16,704.00,Exercise Unified Response,ICT
170216G,*SUPPLIES TEAM================,8023196,2,11.00,PUBLIC RELATIONS,03/03/16,,Exercise Unified Response,ICT
170216G,*SUPPLIES TEAM================,8023198,1,570.90,PUBLIC RELATIONS,03/03/16,585.90,Exercise Unified Response,ICT
170216G,*SUPPLIES TEAM================,8023198,2,15.00,PUBLIC RELATIONS,03/03/16,,Exercise Unified Response,ICT
290216K,TWO SERVICES LTD==============,86640,1,700.50,CATERING EQUIPMENT,03/03/16,700.50,Operations Fire Stations,Catering
260216G,PITNEY BOWES PURCHASE POWER,BD432500,1,"4,040.02",POSTAL SERVICES,03/03/16,"4,040.02",Information Management,Mail Services
170216G,*GRAFTON MERCHANTING GB LTD,CRO/360837,1,997.50,OPERATIONAL EQUIP-PURCHASE,03/03/16,"2,257.50",Exercise Unified Response,Building Constr Materials
170216G,*GRAFTON MERCHANTING GB LTD,CRO/360837,2,348.00,OPERATIONAL EQUIP-PURCHASE,03/03/16,,Exercise Unified Response,Building Constr Materials
170216G,*GRAFTON MERCHANTING GB LTD,CRO/360837,3,672.00,OPERATIONAL EQUIP-PURCHASE,03/03/16,,Exercise Unified Response,Building Constr Materials
170216G,*GRAFTON MERCHANTING GB LTD,CRO/360837,4,240.00,OPERATIONAL EQUIP-PURCHASE,03/03/16,,Exercise Unified Response,Building Constr Materials
260216G,E&S B DAVIS LTD,DAV/60087,1,475.00,OPERATIONAL EQUIP-PURCHASE,03/03/16,475.00,Operations Fire Stations,Environmental Services
260216G,E&S B DAVIS LTD,DAV/60398,1,295.00,OPERATIONAL EQUIP-PURCHASE,03/03/16,295.00,Operations Fire Stations,Environmental Services
220216G,HALL FUELS,I08228533,1,"2,380.80",FUEL,03/03/16,"2,380.80",Operations Fire Stations,Vehicle Management
260216G,ROCOM,I2782855,1,360.00,PURCHASES-IT COMMUNICATIONS,03/03/16,385.00,Property PFI,ICT
260216G,ROCOM,I2782855,2,25.00,PURCHASES-IT COMMUNICATIONS,03/03/16,,Property PFI,ICT
260216G,SOFTCAT LIMITED,INV01305562,1,"1,218.60",STATIONERY CONSUMABLES,03/03/16,"1,402.28",Information and Communication Technology,ICT
260216G,SOFTCAT LIMITED,INV01305562,2,139.04,STATIONERY CONSUMABLES,03/03/16,,Operational Policy,ICT
260216G,SOFTCAT LIMITED,INV01305562,3,44.64,STATIONERY CONSUMABLES,03/03/16,,Operational Policy,ICT
260216G,SOFTCAT LIMITED,INV01315951,1,"1,175.00",STATIONERY CONSUMABLES,03/03/16,"1,175.00",Information and Communication Technology,ICT
141388,LEX AUTOLEASE,MRI3962658,1,297.88,LEASE CAR CHARGES,03/03/16,"4,955.64",Procurement,Vehicle Management
141388,LEX AUTOLEASE,MRI3962658,2,"4,657.76",P/PAYMTS-CAR LEASG-RENTAL,03/03/16,,Finance Services,Vehicle Management
141388,LEX AUTOLEASE,MRI3962658,3,-439.54,VAT CAR LEASING,03/03/16,,Finance Services,Vehicle Management
141388,LEX AUTOLEASE,MRI3962658,4,439.54,LEASE CAR CHARGES,03/03/16,,Procurement,Vehicle Management
141388,LEX AUTOLEASE,MRI3962660,1,401.69,LEASE CAR CHARGES,03/03/16,"5,250.72",Procurement,Vehicle Management
141388,LEX AUTOLEASE,MRI3962660,2,"4,849.03",P/PAYMTS-CAR LEASG-RENTAL,03/03/16,,Finance Services,Vehicle Management
141388,LEX AUTOLEASE,MRI3962660,3,-470.24,VAT CAR LEASING,03/03/16,,Finance Services,Vehicle Management
141388,LEX AUTOLEASE,MRI3962660,4,470.24,LEASE CAR CHARGES,03/03/16,,Procurement,Vehicle Management
141388,LEX AUTOLEASE,MRI3962661,1,207.06,LEASE CAR CHARGES,03/03/16,"3,988.68",Procurement,Vehicle Management
141388,LEX AUTOLEASE,MRI3962661,2,"3,781.62",P/PAYMTS-CAR LEASG-RENTAL,03/03/16,,Finance Services,Vehicle Management
141388,LEX AUTOLEASE,MRI3962661,3,-346.34,VAT CAR LEASING,03/03/16,,Finance Services,Vehicle Management
141388,LEX AUTOLEASE,MRI3962661,4,346.34,LEASE CAR CHARGES,03/03/16,,Procurement,Vehicle Management
141388,LEX AUTOLEASE,MRI3962662,1,298.35,LEASE CAR CHARGES,03/03/16,"4,963.44",Procurement,Vehicle Management
141388,LEX AUTOLEASE,MRI3962662,2,"4,665.09",P/PAYMTS-CAR LEASG-RENTAL,03/03/16,,Finance Services,Vehicle Management
141388,LEX AUTOLEASE,MRI3962662,3,-444.52,VAT CAR LEASING,03/03/16,,Finance Services,Vehicle Management
141388,LEX AUTOLEASE,MRI3962662,4,444.52,LEASE CAR CHARGES,03/03/16,,Procurement,Vehicle Management
141388,LEX AUTOLEASE,MTI3962659,1,503.82,LEASE CAR CHARGES,03/03/16,"4,609.92",Procurement,Vehicle Management
141388,LEX AUTOLEASE,MTI3962659,2,"4,106.10",P/PAYMTS-CAR LEASG-RENTAL,03/03/16,,Finance Services,Vehicle Management
141388,LEX AUTOLEASE,MTI3962659,3,-409.16,VAT CAR LEASING,03/03/16,,Finance Services,Vehicle Management
141388,LEX AUTOLEASE,MTI3962659,4,409.16,LEASE CAR CHARGES,03/03/16,,Procurement,Vehicle Management
290216K,ETC VENUES LTD================,PH-121844,1,"1,542.60",PROFESSIONAL DEVELOPMENT,03/03/16,"1,542.60",National Operational Guidance Project,Human Resources
290216K,FRONTIER PITTS LTD============,SI-066720,1,"7,500.00",PROFESSIONAL SERVICES,03/03/16,"7,500.00",Technical And Service Support,"Works - Construction, R&M"
290216K,BERENDSEN UK LTD,SN2333787,1,"9,393.95",LAUNDRY,03/03/16,"9,393.95",Central Operations,Cleaning & Janitorial
290216K,BRITISH TELECOM===============,VP71178070M22301MC,1,"1,755.57",CALL CHARGES,03/03/16,"40,240.59",Information and Communication Technology,ICT
290216K,BRITISH TELECOM===============,VP71178070M22301MC,2,"38,485.02",TELECOMMUNICATIONS,03/03/16,,Information and Communication Technology,ICT
290216K,ADVANCED FURNITURE============,0000079267,1,540.00,OFFICE FURNITURE,07/03/16,540.00,Operations Fire Stations,Furniture
220216G,ADVANCED FURNITURE============,0000079268,1,675.00,OFFICE FURNITURE,07/03/16,675.00,Operations Fire Stations,Furniture
220216G,FIRST PRODUCTS (SUSSEX) LTD,10/1527,1,519.50,GENERAL CONSUMABLES,07/03/16,519.50,Procurement,Fire & Rescue
010316K,LINCOLNSHIRE COUNTY COUNCIL===,10013544,1,"75,366.19",FIRE AUTHORITIES,07/03/16,"75,366.19",National Operational Guidance Project,Statutory Bodies
800077011,*JAMES HUNTER (OUTFITTERS) LTD,108569,1,362.23,CLOTHING,07/03/16,507.97,Operations Fire Stations,Clothing
800077011,*JAMES HUNTER (OUTFITTERS) LTD,108569,2,145.74,CLOTHING,07/03/16,,Operations Fire Stations,Clothing
800077018,*JAMES HUNTER (OUTFITTERS) LTD,108576,1,239.44,CLOTHING,07/03/16,308.85,Operations Fire Stations,Clothing
800077018,*JAMES HUNTER (OUTFITTERS) LTD,108576,2,69.41,CLOTHING,07/03/16,,Operations Fire Stations,Clothing
800077019,*JAMES HUNTER (OUTFITTERS) LTD,108577,1,239.44,CLOTHING,07/03/16,308.85,Operations Fire Stations,Clothing
800077019,*JAMES HUNTER (OUTFITTERS) LTD,108577,2,69.41,CLOTHING,07/03/16,,Operations Fire Stations,Clothing
190216G,EI WORLD LIMITED,12490,1,"1,000.00",ASSESSMENTS,07/03/16,"1,000.00",HR Management,Human Resources
170216F,FIRE SERVICES YOUTH TRAIN.ASS.,13815,1,675.00,GENERAL,07/03/16,"1,575.00",Cadets,Human Resources
170216F,FIRE SERVICES YOUTH TRAIN.ASS.,13815,2,900.00,GENERAL,07/03/16,,Cadets,Human Resources
800077032,REDFERN TRAVEL LTD,1683326,1,843.70,TRAVEL BOOKINGS,07/03/16,843.70,Fire Safety Regulation,Human Resources
070316K,LOSBERGER RAPID DEPLOYMENT,16840,1,"21,100.12",OPERATIONAL EQUIP-PURCHASE,07/03/16,"35,747.50",Exercise Unified Response,Fire & Rescue
070316K,LOSBERGER RAPID DEPLOYMENT,16840,2,"2,339.16",OPERATIONAL EQUIP-PURCHASE,07/03/16,,Exercise Unified Response,Fire & Rescue
070316K,LOSBERGER RAPID DEPLOYMENT,16840,3,"9,596.40",OPERATIONAL EQUIP-PURCHASE,07/03/16,,Exercise Unified Response,Fire & Rescue
070316K,LOSBERGER RAPID DEPLOYMENT,16840,4,"2,243.20",OPERATIONAL EQUIP-PURCHASE,07/03/16,,Exercise Unified Response,Fire & Rescue
070316K,LOSBERGER RAPID DEPLOYMENT,16840,5,468.62,OPERATIONAL EQUIP-PURCHASE,07/03/16,,Exercise Unified Response,Fire & Rescue
800077042,REDFERN TRAVEL LTD,1685538,1,279.31,TRAVEL BOOKINGS,07/03/16,279.31,National Operational Guidance Project,Human Resources
800077045,REDFERN TRAVEL LTD,1686691,1,418.53,TRAVEL BOOKINGS,07/03/16,418.53,Information and Communication Technology,Human Resources
800077071,REDFERN TRAVEL LTD,1689869,1,"5,555.95",OVERSEAS TRAVEL,07/03/16,"5,555.95",Operational Policy,Human Resources
800077036,REDFERN TRAVEL LTD,1689966,1,308.10,ACCOMMODATION BOOKINGS,07/03/16,308.10,National Operational Guidance Project,Human Resources
800077035,REDFERN TRAVEL LTD,1690420,1,975.52,OVERSEAS TRAVEL,07/03/16,975.52,Exercise Unified Response,Human Resources
800077065,REDFERN TRAVEL LTD,1691287,1,457.36,TRAVEL BOOKINGS,07/03/16,457.36,National Operational Guidance Project,Human Resources
800077085,REDFERN TRAVEL LTD,1695151,1,333.83,TRAVEL BOOKINGS,07/03/16,333.83,National Operational Guidance Project,Human Resources
800077089,REDFERN TRAVEL LTD,1695188,1,279.31,TRAVEL BOOKINGS,07/03/16,279.31,National Operational Guidance Project,Human Resources
800077090,REDFERN TRAVEL LTD,1695217,1,279.31,TRAVEL BOOKINGS,07/03/16,279.31,National Operational Guidance Project,Human Resources
800077033,REDFERN TRAVEL LTD,1700378,1,288.00,ACCOMMODATION BOOKINGS,07/03/16,288.00,Fire Safety Regulation,Human Resources
800077091,REDFERN TRAVEL LTD,1705929,1,329.80,ACCOMMODATION BOOKINGS,07/03/16,329.80,National Operational Guidance Project,Human Resources
020316K,EDMUNDSON ELECTRICAL,215-225488,1,"1,259.98",TACTICAL DAY TO DAY,07/03/16,"1,259.98",Technical And Service Support,Building Constr Materials
220216G,CRISPIN HUGHES================,2347,1,359.80,PRESS OFFICE,07/03/16,359.80,Communications,Facilities & Management S
141389,MISS SARAH LE FEVRE===========,237378,1,900.00,PROFESSIONAL FEES ENFORCEMENT,07/03/16,900.00,Legal & Democratic Services,Legal Services
020316K,CROYDON COUNCIL===============,2392564,1,"1,000.00",GENERAL,07/03/16,"1,000.00",Community Safety Delivery,Statutory Bodies
800077030,ADECCO UK LIMITED=============,27117880,1,"1,386.50",FRS STAFF AGENCY,07/03/16,"1,386.50",Communications,Human Resources
800077232,ADECCO UK LIMITED=============,27220217,1,427.04,FRS STAFF AGENCY,07/03/16,427.04,Operations Non Fire Stations,Human Resources
800077250,ADECCO UK LIMITED=============,27292703,1,757.05,FRS STAFF AGENCY,07/03/16,757.05,Information and Communication Technology,Human Resources
800077284,ADECCO UK LIMITED=============,27298746,1,596.00,FRS STAFF AGENCY,07/03/16,596.00,Information and Communication Technology,Human Resources
800077239,ADECCO UK LIMITED=============,27346753,1,959.16,FRS STAFF AGENCY,07/03/16,959.16,Information and Communication Technology,Human Resources
800077267,ADECCO UK LIMITED=============,27349852,1,439.60,FRS STAFF AGENCY,07/03/16,439.60,Fire Safety Regulation,Human Resources
800076680,ADECCO UK LIMITED=============,27349870,1,641.90,FRS STAFF AGENCY,07/03/16,641.90,Technical And Service Support,Human Resources
800077269,ADECCO UK LIMITED=============,27375341,1,"1,332.71",FRS STAFF AGENCY,07/03/16,"1,332.71",Legal & Democratic Services,Human Resources
800077249,ADECCO UK LIMITED=============,27386226,1,757.05,FRS STAFF AGENCY,07/03/16,757.05,Information and Communication Technology,Human Resources
240216G,DRAEGER SAFETY UK LIMITED=====,2910042630,1,357.00,PROTECTIVE EQUIPT - PARTS,07/03/16,357.00,Technical and Service Support,Fire & Rescue
240216G,REDTRONIC LTD=================,30883,1,600.00,OPERATIONAL EQUIP-PURCHASE,07/03/16,645.00,Procurement,Fire & Rescue
240216G,REDTRONIC LTD=================,30883,2,45.00,OPERATIONAL EQUIP-PURCHASE,07/03/16,,Procurement,Fire & Rescue
020316K,L B OF LEWISHAM===============,3160024654,1,"1,000.00",GENERAL,07/03/16,"1,000.00",Community Safety Delivery,Statutory Bodies
290216K,HUNTERS CONTRACTS LIMITED,353335,1,259.00,OFFICE FURNITURE,07/03/16,259.00,Operations Non Fire Stations,Furniture
290216K,HUNTERS CONTRACTS LIMITED,353336,1,259.00,OFFICE FURNITURE,07/03/16,259.00,Operations Non Fire Stations,Furniture
290216K,HUNTERS CONTRACTS LIMITED,353337,1,563.29,OFFICE FURNITURE,07/03/16,563.29,Operational Policy,Furniture
290216K,HUNTERS CONTRACTS LIMITED,353338,1,441.00,OFFICE FURNITURE,07/03/16,441.00,Operations Fire Stations,Furniture
290216K,HUNTERS CONTRACTS LIMITED,353340,1,252.00,OFFICE FURNITURE,07/03/16,252.00,Operations Fire Stations,Furniture
010316K,CVS INTERNATIONAL,39644,1,575.00,PUBLIC RELATIONS,07/03/16,575.00,Communications,Human Resources
020316K,EVOLUTION ENVIRONMENTAL LTD,4261,1,"1,030.00",ASBESTOS,07/03/16,"1,680.00",Technical and Service Support,"Works - Construction, R&M"
020316K,EVOLUTION ENVIRONMENTAL LTD,4261,2,650.00,ASBESTOS,07/03/16,,Technical and Service Support,"Works - Construction, R&M"
020316K,FOCUS & VISION TECHNOLOGY LTD,50599,1,588.40,MEDICAL EXPENSES CONTRACT,07/03/16,588.40,HR Management,Healthcare
020316K,FOCUS & VISION TECHNOLOGY LTD,50616,1,887.18,MEDICAL EXPENSES CONTRACT,07/03/16,887.18,HR Management,Healthcare
020316K,FOCUS & VISION TECHNOLOGY LTD,50639,1,494.76,MEDICAL EXPENSES CONTRACT,07/03/16,494.76,HR Management,Healthcare
800077182,*GREENHAM TRADING LTD=========,5712473,1,10.79,HYGIENE,07/03/16,255.71,Operations Fire Stations,Cleaning & Janitorial
800077182,*GREENHAM TRADING LTD=========,5712473,2,12.40,HYGIENE,07/03/16,,Operations Fire Stations,Cleaning & Janitorial
800077182,*GREENHAM TRADING LTD=========,5712473,3,32.60,HYGIENE,07/03/16,,Operations Fire Stations,Cleaning & Janitorial
800077182,*GREENHAM TRADING LTD=========,5712473,4,26.00,HYGIENE,07/03/16,,Operations Fire Stations,Cleaning & Janitorial
800077182,*GREENHAM TRADING LTD=========,5712473,5,5.20,CATERING EQUIPMENT,07/03/16,,Operations Fire Stations,Cleaning & Janitorial
800077182,*GREENHAM TRADING LTD=========,5712473,6,3.28,HYGIENE,07/03/16,,Operations Fire Stations,Cleaning & Janitorial
800077182,*GREENHAM TRADING LTD=========,5712473,7,38.60,HYGIENE,07/03/16,,Operations Fire Stations,Cleaning & Janitorial
800077182,*GREENHAM TRADING LTD=========,5712473,8,5.10,HYGIENE,07/03/16,,Operations Fire Stations,Cleaning & Janitorial
800077182,*GREENHAM TRADING LTD=========,5712473,9,24.90,CLOTHING,07/03/16,,Operations Fire Stations,Cleaning & Janitorial
800077182,*GREENHAM TRADING LTD=========,5712473,10,64.86,HYGIENE,07/03/16,,Operations Fire Stations,Cleaning & Janitorial
800077182,*GREENHAM TRADING LTD=========,5712473,11,31.98,HYGIENE,07/03/16,,Operations Fire Stations,Cleaning & Janitorial
020316K,L B OF BARKING & DAGENHAM=====,60025467,1,"1,000.00",GENERAL,07/03/16,"1,000.00",Community Safety Delivery,"Works - Construction, R&M"
020316K,CORE SURVEYSLTD===============,6617,1,240.00,ASBESTOS,07/03/16,750.00,Technical and Service Support,"Works - Construction, R&M"
020316K,CORE SURVEYSLTD===============,6617,2,170.00,ASBESTOS,07/03/16,,Technical and Service Support,"Works - Construction, R&M"
020316K,CORE SURVEYSLTD===============,6617,3,170.00,ASBESTOS,07/03/16,,Technical and Service Support,"Works - Construction, R&M"
020316K,CORE SURVEYSLTD===============,6617,4,170.00,ASBESTOS,07/03/16,,Technical and Service Support,"Works - Construction, R&M"
020316K,CORE SURVEYSLTD===============,6623,1,400.00,ASBESTOS,07/03/16,400.00,Technical and Service Support,"Works - Construction, R&M"
020316K,LB OF BROMLEY=================,700854691,1,"1,000.00",GENERAL,07/03/16,"1,000.00",Community Safety Delivery,"Works - Construction, R&M"
020316K,TWO SERVICES LTD==============,86552,1,938.04,TACTICAL DAY TO DAY,07/03/16,938.04,Technical And Service Support,Catering
240216G,*OFFICE DEPOT UK LTD,967753848,1,67.56,STATIONERY CONSUMABLES,07/03/16,635.76,Communications,Stationery
240216G,*OFFICE DEPOT UK LTD,967753848,2,357.00,STATIONERY CONSUMABLES,07/03/16,,Communications,Stationery
240216G,*OFFICE DEPOT UK LTD,967753848,3,211.20,STATIONERY CONSUMABLES,07/03/16,,Communications,Stationery
141393,MISS JOANA CLARKSON,9798,1,"24,626.33",CLAIMANT COSTS AGREED,07/03/16,"24,626.33",Compensation Budgets,Legal Services
800077156,ALLSTAR BUSINESS SOLUTIONS LTD,E2006193937,1,902.79,FUEL,07/03/16,"12,843.67",Central Operations,Vehicle Management
800077156,ALLSTAR BUSINESS SOLUTIONS LTD,E2006193937,2,453.46,FUEL,07/03/16,,Procurement,Vehicle Management
800077156,ALLSTAR BUSINESS SOLUTIONS LTD,E2006193937,3,318.77,FUEL,07/03/16,,Operations Fire Stations,Vehicle Management
800077156,ALLSTAR BUSINESS SOLUTIONS LTD,E2006193937,4,277.67,FUEL,07/03/16,,Operations Fire Stations,Vehicle Management
800077156,ALLSTAR BUSINESS SOLUTIONS LTD,E2006193937,5,262.45,FUEL,07/03/16,,Operations Fire Stations,Vehicle Management
800077156,ALLSTAR BUSINESS SOLUTIONS LTD,E2006193937,6,261.12,FUEL,07/03/16,,Operations Fire Stations,Vehicle Management
800077156,ALLSTAR BUSINESS SOLUTIONS LTD,E2006193937,7,249.44,FUEL,07/03/16,,Fire Safety Regulation,Vehicle Management
800077156,ALLSTAR BUSINESS SOLUTIONS LTD,E2006193937,8,246.28,FUEL,07/03/16,,Operations Fire Stations,Vehicle Management
800077156,ALLSTAR BUSINESS SOLUTIONS LTD,E2006193937,9,245.55,FUEL,07/03/16,,Operations Fire Stations,Vehicle Management
800077156,ALLSTAR BUSINESS SOLUTIONS LTD,E2006193937,10,241.43,FUEL,07/03/16,,Operations Fire Stations,Vehicle Management
800077156,ALLSTAR BUSINESS SOLUTIONS LTD,E2006193937,11,233.22,FUEL,07/03/16,,Operations Fire Stations,Vehicle Management
800077156,ALLSTAR BUSINESS SOLUTIONS LTD,E2006193937,12,227.24,FUEL,07/03/16,,Operations Fire Stations,Vehicle Management
800077156,ALLSTAR BUSINESS SOLUTIONS LTD,E2006193937,13,224.65,FUEL,07/03/16,,Operations Fire Stations,Vehicle Management
800077156,ALLSTAR BUSINESS SOLUTIONS LTD,E2006193937,14,222.72,FUEL,07/03/16,,Operations Fire Stations,Vehicle Management
800077156,ALLSTAR BUSINESS SOLUTIONS LTD,E2006193937,15,208.85,FUEL,07/03/16,,Operations Fire Stations,Vehicle Management
800077156,ALLSTAR BUSINESS SOLUTIONS LTD,E2006193937,16,205.29,FUEL,07/03/16,,Operations Fire Stations,Vehicle Management
800077156,ALLSTAR BUSINESS SOLUTIONS LTD,E2006193937,17,192.03,FUEL,07/03/16,,Technical And Service Support,Vehicle Management
800077156,ALLSTAR BUSINESS SOLUTIONS LTD,E2006193937,18,190.69,FUEL,07/03/16,,Operations Fire Stations,Vehicle Management
800077156,ALLSTAR BUSINESS SOLUTIONS LTD,E2006193937,19,180.84,FUEL,07/03/16,,Operations Fire Stations,Vehicle Management
800077156,ALLSTAR BUSINESS SOLUTIONS LTD,E2006193937,20,176.28,FUEL,07/03/16,,Operations Fire Stations,Vehicle Management
800077156,ALLSTAR BUSINESS SOLUTIONS LTD,E2006193937,21,172.68,FUEL,07/03/16,,Operations Fire Stations,Vehicle Management
800077156,ALLSTAR BUSINESS SOLUTIONS LTD,E2006193937,22,166.84,FUEL,07/03/16,,Operations Fire Stations,Vehicle Management
800077156,ALLSTAR BUSINESS SOLUTIONS LTD,E2006193937,23,163.05,FUEL,07/03/16,,Operations Fire Stations,Vehicle Management
800077156,ALLSTAR BUSINESS SOLUTIONS LTD,E2006193937,24,162.64,FUEL,07/03/16,,Operations Fire Stations,Vehicle Management
800077156,ALLSTAR BUSINESS SOLUTIONS LTD,E2006193937,25,161.83,FUEL,07/03/16,,Operations Fire Stations,Vehicle Management
800077156,ALLSTAR BUSINESS SOLUTIONS LTD,E2006193937,26,160.72,FUEL,07/03/16,,Operations Fire Stations,Vehicle Management
800077156,ALLSTAR BUSINESS SOLUTIONS LTD,E2006193937,27,159.05,FUEL,07/03/16,,Operations Fire Stations,Vehicle Management
800077156,ALLSTAR BUSINESS SOLUTIONS LTD,E2006193937,28,158.35,FUEL,07/03/16,,Operations Fire Stations,Vehicle Management
800077156,ALLSTAR BUSINESS SOLUTIONS LTD,E2006193937,29,157.56,FUEL,07/03/16,,Operations Fire Stations,Vehicle Management
800077156,ALLSTAR BUSINESS SOLUTIONS LTD,E2006193937,30,157.01,FUEL,07/03/16,,Operations Fire Stations,Vehicle Management
800077156,ALLSTAR BUSINESS SOLUTIONS LTD,E2006193937,31,156.12,FUEL,07/03/16,,Operations Fire Stations,Vehicle Management
800077156,ALLSTAR BUSINESS SOLUTIONS LTD,E2006193937,32,154.24,FUEL,07/03/16,,Operations Fire Stations,Vehicle Management
800077156,ALLSTAR BUSINESS SOLUTIONS LTD,E2006193937,33,151.91,FUEL,07/03/16,,Operations Fire Stations,Vehicle Management
800077156,ALLSTAR BUSINESS SOLUTIONS LTD,E2006193937,34,151.15,FUEL,07/03/16,,Operations Fire Stations,Vehicle Management
800077156,ALLSTAR BUSINESS SOLUTIONS LTD,E2006193937,35,150.37,FUEL,07/03/16,,Operations Fire Stations,Vehicle Management
800077156,ALLSTAR BUSINESS SOLUTIONS LTD,E2006193937,36,147.82,FUEL,07/03/16,,Exercise Unified Response,Vehicle Management
800077156,ALLSTAR BUSINESS SOLUTIONS LTD,E2006193937,37,142.59,FUEL,07/03/16,,Operations Fire Stations,Vehicle Management
800077156,ALLSTAR BUSINESS SOLUTIONS LTD,E2006193937,38,137.01,FUEL,07/03/16,,Operations Fire Stations,Vehicle Management
800077156,ALLSTAR BUSINESS SOLUTIONS LTD,E2006193937,39,133.89,FUEL,07/03/16,,Operations Fire Stations,Vehicle Management
800077156,ALLSTAR BUSINESS SOLUTIONS LTD,E2006193937,40,125.86,FUEL,07/03/16,,Operations Fire Stations,Vehicle Management
800077156,ALLSTAR BUSINESS SOLUTIONS LTD,E2006193937,41,125.36,FUEL,07/03/16,,Operations Fire Stations,Vehicle Management
800077156,ALLSTAR BUSINESS SOLUTIONS LTD,E2006193937,42,124.03,FUEL,07/03/16,,Operations Fire Stations,Vehicle Management
800077156,ALLSTAR BUSINESS SOLUTIONS LTD,E2006193937,43,120.02,FUEL,07/03/16,,Operations Fire Stations,Vehicle Management
800077156,ALLSTAR BUSINESS SOLUTIONS LTD,E2006193937,44,119.04,FUEL,07/03/16,,Operations Fire Stations,Vehicle Management
800077156,ALLSTAR BUSINESS SOLUTIONS LTD,E2006193937,45,113.41,FUEL,07/03/16,,Command Units,Vehicle Management
800077156,ALLSTAR BUSINESS SOLUTIONS LTD,E2006193937,46,108.90,FUEL,07/03/16,,Operations Fire Stations,Vehicle Management
800077156,ALLSTAR BUSINESS SOLUTIONS LTD,E2006193937,47,105.08,FUEL,07/03/16,,Operations Fire Stations,Vehicle Management
800077156,ALLSTAR BUSINESS SOLUTIONS LTD,E2006193937,48,105.00,FUEL,07/03/16,,Operations Non Fire Stations,Vehicle Management
800077156,ALLSTAR BUSINESS SOLUTIONS LTD,E2006193937,49,104.40,FUEL,07/03/16,,Operations Fire Stations,Vehicle Management
800077156,ALLSTAR BUSINESS SOLUTIONS LTD,E2006193937,50,102.49,FUEL,07/03/16,,Command Units,Vehicle Management
800077156,ALLSTAR BUSINESS SOLUTIONS LTD,E2006193937,51,102.36,FUEL,07/03/16,,Operations Fire Stations,Vehicle Management
800077156,ALLSTAR BUSINESS SOLUTIONS LTD,E2006193937,52,101.71,FUEL,07/03/16,,Operations Fire Stations,Vehicle Management
800077156,ALLSTAR BUSINESS SOLUTIONS LTD,E2006193937,53,99.76,FUEL,07/03/16,,Operations Fire Stations,Vehicle Management
800077156,ALLSTAR BUSINESS SOLUTIONS LTD,E2006193937,54,99.48,FUEL,07/03/16,,Operations Fire Stations,Vehicle Management
800077156,ALLSTAR BUSINESS SOLUTIONS LTD,E2006193937,55,98.44,FUEL,07/03/16,,Operations Fire Stations,Vehicle Management
800077156,ALLSTAR BUSINESS SOLUTIONS LTD,E2006193937,56,97.10,FUEL,07/03/16,,Operations Fire Stations,Vehicle Management
800077156,ALLSTAR BUSINESS SOLUTIONS LTD,E2006193937,57,96.42,FUEL,07/03/16,,Operations Fire Stations,Vehicle Management
800077156,ALLSTAR BUSINESS SOLUTIONS LTD,E2006193937,58,96.20,FUEL,07/03/16,,Operations Fire Stations,Vehicle Management
800077156,ALLSTAR BUSINESS SOLUTIONS LTD,E2006193937,59,96.09,FUEL,07/03/16,,Operations Fire Stations,Vehicle Management
800077156,ALLSTAR BUSINESS SOLUTIONS LTD,E2006193937,60,95.54,FUEL,07/03/16,,Operations Fire Stations,Vehicle Management
800077156,ALLSTAR BUSINESS SOLUTIONS LTD,E2006193937,61,93.34,FUEL,07/03/16,,Operations Fire Stations,Vehicle Management
800077156,ALLSTAR BUSINESS SOLUTIONS LTD,E2006193937,62,92.95,FUEL,07/03/16,,Operations Fire Stations,Vehicle Management
800077156,ALLSTAR BUSINESS SOLUTIONS LTD,E2006193937,63,91.05,FUEL,07/03/16,,Operations Fire Stations,Vehicle Management
800077156,ALLSTAR BUSINESS SOLUTIONS LTD,E2006193937,64,90.11,FUEL,07/03/16,,Operations Fire Stations,Vehicle Management
800077156,ALLSTAR BUSINESS SOLUTIONS LTD,E2006193937,65,85.19,FUEL,07/03/16,,Operations Fire Stations,Vehicle Management
800077156,ALLSTAR BUSINESS SOLUTIONS LTD,E2006193937,66,81.88,FUEL,07/03/16,,Operations Fire Stations,Vehicle Management
800077156,ALLSTAR BUSINESS SOLUTIONS LTD,E2006193937,67,79.50,FUEL,07/03/16,,Operational Policy,Vehicle Management
800077156,ALLSTAR BUSINESS SOLUTIONS LTD,E2006193937,68,75.24,FUEL,07/03/16,,Operations Fire Stations,Vehicle Management
800077156,ALLSTAR BUSINESS SOLUTIONS LTD,E2006193937,69,71.71,FUEL,07/03/16,,Operations Fire Stations,Vehicle Management
800077156,ALLSTAR BUSINESS SOLUTIONS LTD,E2006193937,70,71.40,FUEL,07/03/16,,Operations Fire Stations,Vehicle Management
800077156,ALLSTAR BUSINESS SOLUTIONS LTD,E2006193937,71,71.33,FUEL,07/03/16,,Operations Fire Stations,Vehicle Management
800077156,ALLSTAR BUSINESS SOLUTIONS LTD,E2006193937,72,71.01,FUEL,07/03/16,,Technical And Service Support,Vehicle Management
800077156,ALLSTAR BUSINESS SOLUTIONS LTD,E2006193937,73,70.68,FUEL,07/03/16,,Command Units,Vehicle Management
800077156,ALLSTAR BUSINESS SOLUTIONS LTD,E2006193937,74,70.07,FUEL,07/03/16,,Operations Fire Stations,Vehicle Management
800077156,ALLSTAR BUSINESS SOLUTIONS LTD,E2006193937,75,67.84,FUEL,07/03/16,,Operations Fire Stations,Vehicle Management
800077156,ALLSTAR BUSINESS SOLUTIONS LTD,E2006193937,76,66.80,FUEL,07/03/16,,Operations Fire Stations,Vehicle Management
800077156,ALLSTAR BUSINESS SOLUTIONS LTD,E2006193937,77,66.62,FUEL,07/03/16,,Information and Communication Technology,Vehicle Management
800077156,ALLSTAR BUSINESS SOLUTIONS LTD,E2006193937,78,65.31,FUEL,07/03/16,,Operations Fire Stations,Vehicle Management
800077156,ALLSTAR BUSINESS SOLUTIONS LTD,E2006193937,79,62.67,FUEL,07/03/16,,Operations Fire Stations,Vehicle Management
800077156,ALLSTAR BUSINESS SOLUTIONS LTD,E2006193937,80,61.48,FUEL,07/03/16,,Operations Fire Stations,Vehicle Management
800077156,ALLSTAR BUSINESS SOLUTIONS LTD,E2006193937,81,57.28,FUEL,07/03/16,,Operational Resilience,Vehicle Management
800077156,ALLSTAR BUSINESS SOLUTIONS LTD,E2006193937,82,53.93,FUEL,07/03/16,,Operations Fire Stations,Vehicle Management
800077156,ALLSTAR BUSINESS SOLUTIONS LTD,E2006193937,83,52.50,FUEL,07/03/16,,Command Units,Vehicle Management
800077156,ALLSTAR BUSINESS SOLUTIONS LTD,E2006193937,84,50.00,FUEL,07/03/16,,Command Units,Vehicle Management
800077156,ALLSTAR BUSINESS SOLUTIONS LTD,E2006193937,85,49.67,FUEL,07/03/16,,Operations Fire Stations,Vehicle Management
800077156,ALLSTAR BUSINESS SOLUTIONS LTD,E2006193937,86,49.21,FUEL,07/03/16,,Operations Fire Stations,Vehicle Management
800077156,ALLSTAR BUSINESS SOLUTIONS LTD,E2006193937,87,45.45,FUEL,07/03/16,,Command Units,Vehicle Management
800077156,ALLSTAR BUSINESS SOLUTIONS LTD,E2006193937,88,45.25,FUEL,07/03/16,,Command Units,Vehicle Management
800077156,ALLSTAR BUSINESS SOLUTIONS LTD,E2006193937,89,42.73,FUEL,07/03/16,,CBRN RRT,Vehicle Management
800077156,ALLSTAR BUSINESS SOLUTIONS LTD,E2006193937,90,42.03,FUEL,07/03/16,,Operations Fire Stations,Vehicle Management
800077156,ALLSTAR BUSINESS SOLUTIONS LTD,E2006193937,91,41.92,FUEL,07/03/16,,LIFE - LFB Funded,Vehicle Management
800077156,ALLSTAR BUSINESS SOLUTIONS LTD,E2006193937,92,41.67,FUEL,07/03/16,,Operational Policy,Vehicle Management
800077156,ALLSTAR BUSINESS SOLUTIONS LTD,E2006193937,93,28.30,FUEL,07/03/16,,Operations Fire Stations,Vehicle Management
800077156,ALLSTAR BUSINESS SOLUTIONS LTD,E2006193937,94,27.18,FUEL,07/03/16,,Operations Fire Stations,Vehicle Management
800077156,ALLSTAR BUSINESS SOLUTIONS LTD,E2006193937,95,8.08,FUEL,07/03/16,,Operations Fire Stations,Vehicle Management
020316K,SAFETYNET SOLUTIONS LIMITED===,PSI-0032522,1,"1,448.00",PREMISES SECURITY,07/03/16,"1,448.00",Technical And Service Support,Facilities & Management S
010316K,DNV CERTIFICATION LTD=========,ZNEGB2271192064,1,"3,393.00",CONSULTANTS,07/03/16,"3,393.00",National Operational Guidance Project,Consultancy
010316K,DNV CERTIFICATION LTD=========,ZNEGB2271192065,1,"4,785.00",CONSULTANTS,07/03/16,"4,785.00",National Operational Guidance Project,Consultancy
141393,MISS JOANA CLARKSON,9798,1,"24,626.33",CLAIMANT COSTS AGREED,09/03/16,"24,626.33",Compensation Budgets,Legal Services
902606,LYNDA.COM,INV04809714,1,"1,275.69",PROFESSIONAL DEVELOPMENT,09/03/16,"1,275.69",Communications,ICT
141393,P OLDHAM======================, 92576 A,1,"1,120.00",PROFESSIONAL FEES GENERAL,10/03/16,"1,120.00",Legal & Democratic Services,Legal Services
040316K,ENERGY TEAM (UK) LTD,010014,1,378.66,CONSULTANTS,10/03/16,378.66,Technical And Service Support,Environmental Services
141390,THAMES WATER UTILITIES LTD====,0455932500B,1,336.01,WATER & SEWERAGE RATES,10/03/16,336.01,Technical And Service Support,Utilities
030316G,ENVIROGRAF,103785,1,"1,062.43",OPERATIONAL EQUIP-PURCHASE,10/03/16,"1,062.43",Community Safety Delivery,Fire & Rescue
800077008,*JAMES HUNTER (OUTFITTERS) LTD,108566,1,282.83,CLOTHING,10/03/16,595.72,Operations Non Fire Stations,Clothing
800077008,*JAMES HUNTER (OUTFITTERS) LTD,108566,2,312.89,CLOTHING,10/03/16,,Operations Non Fire Stations,Clothing
800077015,*JAMES HUNTER (OUTFITTERS) LTD,108573,1,294.48,CLOTHING,10/03/16,294.48,Operations Fire Stations,Clothing
040316K,VISTA LANDSCAPE MANAGEMENT LTD,121618,1,95.83,GROUNDS MAINTENANCE,10/03/16,"2,232.46",Technical And Service Support,"Works - Construction, R&M"
040316K,VISTA LANDSCAPE MANAGEMENT LTD,121618,2,23.00,GROUNDS MAINTENANCE,10/03/16,,Technical And Service Support,"Works - Construction, R&M"
040316K,VISTA LANDSCAPE MANAGEMENT LTD,121618,3,22.12,GROUNDS MAINTENANCE,10/03/16,,Technical And Service Support,"Works - Construction, R&M"
040316K,VISTA LANDSCAPE MANAGEMENT LTD,121618,4,24.94,GROUNDS MAINTENANCE,10/03/16,,Technical And Service Support,"Works - Construction, R&M"
040316K,VISTA LANDSCAPE MANAGEMENT LTD,121618,5,75.00,GROUNDS MAINTENANCE,10/03/16,,Technical And Service Support,"Works - Construction, R&M"
040316K,VISTA LANDSCAPE MANAGEMENT LTD,121618,6,17.25,GROUNDS MAINTENANCE,10/03/16,,Technical And Service Support,"Works - Construction, R&M"
040316K,VISTA LANDSCAPE MANAGEMENT LTD,121618,7,25.77,GROUNDS MAINTENANCE,10/03/16,,Technical And Service Support,"Works - Construction, R&M"
040316K,VISTA LANDSCAPE MANAGEMENT LTD,121618,8,17.25,GROUNDS MAINTENANCE,10/03/16,,Technical And Service Support,"Works - Construction, R&M"
040316K,VISTA LANDSCAPE MANAGEMENT LTD,121618,9,46.00,GROUNDS MAINTENANCE,10/03/16,,Technical And Service Support,"Works - Construction, R&M"
040316K,VISTA LANDSCAPE MANAGEMENT LTD,121618,10,11.50,GROUNDS MAINTENANCE,10/03/16,,Technical And Service Support,"Works - Construction, R&M"
040316K,VISTA LANDSCAPE MANAGEMENT LTD,121618,11,109.25,GROUNDS MAINTENANCE,10/03/16,,Technical And Service Support,"Works - Construction, R&M"
040316K,VISTA LANDSCAPE MANAGEMENT LTD,121618,12,11.50,GROUNDS MAINTENANCE,10/03/16,,Technical And Service Support,"Works - Construction, R&M"
040316K,VISTA LANDSCAPE MANAGEMENT LTD,121618,13,82.52,GROUNDS MAINTENANCE,10/03/16,,Technical And Service Support,"Works - Construction, R&M"
040316K,VISTA LANDSCAPE MANAGEMENT LTD,121618,14,22.05,GROUNDS MAINTENANCE,10/03/16,,Technical And Service Support,"Works - Construction, R&M"
040316K,VISTA LANDSCAPE MANAGEMENT LTD,121618,15,17.25,GROUNDS MAINTENANCE,10/03/16,,Technical And Service Support,"Works - Construction, R&M"
040316K,VISTA LANDSCAPE MANAGEMENT LTD,121618,16,127.05,GROUNDS MAINTENANCE,10/03/16,,Technical And Service Support,"Works - Construction, R&M"
040316K,VISTA LANDSCAPE MANAGEMENT LTD,121618,17,11.50,GROUNDS MAINTENANCE,10/03/16,,Technical And Service Support,"Works - Construction, R&M"
040316K,VISTA LANDSCAPE MANAGEMENT LTD,121618,18,17.25,GROUNDS MAINTENANCE,10/03/16,,Technical And Service Support,"Works - Construction, R&M"
040316K,VISTA LANDSCAPE MANAGEMENT LTD,121618,19,11.50,GROUNDS MAINTENANCE,10/03/16,,Technical And Service Support,"Works - Construction, R&M"
040316K,VISTA LANDSCAPE MANAGEMENT LTD,121618,20,17.25,GROUNDS MAINTENANCE,10/03/16,,Technical And Service Support,"Works - Construction, R&M"
040316K,VISTA LANDSCAPE MANAGEMENT LTD,121618,21,22.36,GROUNDS MAINTENANCE,10/03/16,,Technical And Service Support,"Works - Construction, R&M"
040316K,VISTA LANDSCAPE MANAGEMENT LTD,121618,22,11.50,GROUNDS MAINTENANCE,10/03/16,,Technical And Service Support,"Works - Construction, R&M"
040316K,VISTA LANDSCAPE MANAGEMENT LTD,121618,23,11.50,GROUNDS MAINTENANCE,10/03/16,,Technical And Service Support,"Works - Construction, R&M"
040316K,VISTA LANDSCAPE MANAGEMENT LTD,121618,24,79.85,GROUNDS MAINTENANCE,10/03/16,,Technical And Service Support,"Works - Construction, R&M"
040316K,VISTA LANDSCAPE MANAGEMENT LTD,121618,25,83.96,GROUNDS MAINTENANCE,10/03/16,,Technical And Service Support,"Works - Construction, R&M"
040316K,VISTA LANDSCAPE MANAGEMENT LTD,121618,26,17.25,GROUNDS MAINTENANCE,10/03/16,,Technical And Service Support,"Works - Construction, R&M"
040316K,VISTA LANDSCAPE MANAGEMENT LTD,121618,27,256.21,GROUNDS MAINTENANCE,10/03/16,,Technical And Service Support,"Works - Construction, R&M"
040316K,VISTA LANDSCAPE MANAGEMENT LTD,121618,28,17.26,GROUNDS MAINTENANCE,10/03/16,,Technical And Service Support,"Works - Construction, R&M"
040316K,VISTA LANDSCAPE MANAGEMENT LTD,121618,29,63.14,GROUNDS MAINTENANCE,10/03/16,,Technical And Service Support,"Works - Construction, R&M"
040316K,VISTA LANDSCAPE MANAGEMENT LTD,121618,30,11.50,GROUNDS MAINTENANCE,10/03/16,,Technical And Service Support,"Works - Construction, R&M"
040316K,VISTA LANDSCAPE MANAGEMENT LTD,121618,31,11.50,GROUNDS MAINTENANCE,10/03/16,,Technical And Service Support,"Works - Construction, R&M"
040316K,VISTA LANDSCAPE MANAGEMENT LTD,121618,32,16.63,GROUNDS MAINTENANCE,10/03/16,,Technical And Service Support,"Works - Construction, R&M"
040316K,VISTA LANDSCAPE MANAGEMENT LTD,121618,33,73.18,GROUNDS MAINTENANCE,10/03/16,,Technical And Service Support,"Works - Construction, R&M"
040316K,VISTA LANDSCAPE MANAGEMENT LTD,121618,34,118.23,GROUNDS MAINTENANCE,10/03/16,,Technical And Service Support,"Works - Construction, R&M"
040316K,VISTA LANDSCAPE MANAGEMENT LTD,121618,35,555.00,GROUNDS MAINTENANCE,10/03/16,,Technical And Service Support,"Works - Construction, R&M"
040316K,VISTA LANDSCAPE MANAGEMENT LTD,121618,36,20.83,GROUNDS MAINTENANCE,10/03/16,,Technical And Service Support,"Works - Construction, R&M"
040316K,VISTA LANDSCAPE MANAGEMENT LTD,121618,37,64.28,GROUNDS MAINTENANCE,10/03/16,,Technical And Service Support,"Works - Construction, R&M"
040316K,VISTA LANDSCAPE MANAGEMENT LTD,121618,38,12.50,GROUNDS MAINTENANCE,10/03/16,,Technical And Service Support,"Works - Construction, R&M"
030316G,GEORGE JONES & SON LTD========,1276,1,"24,706.55",STRATEGIC (NON CYCLICAL),10/03/16,"24,706.55",Technical and Service Support,"Works - Construction, R&M"
190216G,REAM CONTRACTS LTD,13525,1,"1,506.68",DEVELOPMENT  EXPENSES-CONTRACT,10/03/16,"1,506.68",Technical and Service Support,Building Constr Materials
040316K,DIAMOND BUILD PLC=============,14246,1,"47,694.20",DEVELOPMENT  EXPENSES-CONTRACT,10/03/16,"59,617.20",Technical and Service Support,"Works - Construction, R&M"
040316K,DIAMOND BUILD PLC=============,14246,2,"11,923.00",STRATEGIC (NON CYCLICAL),10/03/16,,Technical and Service Support,"Works - Construction, R&M"
040316K,SURREY BLIND & CURTAIN CO=====,14979,1,473.50,FIXTURES & FITTINGS,10/03/16,473.50,Technical And Service Support,"Works - Construction, R&M"
040316K,GP CONTRACTS==================,15428,1,180.00,STRATEGIC (CYCLICAL),10/03/16,"4,650.00",Technical and Service Support,Furniture
040316K,GP CONTRACTS==================,15428,2,400.00,STRATEGIC (CYCLICAL),10/03/16,,Technical and Service Support,Furniture
040316K,GP CONTRACTS==================,15428,3,190.00,STRATEGIC (CYCLICAL),10/03/16,,Technical and Service Support,Furniture
040316K,GP CONTRACTS==================,15428,4,190.00,STRATEGIC (CYCLICAL),10/03/16,,Technical and Service Support,Furniture
040316K,GP CONTRACTS==================,15428,5,270.00,STRATEGIC (CYCLICAL),10/03/16,,Technical and Service Support,Furniture
040316K,GP CONTRACTS==================,15428,6,800.00,STRATEGIC (CYCLICAL),10/03/16,,Technical and Service Support,Furniture
040316K,GP CONTRACTS==================,15428,7,940.00,STRATEGIC (CYCLICAL),10/03/16,,Technical and Service Support,Furniture
040316K,GP CONTRACTS==================,15428,8,190.00,STRATEGIC (CYCLICAL),10/03/16,,Technical and Service Support,Furniture
040316K,GP CONTRACTS==================,15428,9,610.00,STRATEGIC (CYCLICAL),10/03/16,,Technical and Service Support,Furniture
040316K,GP CONTRACTS==================,15428,10,190.00,STRATEGIC (CYCLICAL),10/03/16,,Technical and Service Support,Furniture
040316K,GP CONTRACTS==================,15428,11,190.00,STRATEGIC (CYCLICAL),10/03/16,,Technical and Service Support,Furniture
040316K,GP CONTRACTS==================,15428,12,230.00,STRATEGIC (CYCLICAL),10/03/16,,Technical and Service Support,Furniture
040316K,GP CONTRACTS==================,15428,13,270.00,STRATEGIC (CYCLICAL),10/03/16,,Technical and Service Support,Furniture
290216K,BUREAU VERITAS HS&E LTD=======,16002295,1,"97,510.95",SCIENTIFIC SERVICES,10/03/16,"97,510.95",Procurement,Environmental Services
040316K,PA ASSOCIATES (UK) LTD========,16014,1,751.75,DAY TO DAY MINOR IMPS,10/03/16,751.75,Property PFI,Environmental Services
040316K,PA ASSOCIATES (UK) LTD========,16015,1,751.75,DAY TO DAY MINOR IMPS,10/03/16,751.75,Property PFI,Environmental Services
040316K,PA ASSOCIATES (UK) LTD========,16016,1,751.75,DAY TO DAY MINOR IMPS,10/03/16,751.75,Property PFI,Environmental Services
800076667,*NPS (SHOES) LTD,16227,1,58.90,CLOTHING,10/03/16,"2,043.60",Firefighter Trainees,Clothing
800076667,*NPS (SHOES) LTD,16227,2,58.90,CLOTHING,10/03/16,,Firefighter Trainees,Clothing
800076667,*NPS (SHOES) LTD,16227,3,58.90,CLOTHING,10/03/16,,Firefighter Trainees,Clothing
800076667,*NPS (SHOES) LTD,16227,4,58.90,CLOTHING,10/03/16,,Firefighter Trainees,Clothing
800076667,*NPS (SHOES) LTD,16227,5,58.90,CLOTHING,10/03/16,,Firefighter Trainees,Clothing
800076667,*NPS (SHOES) LTD,16227,6,58.90,CLOTHING,10/03/16,,Firefighter Trainees,Clothing
800076667,*NPS (SHOES) LTD,16227,7,58.90,CLOTHING,10/03/16,,Firefighter Trainees,Clothing
800076667,*NPS (SHOES) LTD,16227,8,58.90,CLOTHING,10/03/16,,Firefighter Trainees,Clothing
800076667,*NPS (SHOES) LTD,16227,9,58.90,CLOTHING,10/03/16,,Firefighter Trainees,Clothing
800076667,*NPS (SHOES) LTD,16227,10,58.90,CLOTHING,10/03/16,,Firefighter Trainees,Clothing
800076667,*NPS (SHOES) LTD,16227,11,58.90,CLOTHING,10/03/16,,Firefighter Trainees,Clothing
800076667,*NPS (SHOES) LTD,16227,12,29.45,CLOTHING,10/03/16,,Operations Fire Stations,Clothing
800076667,*NPS (SHOES) LTD,16227,13,29.45,CLOTHING,10/03/16,,Operations Fire Stations,Clothing
800076667,*NPS (SHOES) LTD,16227,14,41.10,CLOTHING,10/03/16,,Operations Fire Stations,Clothing
800076667,*NPS (SHOES) LTD,16227,15,29.45,CLOTHING,10/03/16,,Operations Fire Stations,Clothing
800076667,*NPS (SHOES) LTD,16227,16,29.45,CLOTHING,10/03/16,,Operations Fire Stations,Clothing
800076667,*NPS (SHOES) LTD,16227,17,29.45,CLOTHING,10/03/16,,Operations Fire Stations,Clothing
800076667,*NPS (SHOES) LTD,16227,18,29.45,CLOTHING,10/03/16,,Operations Fire Stations,Clothing
800076667,*NPS (SHOES) LTD,16227,19,34.40,CLOTHING,10/03/16,,Operations Fire Stations,Clothing
800076667,*NPS (SHOES) LTD,16227,20,60.10,CLOTHING,10/03/16,,Operations Fire Stations,Clothing
800076667,*NPS (SHOES) LTD,16227,21,29.45,CLOTHING,10/03/16,,Operations Fire Stations,Clothing
800076667,*NPS (SHOES) LTD,16227,22,30.05,CLOTHING,10/03/16,,Operations Fire Stations,Clothing
800076667,*NPS (SHOES) LTD,16227,23,29.45,CLOTHING,10/03/16,,Operations Fire Stations,Clothing
800076667,*NPS (SHOES) LTD,16227,24,30.05,CLOTHING,10/03/16,,Operational Response,Clothing
800076667,*NPS (SHOES) LTD,16227,25,34.40,CLOTHING,10/03/16,,Operations Fire Stations,Clothing
800076667,*NPS (SHOES) LTD,16227,26,29.45,CLOTHING,10/03/16,,Operations Fire Stations,Clothing
800076667,*NPS (SHOES) LTD,16227,27,41.10,CLOTHING,10/03/16,,Operations Fire Stations,Clothing
800076667,*NPS (SHOES) LTD,16227,28,30.05,CLOTHING,10/03/16,,Operations Fire Stations,Clothing
800076667,*NPS (SHOES) LTD,16227,29,29.45,CLOTHING,10/03/16,,Operations Fire Stations,Clothing
800076667,*NPS (SHOES) LTD,16227,30,30.05,CLOTHING,10/03/16,,Fire Safety Regulation,Clothing
800076667,*NPS (SHOES) LTD,16227,31,29.45,CLOTHING,10/03/16,,Operations Fire Stations,Clothing
800076667,*NPS (SHOES) LTD,16227,32,29.45,CLOTHING,10/03/16,,Operations Fire Stations,Clothing
800076667,*NPS (SHOES) LTD,16227,33,29.45,CLOTHING,10/03/16,,Operations Fire Stations,Clothing
800076667,*NPS (SHOES) LTD,16227,34,60.10,CLOTHING,10/03/16,,Operations Fire Stations,Clothing
800076667,*NPS (SHOES) LTD,16227,35,29.45,CLOTHING,10/03/16,,Operations Fire Stations,Clothing
800076667,*NPS (SHOES) LTD,16227,36,29.45,CLOTHING,10/03/16,,Operations Fire Stations,Clothing
800076667,*NPS (SHOES) LTD,16227,37,29.45,CLOTHING,10/03/16,,Operations Fire Stations,Clothing
800076667,*NPS (SHOES) LTD,16227,38,35.00,CLOTHING,10/03/16,,Operations Fire Stations,Clothing
800076667,*NPS (SHOES) LTD,16227,39,29.45,CLOTHING,10/03/16,,Operations Fire Stations,Clothing
800076667,*NPS (SHOES) LTD,16227,40,29.45,CLOTHING,10/03/16,,Operations Fire Stations,Clothing
800076667,*NPS (SHOES) LTD,16227,41,29.45,CLOTHING,10/03/16,,Operations Fire Stations,Clothing
800076667,*NPS (SHOES) LTD,16227,42,29.45,CLOTHING,10/03/16,,Operations Fire Stations,Clothing
800076667,*NPS (SHOES) LTD,16227,43,30.05,CLOTHING,10/03/16,,Operations Fire Stations,Clothing
800076667,*NPS (SHOES) LTD,16227,44,30.05,CLOTHING,10/03/16,,Operations Fire Stations,Clothing
800076667,*NPS (SHOES) LTD,16227,45,30.05,CLOTHING,10/03/16,,Operations Fire Stations,Clothing
800076667,*NPS (SHOES) LTD,16227,46,30.05,CLOTHING,10/03/16,,Operations Fire Stations,Clothing
800076667,*NPS (SHOES) LTD,16227,47,41.10,CLOTHING,10/03/16,,Operations Fire Stations,Clothing
800076667,*NPS (SHOES) LTD,16227,48,30.05,CLOTHING,10/03/16,,Operations Fire Stations,Clothing
800076667,*NPS (SHOES) LTD,16227,49,30.05,CLOTHING,10/03/16,,Fire Safety Regulation,Clothing
800076667,*NPS (SHOES) LTD,16227,50,41.10,CLOTHING,10/03/16,,Operations Fire Stations,Clothing
800076667,*NPS (SHOES) LTD,16227,51,29.45,CLOTHING,10/03/16,,Operations Fire Stations,Clothing
800076667,*NPS (SHOES) LTD,16227,52,29.45,CLOTHING,10/03/16,,Operations Fire Stations,Clothing
800076667,*NPS (SHOES) LTD,16227,53,29.45,CLOTHING,10/03/16,,Operations Fire Stations,Clothing
800076667,*NPS (SHOES) LTD,16227,54,29.45,CLOTHING,10/03/16,,Operations Fire Stations,Clothing
040316K,ENGIE,1800003555,1,"1,345.80",STRATEGIC (NON CYCLICAL),10/03/16,"1,345.80",Technical and Service Support,"Works - Construction, R&M"
290216K,COMMUNITIES & LOCAL GOVERNMENT,1800022293,1,"122,993.53",RADIO,10/03/16,"131,410.35",Information and Communication Technology,ICT
290216K,COMMUNITIES & LOCAL GOVERNMENT,1800022293,2,"8,416.82",RADIO,10/03/16,,Information and Communication Technology,ICT
070316K,INSTITUTION OF FIRE ENGINEERS=,197,1,253.31,CONSULTANTS,10/03/16,253.31,National Operational Guidance Project,Human Resources
040316K,ENERGY AUDITING AGENCY LTD====,20161194,1,990.00,PROFESSIONAL SERVICES,10/03/16,990.00,Technical And Service Support,Statutory Bodies
040316K,ENERGY AUDITING AGENCY LTD====,20161196,1,990.00,PROFESSIONAL SERVICES,10/03/16,990.00,Technical And Service Support,Statutory Bodies
070316K,KENT FIRE & RESCUE SERVICE,201705,1,"4,462.16",FIRE AUTHS-MUTUAL ASSISTANCE,10/03/16,"4,462.16",National Operational Guidance Project,Statutory Bodies
141390,THAMES WATER UTILITIES LTD====,2061155255B,1,790.79,WATER & SEWERAGE RATES,10/03/16,790.79,Technical And Service Support,Utilities
030316G,CHAIN GANG,21229,1,564.07,POSTAL SERVICES,10/03/16,564.07,Information Management,Mail Services
141393,MISS SARAH LE FEVRE===========,232184 A,2,950.32,PROFESSIONAL FEES ENFORCEMENT,10/03/16,950.32,Legal & Democratic Services,Legal Services
141393,MISS BO-EUN JUNG==============,233892C,1,630.00,PROFESSIONAL FEES ENFORCEMENT,10/03/16,630.00,Legal & Democratic Services,Legal Services
141390,MS HEATHER OLIVER,235815,1,"1,040.00",PROFESSIONAL FEES ENFORCEMENT,10/03/16,"1,040.00",Legal & Democratic Services,Legal Services
040316K,GRADIENT CONSULTANTS LLP======,2555,1,350.00,ASBESTOS,10/03/16,"3,150.00",Technical and Service Support,"Works - Construction, R&M"
040316K,GRADIENT CONSULTANTS LLP======,2555,2,350.00,ASBESTOS,10/03/16,,Technical and Service Support,"Works - Construction, R&M"
040316K,GRADIENT CONSULTANTS LLP======,2555,3,350.00,ASBESTOS,10/03/16,,Technical and Service Support,"Works - Construction, R&M"
040316K,GRADIENT CONSULTANTS LLP======,2555,4,350.00,ASBESTOS,10/03/16,,Technical and Service Support,"Works - Construction, R&M"
040316K,GRADIENT CONSULTANTS LLP======,2555,5,350.00,ASBESTOS,10/03/16,,Technical and Service Support,"Works - Construction, R&M"
040316K,GRADIENT CONSULTANTS LLP======,2555,6,350.00,ASBESTOS,10/03/16,,Technical and Service Support,"Works - Construction, R&M"
040316K,GRADIENT CONSULTANTS LLP======,2555,7,350.00,ASBESTOS,10/03/16,,Technical and Service Support,"Works - Construction, R&M"
040316K,GRADIENT CONSULTANTS LLP======,2555,8,350.00,ASBESTOS,10/03/16,,Technical and Service Support,"Works - Construction, R&M"
040316K,GRADIENT CONSULTANTS LLP======,2555,9,350.00,ASBESTOS,10/03/16,,Technical and Service Support,"Works - Construction, R&M"
800077251,ADECCO UK LIMITED=============,27292704,1,757.05,FRS STAFF AGENCY,10/03/16,757.05,Information and Communication Technology,Human Resources
800077289,ADECCO UK LIMITED=============,27298741,1,762.88,FRS STAFF AGENCY,10/03/16,762.88,Information and Communication Technology,Human Resources
800077288,ADECCO UK LIMITED=============,27298742,1,596.00,FRS STAFF AGENCY,10/03/16,596.00,Information and Communication Technology,Human Resources
800077287,ADECCO UK LIMITED=============,27298743,1,786.72,FRS STAFF AGENCY,10/03/16,786.72,Information and Communication Technology,Human Resources
800077286,ADECCO UK LIMITED=============,27298744,1,667.52,FRS STAFF AGENCY,10/03/16,667.52,Information and Communication Technology,Human Resources
800077285,ADECCO UK LIMITED=============,27298745,1,596.00,FRS STAFF AGENCY,10/03/16,596.00,Information and Communication Technology,Human Resources
800077244,ADECCO UK LIMITED=============,27346752,1,"1,598.60",FRS STAFF AGENCY,10/03/16,"1,598.60",Information and Communication Technology,Human Resources
800077240,ADECCO UK LIMITED=============,27346754,1,"1,598.60",FRS STAFF AGENCY,10/03/16,"1,598.60",Information and Communication Technology,Human Resources
800077241,ADECCO UK LIMITED=============,27346755,1,"1,598.60",FRS STAFF AGENCY,10/03/16,"1,598.60",Information and Communication Technology,Human Resources
800077242,ADECCO UK LIMITED=============,27353422,1,"1,918.32",FRS STAFF AGENCY,10/03/16,"1,918.32",Information and Communication Technology,Human Resources
800077268,ADECCO UK LIMITED=============,27356162,1,263.76,FRS STAFF AGENCY,10/03/16,263.76,Fire Safety Regulation,Human Resources
800077247,ADECCO UK LIMITED=============,27356164,1,351.68,FRS STAFF AGENCY,10/03/16,351.68,Fire Safety Regulation,Human Resources
800076681,ADECCO UK LIMITED=============,27356177,1,641.90,FRS STAFF AGENCY,10/03/16,641.90,Technical And Service Support,Human Resources
800077243,ADECCO UK LIMITED=============,27359502,1,"1,598.60",FRS STAFF AGENCY,10/03/16,"1,598.60",Information and Communication Technology,Human Resources
800077257,ADECCO UK LIMITED=============,27375305,1,454.23,FRS STAFF AGENCY,10/03/16,454.23,Information and Communication Technology,Human Resources
800077270,ADECCO UK LIMITED=============,27375306,1,"1,397.72",FRS STAFF AGENCY,10/03/16,"1,397.72",Legal & Democratic Services,Human Resources
800077271,ADECCO UK LIMITED=============,27375307,1,"1,516.90",FRS STAFF AGENCY,10/03/16,"1,516.90",Legal & Democratic Services,Human Resources
800077252,ADECCO UK LIMITED=============,27375308,1,757.05,FRS STAFF AGENCY,10/03/16,757.05,Information and Communication Technology,Human Resources
800077253,ADECCO UK LIMITED=============,27375309,1,757.05,FRS STAFF AGENCY,10/03/16,757.05,Information and Communication Technology,Human Resources
800077254,ADECCO UK LIMITED=============,27375310,1,605.64,FRS STAFF AGENCY,10/03/16,605.64,Information and Communication Technology,Human Resources
800077255,ADECCO UK LIMITED=============,27375311,1,692.16,FRS STAFF AGENCY,10/03/16,692.16,Information and Communication Technology,Human Resources
800077256,ADECCO UK LIMITED=============,27375312,1,757.05,FRS STAFF AGENCY,10/03/16,757.05,Information and Communication Technology,Human Resources
800076742,ADECCO UK LIMITED=============,27388771,1,"1,204.50",FRS STAFF AGENCY,10/03/16,"1,204.50",National Operational Guidance Project,Human Resources
040316K,AECOM INFRASTRUCTURE &,28249059,1,"14,545.02",STRATEGIC (NON CYCLICAL),10/03/16,"14,545.02",Technical And Service Support,Consultancy
040316K,ARKAS LIMITED=================,28429,1,871.80,STRATEGIC (CYCLICAL),10/03/16,"1,551.11",Technical And Service Support,"Works - Construction, R&M"
040316K,ARKAS LIMITED=================,28429,2,197.50,TACTICAL DAY TO DAY,10/03/16,,Technical And Service Support,"Works - Construction, R&M"
040316K,ARKAS LIMITED=================,28429,3,267.81,STRATEGIC (CYCLICAL),10/03/16,,Technical And Service Support,"Works - Construction, R&M"
040316K,ARKAS LIMITED=================,28429,4,214.00,STRATEGIC (CYCLICAL),10/03/16,,Technical And Service Support,"Works - Construction, R&M"
040316K,ARKAS LIMITED=================,28465,1,181.00,STRATEGIC (CYCLICAL),10/03/16,"1,298.08",Technical And Service Support,"Works - Construction, R&M"
040316K,ARKAS LIMITED=================,28465,2,738.58,STRATEGIC (CYCLICAL),10/03/16,,Technical And Service Support,"Works - Construction, R&M"
040316K,ARKAS LIMITED=================,28465,3,181.00,STRATEGIC (CYCLICAL),10/03/16,,Technical And Service Support,"Works - Construction, R&M"
040316K,ARKAS LIMITED=================,28465,4,197.50,STRATEGIC (CYCLICAL),10/03/16,,Technical And Service Support,"Works - Construction, R&M"
040316K,ARKAS LIMITED=================,28551,1,984.00,STRATEGIC (CYCLICAL),10/03/16,984.00,Technical and Service Support,"Works - Construction, R&M"
040316K,DRAEGER SAFETY UK LIMITED=====,2910042404,1,434.20,PROTECTIVE EQUIPT - PARTS,10/03/16,434.20,Technical and Service Support,Fire & Rescue
240216G,DRAEGER SAFETY UK LIMITED=====,2910042928,1,365.21,REPAIR & MAINTENANCE,10/03/16,365.21,Technical And Service Support,Fire & Rescue
220216G,THE UTILITIES EXCHANGE LTD====,3091,1,"2,243.75",CONSULTANTS,10/03/16,"2,243.75",Technical And Service Support,Environmental Services
141390,CIPFA BUSINESS,3115747,1,"3,410.00",PAYMENTS IN ADVANCE,10/03/16,"3,410.00",Do not include,Human Resources
141390,CIPFA BUSINESS,3116786,1,"2,680.00",PAYMENTS IN ADVANCE,10/03/16,"2,680.00",Do not include,Human Resources
040316K,TEAM PURPLE LIMITED===========,3373,1,172.00,CLOTHING,10/03/16,346.82,Operations Fire Stations,Fire & Rescue
040316K,TEAM PURPLE LIMITED===========,3373,2,135.00,CLOTHING,10/03/16,,Operations Fire Stations,Fire & Rescue
040316K,TEAM PURPLE LIMITED===========,3373,3,39.82,CLOTHING,10/03/16,,Operations Fire Stations,Fire & Rescue
290216K,HUNTERS CONTRACTS LIMITED,353393,1,"1,050.00",OFFICE EQUIPMENT,10/03/16,"1,170.00",Exercise Unified Response,Furniture
290216K,HUNTERS CONTRACTS LIMITED,353393,2,120.00,OFFICE EQUIPMENT,10/03/16,,Exercise Unified Response,Furniture
290216K,HUNTERS CONTRACTS LIMITED,353394,1,630.00,OFFICE FURNITURE,10/03/16,630.00,Operations Fire Stations,Furniture
290216K,HUNTERS CONTRACTS LIMITED,353396,1,315.00,OFFICE FURNITURE,10/03/16,315.00,Operations Fire Stations,Furniture
290216K,HUNTERS CONTRACTS LIMITED,353397,1,189.00,OFFICE FURNITURE,10/03/16,567.00,Operations Fire Stations,Furniture
290216K,HUNTERS CONTRACTS LIMITED,353397,2,378.00,OFFICE FURNITURE,10/03/16,,Operations Fire Stations,Furniture
070316K,YMCA GEORGE WILLIAMS COLLEGE,367,1,"3,450.00",PROFESSIONAL DEVELOPMENT,10/03/16,"3,450.00",Fire Safety Regulation,Human Resources
070316K,YMCA GEORGE WILLIAMS COLLEGE,371,1,"3,450.00",PROFESSIONAL DEVELOPMENT,10/03/16,"3,450.00",Fire Safety Regulation,Human Resources
040316K,TECHNIFORM GRAPHICS LTD=======,404649,1,"1,050.00",DAY TO DAY MINOR IMPS,10/03/16,"1,050.00",Property PFI,Building Constr Materials
030316G,DEALERSHIP SERVICES LTD,4190,1,138.00,CLOTHING,10/03/16,276.00,Cadets,Clothing
030316G,DEALERSHIP SERVICES LTD,4190,2,69.00,CLOTHING,10/03/16,,Cadets,Clothing
030316G,DEALERSHIP SERVICES LTD,4190,3,69.00,CLOTHING,10/03/16,,Cadets,Clothing
040316K,VIGILANCE PROPERTIES,4525,1,"7,500.00",PREMISES SECURITY,10/03/16,"24,204.00",Technical And Service Support,Facilities & Management S
040316K,VIGILANCE PROPERTIES,4525,2,"2,352.00",PREMISES SECURITY,10/03/16,,Technical And Service Support,Facilities & Management S
040316K,VIGILANCE PROPERTIES,4525,3,"4,644.00",PREMISES SECURITY,10/03/16,,Technical And Service Support,Facilities & Management S
040316K,VIGILANCE PROPERTIES,4525,4,"9,708.00",PREMISES SECURITY,10/03/16,,Technical And Service Support,Facilities & Management S
040316K,VIGILANCE PROPERTIES,4528,1,"4,217.12",PREMISES SECURITY,10/03/16,"9,750.00",Technical And Service Support,Facilities & Management S
040316K,VIGILANCE PROPERTIES,4528,2,"5,532.88",PREMISES SECURITY,10/03/16,,Technical And Service Support,Facilities & Management S
040316K,VIGILANCE PROPERTIES,4529,1,"4,717.12",PREMISES SECURITY,10/03/16,"9,750.00",Technical And Service Support,Facilities & Management S
040316K,VIGILANCE PROPERTIES,4529,2,"5,032.88",PREMISES SECURITY,10/03/16,,Technical And Service Support,Facilities & Management S
190216G,UNDERSTANDING RECRUITMENT,4693,1,"3,080.00",CONSULTANTS,10/03/16,"3,080.00",Information and Communication Technology,Human Resources
040316K,SAFEGUARD PEST CON. & ENV.LTD,46951,1,360.00,PEST CONTROL,10/03/16,360.00,Technical And Service Support,Environmental Services
040316K,KNIGHTON CLEANING SERVICES LTD,50798,1,"1,356.50",HYGIENE,10/03/16,"1,356.50",Technical And Service Support,Cleaning & Janitorial
141390,ARQUIVA LIMITED===============,52031322,1,418.00,RENTS,10/03/16,418.00,Technical And Service Support,Building Constr Materials
141390,ARQUIVA LIMITED===============,52031323,1,437.00,RENTS,10/03/16,437.00,Technical And Service Support,Building Constr Materials
141390,ARQUIVA LIMITED===============,52031325,1,473.00,RENTS,10/03/16,473.00,Technical And Service Support,Building Constr Materials
141390,ARQUIVA LIMITED===============,52031326,1,488.00,RENTS,10/03/16,488.00,Technical And Service Support,Building Constr Materials
141390,ARQUIVA LIMITED===============,52031328,1,499.00,RENTS,10/03/16,499.00,Technical And Service Support,Building Constr Materials
800076916,HAYS SPECIALIST RECRUITMENT,528690,1,704.90,FRS STAFF AGENCY,10/03/16,704.90,Information and Communication Technology,Human Resources
800076921,HAYS SPECIALIST RECRUITMENT,528691,1,431.20,FRS STAFF AGENCY,10/03/16,431.20,Technical And Service Support,Human Resources
800076904,HAYS SPECIALIST RECRUITMENT,528692,1,610.75,FRS STAFF AGENCY,10/03/16,610.75,Procurement,Human Resources
800076909,HAYS SPECIALIST RECRUITMENT,528693,1,"1,262.10",FRS STAFF AGENCY,10/03/16,"1,262.10",Legal & Democratic Services,Human Resources
800076888,HAYS SPECIALIST RECRUITMENT,528694,1,596.05,FRS STAFF AGENCY,10/03/16,596.05,Technical And Service Support,Human Resources
800076922,HAYS SPECIALIST RECRUITMENT,528695,1,850.15,FRS STAFF AGENCY,10/03/16,850.15,Information Management,Human Resources
800076910,HAYS SPECIALIST RECRUITMENT,528696,1,596.05,FRS STAFF AGENCY,10/03/16,596.05,HR Management,Human Resources
800076902,HAYS SPECIALIST RECRUITMENT,528697,1,610.75,FRS STAFF AGENCY,10/03/16,610.75,Fire Safety Regulation,Human Resources
800076882,HAYS SPECIALIST RECRUITMENT,528698,1,793.20,FRS STAFF AGENCY,10/03/16,793.20,Operational Resilience,Human Resources
800077029,HAYS SPECIALIST RECRUITMENT,528699,1,"1,246.78",FRS STAFF AGENCY,10/03/16,"1,246.78",Legal & Democratic Services,Human Resources
800076906,HAYS SPECIALIST RECRUITMENT,528700,1,476.84,FRS STAFF AGENCY,10/03/16,476.84,Fire Safety Regulation,Human Resources
800076901,HAYS SPECIALIST RECRUITMENT,528701,1,357.63,FRS STAFF AGENCY,10/03/16,357.63,HR Management,Human Resources
800076887,HAYS SPECIALIST RECRUITMENT,528702,1,801.84,FRS STAFF AGENCY,10/03/16,801.84,Procurement,Human Resources
800076895,HAYS SPECIALIST RECRUITMENT,528703,1,707.70,FRS STAFF AGENCY,10/03/16,707.70,Communications,Human Resources
800076883,HAYS SPECIALIST RECRUITMENT,528704,1,596.05,FRS STAFF AGENCY,10/03/16,596.05,Operations Non Fire Stations,Human Resources
800076885,HAYS SPECIALIST RECRUITMENT,528705,1,596.05,FRS STAFF AGENCY,10/03/16,596.05,Operations Non Fire Stations,Human Resources
800076900,HAYS SPECIALIST RECRUITMENT,528706,1,911.76,FRS STAFF AGENCY,10/03/16,911.76,Procurement,Human Resources
800076911,HAYS SPECIALIST RECRUITMENT,528707,1,701.40,FRS STAFF AGENCY,10/03/16,701.40,Technical And Service Support,Human Resources
800076898,HAYS SPECIALIST RECRUITMENT,528708,1,596.05,FRS STAFF AGENCY,10/03/16,596.05,Information Management,Human Resources
800076914,HAYS SPECIALIST RECRUITMENT,528709,1,839.43,FRS STAFF AGENCY,10/03/16,839.43,National Operational Guidance Project,Human Resources
800076923,HAYS SPECIALIST RECRUITMENT,528710,1,476.84,FRS STAFF AGENCY,10/03/16,476.84,Fire Safety Regulation,Human Resources
800076889,HAYS SPECIALIST RECRUITMENT,528711,1,610.05,FRS STAFF AGENCY,10/03/16,610.05,Technical And Service Support,Human Resources
800076917,HAYS SPECIALIST RECRUITMENT,528712,1,660.60,FRS STAFF AGENCY,10/03/16,660.60,Review of Property Services,Human Resources
800076918,HAYS SPECIALIST RECRUITMENT,528713,1,936.75,FRS STAFF AGENCY,10/03/16,936.75,Technical And Service Support,Human Resources
800076903,HAYS SPECIALIST RECRUITMENT,528714,1,476.84,FRS STAFF AGENCY,10/03/16,476.84,Fire Safety Regulation,Human Resources
800076907,HAYS SPECIALIST RECRUITMENT,528715,1,"1,105.92",FRS STAFF AGENCY,10/03/16,"1,105.92",National Operational Guidance Project,Human Resources
800076924,HAYS SPECIALIST RECRUITMENT,528716,1,272.48,FRS STAFF AGENCY,10/03/16,272.48,Fire Safety Regulation,Human Resources
800076893,HAYS SPECIALIST RECRUITMENT,528718,1,596.05,FRS STAFF AGENCY,10/03/16,596.05,Operations Non Fire Stations,Human Resources
800076884,HAYS SPECIALIST RECRUITMENT,528719,1,707.70,FRS STAFF AGENCY,10/03/16,707.70,Strategy & Inclusion,Human Resources
800076896,HAYS SPECIALIST RECRUITMENT,528721,1,"1,068.55",FRS STAFF AGENCY,10/03/16,"1,068.55",Technical And Service Support,Human Resources
800076892,HAYS SPECIALIST RECRUITMENT,528722,1,476.84,FRS STAFF AGENCY,10/03/16,476.84,Fire Safety Regulation,Human Resources
800076913,HAYS SPECIALIST RECRUITMENT,528723,1,357.63,FRS STAFF AGENCY,10/03/16,357.63,Technical And Service Support,Human Resources
800076886,HAYS SPECIALIST RECRUITMENT,528724,1,"1,790.80",FRS STAFF AGENCY,10/03/16,"1,790.80",National Operational Guidance Project,Human Resources
800076891,HAYS SPECIALIST RECRUITMENT,528725,1,"1,876.68",FRS STAFF AGENCY,10/03/16,"1,876.68",Legal & Democratic Services,Human Resources
800076897,HAYS SPECIALIST RECRUITMENT,528726,1,364.77,FRS STAFF AGENCY,10/03/16,364.77,National Operational Guidance Project,Human Resources
800076905,HAYS SPECIALIST RECRUITMENT,528727,1,603.40,FRS STAFF AGENCY,10/03/16,603.40,Procurement,Human Resources
800076890,HAYS SPECIALIST RECRUITMENT,528728,1,596.05,FRS STAFF AGENCY,10/03/16,596.05,Operations Non Fire Stations,Human Resources
800076908,HAYS SPECIALIST RECRUITMENT,528729,1,596.05,FRS STAFF AGENCY,10/03/16,596.05,Fire Safety Regulation,Human Resources
800076920,HAYS SPECIALIST RECRUITMENT,528730,1,566.16,FRS STAFF AGENCY,10/03/16,566.16,Community Safety Delivery,Human Resources
800076925,HAYS SPECIALIST RECRUITMENT,528731,1,596.05,FRS STAFF AGENCY,10/03/16,596.05,Fire Safety Regulation,Human Resources
800076894,HAYS SPECIALIST RECRUITMENT,528732,1,"1,446.55",FRS STAFF AGENCY,10/03/16,"1,446.55",Strategy & Inclusion,Human Resources
800076912,HAYS SPECIALIST RECRUITMENT,528733,1,707.70,FRS STAFF AGENCY,10/03/16,707.70,Exercise Unified Response,Human Resources
800076915,HAYS SPECIALIST RECRUITMENT,531026,1,476.84,FRS STAFF AGENCY,10/03/16,476.84,Technical And Service Support,Human Resources
800076964,HAYS SPECIALIST RECRUITMENT,531027,1,561.99,FRS STAFF AGENCY,10/03/16,561.99,Technical And Service Support,Human Resources
800077374,HAYS SPECIALIST RECRUITMENT,531747,1,563.92,FRS STAFF AGENCY,10/03/16,563.92,Information and Communication Technology,Human Resources
800077362,HAYS SPECIALIST RECRUITMENT,531748,1,610.75,FRS STAFF AGENCY,10/03/16,610.75,Procurement,Human Resources
800077368,HAYS SPECIALIST RECRUITMENT,531749,1,"1,262.09",FRS STAFF AGENCY,10/03/16,"1,262.09",Legal & Democratic Services,Human Resources
800077371,HAYS SPECIALIST RECRUITMENT,531750,1,561.99,FRS STAFF AGENCY,10/03/16,561.99,Technical And Service Support,Human Resources
800077347,HAYS SPECIALIST RECRUITMENT,531751,1,596.05,FRS STAFF AGENCY,10/03/16,596.05,HR Management,Human Resources
800077354,HAYS SPECIALIST RECRUITMENT,531752,1,610.75,FRS STAFF AGENCY,10/03/16,610.75,Fire Safety Regulation,Human Resources
800077361,HAYS SPECIALIST RECRUITMENT,531753,1,991.50,FRS STAFF AGENCY,10/03/16,991.50,Operational Resilience,Human Resources
800077359,HAYS SPECIALIST RECRUITMENT,531754,1,"1,402.63",FRS STAFF AGENCY,10/03/16,"1,402.63",Legal & Democratic Services,Human Resources
800077375,HAYS SPECIALIST RECRUITMENT,531755,1,476.84,FRS STAFF AGENCY,10/03/16,476.84,Fire Safety Regulation,Human Resources
800077369,HAYS SPECIALIST RECRUITMENT,531756,1,596.05,FRS STAFF AGENCY,10/03/16,596.05,HR Management,Human Resources
800077353,HAYS SPECIALIST RECRUITMENT,531758,1,707.70,FRS STAFF AGENCY,10/03/16,707.70,Communications,Human Resources
800077377,HAYS SPECIALIST RECRUITMENT,531759,1,536.44,FRS STAFF AGENCY,10/03/16,536.44,Operations Non Fire Stations,Human Resources
800077373,HAYS SPECIALIST RECRUITMENT,531760,1,476.84,FRS STAFF AGENCY,10/03/16,476.84,Operations Non Fire Stations,Human Resources
800077346,HAYS SPECIALIST RECRUITMENT,531761,1,596.05,FRS STAFF AGENCY,10/03/16,596.05,Information Management,Human Resources
800077345,HAYS SPECIALIST RECRUITMENT,531762,1,419.71,FRS STAFF AGENCY,10/03/16,419.71,National Operational Guidance Project,Human Resources
800077352,HAYS SPECIALIST RECRUITMENT,531763,1,353.37,FRS STAFF AGENCY,10/03/16,353.37,Fire Safety Regulation,Human Resources
800077379,HAYS SPECIALIST RECRUITMENT,531764,1,610.05,FRS STAFF AGENCY,10/03/16,610.05,Technical And Service Support,Human Resources
800077360,HAYS SPECIALIST RECRUITMENT,531765,1,924.84,FRS STAFF AGENCY,10/03/16,924.84,Review of Property Services,Human Resources
800077364,HAYS SPECIALIST RECRUITMENT,531766,1,936.75,FRS STAFF AGENCY,10/03/16,936.75,Technical And Service Support,Human Resources
800077363,HAYS SPECIALIST RECRUITMENT,531767,1,596.05,FRS STAFF AGENCY,10/03/16,596.05,Fire Safety Regulation,Human Resources
800077356,HAYS SPECIALIST RECRUITMENT,531768,1,596.05,FRS STAFF AGENCY,10/03/16,596.05,Fire Safety Regulation,Human Resources
800077372,HAYS SPECIALIST RECRUITMENT,531770,1,596.05,FRS STAFF AGENCY,10/03/16,596.05,Operations Non Fire Stations,Human Resources
800077344,HAYS SPECIALIST RECRUITMENT,531771,1,707.70,FRS STAFF AGENCY,10/03/16,707.70,Strategy & Inclusion,Human Resources
800077366,HAYS SPECIALIST RECRUITMENT,531773,1,"1,068.55",FRS STAFF AGENCY,10/03/16,"1,068.55",Technical And Service Support,Human Resources
800077378,HAYS SPECIALIST RECRUITMENT,531774,1,476.84,FRS STAFF AGENCY,10/03/16,476.84,Fire Safety Regulation,Human Resources
800077370,HAYS SPECIALIST RECRUITMENT,531776,1,255.44,FRS STAFF AGENCY,10/03/16,255.44,Technical And Service Support,Human Resources
800077376,HAYS SPECIALIST RECRUITMENT,531777,1,"1,407.51",FRS STAFF AGENCY,10/03/16,"1,407.51",Legal & Democratic Services,Human Resources
800077348,HAYS SPECIALIST RECRUITMENT,531778,1,364.77,FRS STAFF AGENCY,10/03/16,364.77,National Operational Guidance Project,Human Resources
800077343,HAYS SPECIALIST RECRUITMENT,531779,1,603.40,FRS STAFF AGENCY,10/03/16,603.40,Procurement,Human Resources
800077358,HAYS SPECIALIST RECRUITMENT,531780,1,596.05,FRS STAFF AGENCY,10/03/16,596.05,Operations Non Fire Stations,Human Resources
800077350,HAYS SPECIALIST RECRUITMENT,531781,1,596.05,FRS STAFF AGENCY,10/03/16,596.05,Fire Safety Regulation,Human Resources
800077365,HAYS SPECIALIST RECRUITMENT,531782,1,566.16,FRS STAFF AGENCY,10/03/16,566.16,Community Safety Delivery,Human Resources
800077351,HAYS SPECIALIST RECRUITMENT,531783,1,476.84,FRS STAFF AGENCY,10/03/16,476.84,Fire Safety Regulation,Human Resources
800077342,HAYS SPECIALIST RECRUITMENT,531784,1,"1,446.55",FRS STAFF AGENCY,10/03/16,"1,446.55",Strategy & Inclusion,Human Resources
800077349,HAYS SPECIALIST RECRUITMENT,531785,1,707.70,FRS STAFF AGENCY,10/03/16,707.70,Exercise Unified Response,Human Resources
070316K,FAHEY BUILDERS LTD============,5334,1,"1,670.00",STRATEGIC (CYCLICAL),10/03/16,"8,350.00",Technical and Service Support,"Works - Construction, R&M"
070316K,FAHEY BUILDERS LTD============,5334,2,"1,670.00",STRATEGIC (CYCLICAL),10/03/16,,Technical and Service Support,"Works - Construction, R&M"
070316K,FAHEY BUILDERS LTD============,5334,3,"1,670.00",STRATEGIC (CYCLICAL),10/03/16,,Technical and Service Support,"Works - Construction, R&M"
070316K,FAHEY BUILDERS LTD============,5334,4,"1,670.00",STRATEGIC (CYCLICAL),10/03/16,,Technical and Service Support,"Works - Construction, R&M"
070316K,FAHEY BUILDERS LTD============,5334,5,"1,670.00",STRATEGIC (CYCLICAL),10/03/16,,Technical and Service Support,"Works - Construction, R&M"
070316K,FAHEY BUILDERS LTD============,5335,1,"1,670.00",STRATEGIC (CYCLICAL),10/03/16,"6,680.00",Technical and Service Support,"Works - Construction, R&M"
070316K,FAHEY BUILDERS LTD============,5335,2,"1,670.00",STRATEGIC (CYCLICAL),10/03/16,,Technical and Service Support,"Works - Construction, R&M"
070316K,FAHEY BUILDERS LTD============,5335,3,"1,670.00",STRATEGIC (CYCLICAL),10/03/16,,Technical and Service Support,"Works - Construction, R&M"
070316K,FAHEY BUILDERS LTD============,5335,4,"1,670.00",STRATEGIC (CYCLICAL),10/03/16,,Technical and Service Support,"Works - Construction, R&M"
070316K,FAHEY BUILDERS LTD============,5336,1,"4,340.00",STRATEGIC (NON CYCLICAL),10/03/16,"4,340.00",Technical and Service Support,"Works - Construction, R&M"
141390,THAMES WATER UTILITIES LTD====,5951866003B,1,327.71,WATER & SEWERAGE RATES,10/03/16,327.71,Technical And Service Support,Utilities
190216G,CAPITA SECURE INFO SOLUTIONS,6060010095,1,"121,981.00",CAMS CONTRACT,10/03/16,"121,981.00",CAMS Project,ICT
141390,AFFINITY WATER,63099421N,1,989.78,WATER & SEWERAGE RATES,10/03/16,989.78,Technical And Service Support,Utilities
040316K,CONTRACT CATERING CONSULTANTS=,6358,1,500.00,CONSULTANTS,10/03/16,500.00,Technical And Service Support,Catering
141390,THAMES WATER UTILITIES LTD====,6593815579B,1,588.56,WATER & SEWERAGE RATES,10/03/16,588.56,Technical And Service Support,Utilities
040316K,GAS & AIR SERVICES (UK)=======,6892,1,500.00,PROFESSIONAL DEVELOPMENT,10/03/16,500.00,Technical And Service Support,Building Constr Materials
030316G,CANON (UK) LTD===============,770563371,1,390.83,OFFICE EQUIPMENT,10/03/16,390.83,Operational Response,ICT
070316K,VODAFONE LIMITED==============,79285126,1,"46,376.50",CELLULAR TELEPHONES,10/03/16,"46,376.50",Information and Communication Technology,ICT
141390,ALPHABET (GB) LIMITED,80060582,1,557.40,LEASE CAR CHARGES,10/03/16,"3,643.01",Procurement,Vehicle Management
141390,ALPHABET (GB) LIMITED,80060582,2,"3,085.61",P/PAYMTS-CAR LEASG-RENTAL,10/03/16,,Finance Services,Vehicle Management
141390,ALPHABET (GB) LIMITED,80060582,3,-310.89,VAT CAR LEASING,10/03/16,,Finance Services,Vehicle Management
141390,ALPHABET (GB) LIMITED,80060582,4,310.89,LEASE CAR CHARGES,10/03/16,,Procurement,Vehicle Management
190216G,*SUPPLIES TEAM================,8034900,1,595.00,PUBLIC RELATIONS,10/03/16,595.00,LFB 150th Anniversary,ICT
190216G,*SUPPLIES TEAM================,8034902,1,295.00,PUBLIC RELATIONS,10/03/16,295.00,LFB 150th Anniversary,ICT
070316K,MERLIN ELECTRICAL SERVICES LTD,8489,1,"5,745.64",STRATEGIC (NON CYCLICAL),10/03/16,"5,745.64",Technical and Service Support,Facilities & Management S
030316G,TWO SERVICES LTD==============,86637,1,735.50,CATERING EQUIPMENT,10/03/16,735.50,Operations Fire Stations,Catering
141390,BRITISH GAS BUSINESS==========,965068304,1,278.08,ELECTRICITY,10/03/16,278.08,Technical And Service Support,Utilities
290216K,SODEXO DEFENCE SERVICES,9900236745,1,"3,185.73",CATERING EQUIPMENT,10/03/16,"3,185.73",Exercise Unified Response,Fire & Rescue
030316G,PITNEY BOWES FINANCE PLC======,BL05314856,1,"1,483.38",OFFICE EQUIPMENT,10/03/16,"1,483.38",Information Management,Environmental Services
240216G,*GRAFTON MERCHANTING GB LTD,CRO/361307,1,300.00,OPERATIONAL EQUIP-PURCHASE,10/03/16,300.00,Operational Policy,Building Constr Materials
040316K,WM ENGINEERING SERVICES LTD===,I-4533,1,"1,783.00",STRATEGIC (NON CYCLICAL),10/03/16,"1,783.00",Technical And Service Support,"Works - Construction, R&M"
030316G,HALL FUELS,I08244208,1,"2,360.40",FUEL,10/03/16,"2,360.40",Operations Fire Stations,Vehicle Management
030316G,HALL FUELS,I08244209,1,"1,888.32",FUEL,10/03/16,"1,888.32",Operations Fire Stations,Vehicle Management
030316G,HALL FUELS,I08248234,1,"2,360.40",FUEL,10/03/16,"2,360.40",Operations Fire Stations,Vehicle Management
030316G,HALL FUELS,I08257438,1,"2,360.40",FUEL,10/03/16,"2,360.40",Operations Fire Stations,Vehicle Management
141390,QUARTERMAN WINDSCREENS LTD====,JOB1321702,1,290.40,WINDSCREEN & TYRE CHARGES,10/03/16,290.40,Procurement,Vehicle Management
141393,THE KITTLE PARTNERSHIP LTD====,K625,1,437.50,OTHER EXPERTS FEES,10/03/16,437.50,Compensation Budgets,Legal Services
040316K,ENGIE,M136786,1,"1,585.73",STRATEGIC (NON CYCLICAL),10/03/16,"1,585.73",Technical and Service Support,"Works - Construction, R&M"
040316K,ENGIE,M137621,1,773.27,STRATEGIC (NON CYCLICAL),10/03/16,"1,037.27",Technical and Service Support,"Works - Construction, R&M"
040316K,ENGIE,M137621,2,264.00,STRATEGIC (NON CYCLICAL),10/03/16,,Technical and Service Support,"Works - Construction, R&M"
040316K,ENGIE,M139132,1,"1,507.87",STRATEGIC (NON CYCLICAL),10/03/16,"1,507.87",Technical and Service Support,"Works - Construction, R&M"
040316K,ENGIE,M139134,1,"2,659.64",STRATEGIC (NON CYCLICAL),10/03/16,"2,659.64",Technical and Service Support,"Works - Construction, R&M"
040316K,ENGIE,M140125,1,"2,153.42",STRATEGIC (NON CYCLICAL),10/03/16,"2,769.20",Technical and Service Support,"Works - Construction, R&M"
040316K,ENGIE,M140125,2,615.78,STRATEGIC (NON CYCLICAL),10/03/16,,Technical and Service Support,"Works - Construction, R&M"
040316K,PILLINGER CONTROLS LTD========,PI74906,1,"4,200.00",PROFESSIONAL SERVICES,10/03/16,"4,200.00",Technical And Service Support,Environmental Services
030316G,HUNTER LODGE==================,SI-06123,1,"19,200.00",ADVERTISING,10/03/16,"19,200.00",HR Management,Facilities & Management S
040316K,LC ENERGY LTD,SIN004693,1,744.75,GAS,10/03/16,744.75,Technical And Service Support,Utilities
800077027,*THOMAS KNEALE & CO LTD,TK113224,1,124.90,COMMUNITY RELATIONS,10/03/16,"1,425.82",Community Safety Delivery,Furniture
800077027,*THOMAS KNEALE & CO LTD,TK113224,2,10.89,CLOTHING,10/03/16,,Firefighter Trainees,Furniture
800077027,*THOMAS KNEALE & CO LTD,TK113224,3,3.47,CLOTHING,10/03/16,,Operations Fire Stations,Furniture
800077027,*THOMAS KNEALE & CO LTD,TK113224,4,1.48,CLOTHING,10/03/16,,Operations Fire Stations,Furniture
800077027,*THOMAS KNEALE & CO LTD,TK113224,5,10.89,CLOTHING,10/03/16,,Operations Fire Stations,Furniture
800077027,*THOMAS KNEALE & CO LTD,TK113224,6,3.47,CLOTHING,10/03/16,,Operations Fire Stations,Furniture
800077027,*THOMAS KNEALE & CO LTD,TK113224,7,1.48,CLOTHING,10/03/16,,Operations Fire Stations,Furniture
800077027,*THOMAS KNEALE & CO LTD,TK113224,8,2.84,OFFICE FURNITURE,10/03/16,,Operations Fire Stations,Furniture
800077027,*THOMAS KNEALE & CO LTD,TK113224,9,10.89,CLOTHING,10/03/16,,Operations Fire Stations,Furniture
800077027,*THOMAS KNEALE & CO LTD,TK113224,10,6.94,CLOTHING,10/03/16,,Operations Fire Stations,Furniture
800077027,*THOMAS KNEALE & CO LTD,TK113224,11,10.89,CLOTHING,10/03/16,,Operations Fire Stations,Furniture
800077027,*THOMAS KNEALE & CO LTD,TK113224,12,3.47,CLOTHING,10/03/16,,Operations Fire Stations,Furniture
800077027,*THOMAS KNEALE & CO LTD,TK113224,13,10.89,CLOTHING,10/03/16,,Operations Fire Stations,Furniture
800077027,*THOMAS KNEALE & CO LTD,TK113224,14,0.99,CLOTHING,10/03/16,,Operations Fire Stations,Furniture
800077027,*THOMAS KNEALE & CO LTD,TK113224,15,6.94,CLOTHING,10/03/16,,Operations Fire Stations,Furniture
800077027,*THOMAS KNEALE & CO LTD,TK113224,16,1.48,CLOTHING,10/03/16,,Operations Fire Stations,Furniture
800077027,*THOMAS KNEALE & CO LTD,TK113224,17,2.84,OFFICE FURNITURE,10/03/16,,Operations Fire Stations,Furniture
800077027,*THOMAS KNEALE & CO LTD,TK113224,18,2.96,CLOTHING,10/03/16,,Operations Fire Stations,Furniture
800077027,*THOMAS KNEALE & CO LTD,TK113224,19,10.89,CLOTHING,10/03/16,,Operations Fire Stations,Furniture
800077027,*THOMAS KNEALE & CO LTD,TK113224,20,43.56,CLOTHING,10/03/16,,Firefighter Trainees,Furniture
800077027,*THOMAS KNEALE & CO LTD,TK113224,21,54.45,CLOTHING,10/03/16,,Firefighter Trainees,Furniture
800077027,*THOMAS KNEALE & CO LTD,TK113224,22,54.45,CLOTHING,10/03/16,,Firefighter Trainees,Furniture
800077027,*THOMAS KNEALE & CO LTD,TK113224,23,54.45,CLOTHING,10/03/16,,Firefighter Trainees,Furniture
800077027,*THOMAS KNEALE & CO LTD,TK113224,24,54.45,CLOTHING,10/03/16,,Firefighter Trainees,Furniture
800077027,*THOMAS KNEALE & CO LTD,TK113224,25,54.45,CLOTHING,10/03/16,,Firefighter Trainees,Furniture
800077027,*THOMAS KNEALE & CO LTD,TK113224,26,54.45,CLOTHING,10/03/16,,Firefighter Trainees,Furniture
800077027,*THOMAS KNEALE & CO LTD,TK113224,27,3.47,CLOTHING,10/03/16,,Operations Fire Stations,Furniture
800077027,*THOMAS KNEALE & CO LTD,TK113224,28,2.84,OFFICE FURNITURE,10/03/16,,Operations Fire Stations,Furniture
800077027,*THOMAS KNEALE & CO LTD,TK113224,29,10.89,CLOTHING,10/03/16,,Firefighter Trainees,Furniture
800077027,*THOMAS KNEALE & CO LTD,TK113224,30,6.94,CLOTHING,10/03/16,,Operations Fire Stations,Furniture
800077027,*THOMAS KNEALE & CO LTD,TK113224,31,2.96,CLOTHING,10/03/16,,Operations Fire Stations,Furniture
800077027,*THOMAS KNEALE & CO LTD,TK113224,32,3.47,CLOTHING,10/03/16,,Operations Fire Stations,Furniture
800077027,*THOMAS KNEALE & CO LTD,TK113224,33,1.48,CLOTHING,10/03/16,,Operations Fire Stations,Furniture
800077027,*THOMAS KNEALE & CO LTD,TK113224,34,10.89,CLOTHING,10/03/16,,Operations Fire Stations,Furniture
800077027,*THOMAS KNEALE & CO LTD,TK113224,35,10.89,CLOTHING,10/03/16,,Firefighter Trainees,Furniture
800077027,*THOMAS KNEALE & CO LTD,TK113224,36,3.47,CLOTHING,10/03/16,,Operations Fire Stations,Furniture
800077027,*THOMAS KNEALE & CO LTD,TK113224,37,1.48,CLOTHING,10/03/16,,Operations Fire Stations,Furniture
800077027,*THOMAS KNEALE & CO LTD,TK113224,38,5.18,CLOTHING,10/03/16,,Operations Fire Stations,Furniture
800077027,*THOMAS KNEALE & CO LTD,TK113224,39,10.89,CLOTHING,10/03/16,,Operations Fire Stations,Furniture
800077027,*THOMAS KNEALE & CO LTD,TK113224,40,10.89,CLOTHING,10/03/16,,Operations Fire Stations,Furniture
800077027,*THOMAS KNEALE & CO LTD,TK113224,41,3.47,CLOTHING,10/03/16,,Operations Fire Stations,Furniture
800077027,*THOMAS KNEALE & CO LTD,TK113224,42,10.89,CLOTHING,10/03/16,,Operations Fire Stations,Furniture
800077027,*THOMAS KNEALE & CO LTD,TK113224,43,3.47,CLOTHING,10/03/16,,Operations Fire Stations,Furniture
800077027,*THOMAS KNEALE & CO LTD,TK113224,44,2.96,CLOTHING,10/03/16,,Operations Fire Stations,Furniture
800077027,*THOMAS KNEALE & CO LTD,TK113224,45,5.18,CLOTHING,10/03/16,,Operations Fire Stations,Furniture
800077027,*THOMAS KNEALE & CO LTD,TK113224,46,10.89,CLOTHING,10/03/16,,Operations Fire Stations,Furniture
800077027,*THOMAS KNEALE & CO LTD,TK113224,47,3.47,CLOTHING,10/03/16,,Operations Fire Stations,Furniture
800077027,*THOMAS KNEALE & CO LTD,TK113224,48,2.96,CLOTHING,10/03/16,,Operations Fire Stations,Furniture
800077027,*THOMAS KNEALE & CO LTD,TK113224,49,10.89,CLOTHING,10/03/16,,Firefighter Trainees,Furniture
800077027,*THOMAS KNEALE & CO LTD,TK113224,50,10.89,CLOTHING,10/03/16,,Operations Fire Stations,Furniture
800077027,*THOMAS KNEALE & CO LTD,TK113224,51,3.47,CLOTHING,10/03/16,,Operations Fire Stations,Furniture
800077027,*THOMAS KNEALE & CO LTD,TK113224,52,1.48,CLOTHING,10/03/16,,Operations Fire Stations,Furniture
800077027,*THOMAS KNEALE & CO LTD,TK113224,53,10.89,CLOTHING,10/03/16,,Firefighter Trainees,Furniture
800077027,*THOMAS KNEALE & CO LTD,TK113224,54,10.89,CLOTHING,10/03/16,,Operations Fire Stations,Furniture
800077027,*THOMAS KNEALE & CO LTD,TK113224,55,0.99,CLOTHING,10/03/16,,Operations Fire Stations,Furniture
800077027,*THOMAS KNEALE & CO LTD,TK113224,56,3.47,CLOTHING,10/03/16,,Operations Fire Stations,Furniture
800077027,*THOMAS KNEALE & CO LTD,TK113224,57,1.48,CLOTHING,10/03/16,,Operations Fire Stations,Furniture
800077027,*THOMAS KNEALE & CO LTD,TK113224,58,2.96,CLOTHING,10/03/16,,Operations Fire Stations,Furniture
800077027,*THOMAS KNEALE & CO LTD,TK113224,59,10.89,CLOTHING,10/03/16,,Operations Fire Stations,Furniture
800077027,*THOMAS KNEALE & CO LTD,TK113224,60,6.94,CLOTHING,10/03/16,,Operations Fire Stations,Furniture
800077027,*THOMAS KNEALE & CO LTD,TK113224,61,2.59,OFFICE FURNITURE,10/03/16,,Operations Fire Stations,Furniture
800077027,*THOMAS KNEALE & CO LTD,TK113224,62,10.89,CLOTHING,10/03/16,,Firefighter Trainees,Furniture
800077027,*THOMAS KNEALE & CO LTD,TK113224,63,1.48,CLOTHING,10/03/16,,Operations Fire Stations,Furniture
800077027,*THOMAS KNEALE & CO LTD,TK113224,64,10.89,CLOTHING,10/03/16,,Firefighter Trainees,Furniture
800077027,*THOMAS KNEALE & CO LTD,TK113224,65,10.89,CLOTHING,10/03/16,,Operations Fire Stations,Furniture
800077027,*THOMAS KNEALE & CO LTD,TK113224,66,0.99,CLOTHING,10/03/16,,Operations Fire Stations,Furniture
800077027,*THOMAS KNEALE & CO LTD,TK113224,67,3.47,CLOTHING,10/03/16,,Operations Fire Stations,Furniture
800077027,*THOMAS KNEALE & CO LTD,TK113224,68,1.48,CLOTHING,10/03/16,,Operations Fire Stations,Furniture
800077027,*THOMAS KNEALE & CO LTD,TK113224,69,10.89,CLOTHING,10/03/16,,Operations Fire Stations,Furniture
800077027,*THOMAS KNEALE & CO LTD,TK113224,70,6.94,CLOTHING,10/03/16,,Operations Fire Stations,Furniture
800077027,*THOMAS KNEALE & CO LTD,TK113224,71,2.96,CLOTHING,10/03/16,,Operations Fire Stations,Furniture
800077027,*THOMAS KNEALE & CO LTD,TK113224,72,10.89,CLOTHING,10/03/16,,Operations Fire Stations,Furniture
800077027,*THOMAS KNEALE & CO LTD,TK113224,73,0.99,CLOTHING,10/03/16,,Operations Fire Stations,Furniture
800077027,*THOMAS KNEALE & CO LTD,TK113224,74,10.89,CLOTHING,10/03/16,,Operations Fire Stations,Furniture
800077027,*THOMAS KNEALE & CO LTD,TK113224,75,10.89,CLOTHING,10/03/16,,Operations Fire Stations,Furniture
800077027,*THOMAS KNEALE & CO LTD,TK113224,76,6.94,CLOTHING,10/03/16,,Operations Fire Stations,Furniture
800077027,*THOMAS KNEALE & CO LTD,TK113224,77,2.96,CLOTHING,10/03/16,,Operations Fire Stations,Furniture
800077027,*THOMAS KNEALE & CO LTD,TK113224,78,10.89,CLOTHING,10/03/16,,Operations Fire Stations,Furniture
800077027,*THOMAS KNEALE & CO LTD,TK113224,79,10.89,CLOTHING,10/03/16,,Operations Fire Stations,Furniture
800077027,*THOMAS KNEALE & CO LTD,TK113224,80,6.94,CLOTHING,10/03/16,,Operations Fire Stations,Furniture
800077027,*THOMAS KNEALE & CO LTD,TK113224,81,2.96,CLOTHING,10/03/16,,Operations Fire Stations,Furniture
800077027,*THOMAS KNEALE & CO LTD,TK113224,82,10.89,CLOTHING,10/03/16,,Operations Fire Stations,Furniture
800077027,*THOMAS KNEALE & CO LTD,TK113224,83,10.89,CLOTHING,10/03/16,,Operations Fire Stations,Furniture
800077027,*THOMAS KNEALE & CO LTD,TK113224,84,24.90,OFFICE FURNITURE,10/03/16,,Operations Fire Stations,Furniture
800077027,*THOMAS KNEALE & CO LTD,TK113224,85,6.94,CLOTHING,10/03/16,,Operations Fire Stations,Furniture
800077027,*THOMAS KNEALE & CO LTD,TK113224,86,2.96,CLOTHING,10/03/16,,Operations Fire Stations,Furniture
800077027,*THOMAS KNEALE & CO LTD,TK113224,87,10.89,CLOTHING,10/03/16,,Operations Fire Stations,Furniture
800077027,*THOMAS KNEALE & CO LTD,TK113224,88,10.89,CLOTHING,10/03/16,,Operations Fire Stations,Furniture
800077027,*THOMAS KNEALE & CO LTD,TK113224,89,107.96,OFFICE FURNITURE,10/03/16,,Operations Fire Stations,Furniture
800077027,*THOMAS KNEALE & CO LTD,TK113224,90,10.89,CLOTHING,10/03/16,,Firefighter Trainees,Furniture
800077027,*THOMAS KNEALE & CO LTD,TK113224,91,1.98,CLOTHING,10/03/16,,Operations Fire Stations,Furniture
800077027,*THOMAS KNEALE & CO LTD,TK113224,92,10.89,CLOTHING,10/03/16,,Operations Fire Stations,Furniture
800077027,*THOMAS KNEALE & CO LTD,TK113224,93,3.47,CLOTHING,10/03/16,,Operations Fire Stations,Furniture
800077027,*THOMAS KNEALE & CO LTD,TK113224,94,1.48,CLOTHING,10/03/16,,Operations Fire Stations,Furniture
800077027,*THOMAS KNEALE & CO LTD,TK113224,95,10.89,CLOTHING,10/03/16,,Operations Fire Stations,Furniture
800077027,*THOMAS KNEALE & CO LTD,TK113224,96,10.89,CLOTHING,10/03/16,,Operations Fire Stations,Furniture
800077027,*THOMAS KNEALE & CO LTD,TK113224,97,3.47,CLOTHING,10/03/16,,Operations Fire Stations,Furniture
800077027,*THOMAS KNEALE & CO LTD,TK113224,98,1.48,CLOTHING,10/03/16,,Operations Fire Stations,Furniture
800077027,*THOMAS KNEALE & CO LTD,TK113224,99,0.99,CLOTHING,10/03/16,,Operations Fire Stations,Furniture
800077027,*THOMAS KNEALE & CO LTD,TK113224,100,2.84,OFFICE FURNITURE,10/03/16,,Operations Fire Stations,Furniture
800077027,*THOMAS KNEALE & CO LTD,TK113224,101,10.89,CLOTHING,10/03/16,,Firefighter Trainees,Furniture
800077027,*THOMAS KNEALE & CO LTD,TK113224,102,2.96,CLOTHING,10/03/16,,Operations Fire Stations,Furniture
800077027,*THOMAS KNEALE & CO LTD,TK113224,103,10.89,CLOTHING,10/03/16,,Operations Fire Stations,Furniture
800077027,*THOMAS KNEALE & CO LTD,TK113224,104,10.89,CLOTHING,10/03/16,,Firefighter Trainees,Furniture
800077027,*THOMAS KNEALE & CO LTD,TK113224,105,5.68,OFFICE FURNITURE,10/03/16,,Operations Fire Stations,Furniture
800077027,*THOMAS KNEALE & CO LTD,TK113224,106,10.89,CLOTHING,10/03/16,,Operations Fire Stations,Furniture
800077027,*THOMAS KNEALE & CO LTD,TK113224,107,0.99,CLOTHING,10/03/16,,Operations Fire Stations,Furniture
800077027,*THOMAS KNEALE & CO LTD,TK113224,108,17.35,CLOTHING,10/03/16,,Firefighter Trainees,Furniture
800077027,*THOMAS KNEALE & CO LTD,TK113224,109,17.35,CLOTHING,10/03/16,,Firefighter Trainees,Furniture
800077027,*THOMAS KNEALE & CO LTD,TK113224,110,17.35,CLOTHING,10/03/16,,Firefighter Trainees,Furniture
800077027,*THOMAS KNEALE & CO LTD,TK113224,111,17.35,CLOTHING,10/03/16,,Firefighter Trainees,Furniture
800077027,*THOMAS KNEALE & CO LTD,TK113224,112,13.88,CLOTHING,10/03/16,,Firefighter Trainees,Furniture
800077027,*THOMAS KNEALE & CO LTD,TK113224,113,7.40,CLOTHING,10/03/16,,Firefighter Trainees,Furniture
800077027,*THOMAS KNEALE & CO LTD,TK113224,114,7.40,CLOTHING,10/03/16,,Firefighter Trainees,Furniture
800077027,*THOMAS KNEALE & CO LTD,TK113224,115,2.96,CLOTHING,10/03/16,,Firefighter Trainees,Furniture
800077027,*THOMAS KNEALE & CO LTD,TK113224,116,4.95,CLOTHING,10/03/16,,Firefighter Trainees,Furniture
800077027,*THOMAS KNEALE & CO LTD,TK113224,117,4.95,CLOTHING,10/03/16,,Firefighter Trainees,Furniture
800077027,*THOMAS KNEALE & CO LTD,TK113224,118,1.98,CLOTHING,10/03/16,,Firefighter Trainees,Furniture
800077027,*THOMAS KNEALE & CO LTD,TK113224,119,10.89,CLOTHING,10/03/16,,Firefighter Trainees,Furniture
800077027,*THOMAS KNEALE & CO LTD,TK113224,120,10.89,CLOTHING,10/03/16,,Operations Fire Stations,Furniture
800077027,*THOMAS KNEALE & CO LTD,TK113224,121,10.89,CLOTHING,10/03/16,,Operations Fire Stations,Furniture
800077027,*THOMAS KNEALE & CO LTD,TK113224,122,10.89,CLOTHING,10/03/16,,Operations Fire Stations,Furniture
800077027,*THOMAS KNEALE & CO LTD,TK113224,123,3.47,CLOTHING,10/03/16,,Operations Fire Stations,Furniture
800077027,*THOMAS KNEALE & CO LTD,TK113224,124,3.47,CLOTHING,10/03/16,,Operations Fire Stations,Furniture
800077027,*THOMAS KNEALE & CO LTD,TK113224,125,10.89,CLOTHING,10/03/16,,Firefighter Trainees,Furniture
800077027,*THOMAS KNEALE & CO LTD,TK113224,126,10.89,CLOTHING,10/03/16,,Operations Fire Stations,Furniture
070316K,FRENDZ LIMITED T/A TRENCHERS,TR-8691,1,"21,738.00",REFRESHMENTS,10/03/16,"21,738.00",Exercise Unified Response,Catering
080316K,SYNERGY HEALTH LAB SERVICE LTD,0000152536,1,130.00,DRUG & ALCOHOL TESTS,14/03/16,265.00,HR Management,Healthcare
080316K,SYNERGY HEALTH LAB SERVICE LTD,0000152536,2,135.00,DRUG & ALCOHOL TESTS,14/03/16,,HR Management,Healthcare
080316K,JAYMART=======================,0001095305,1,271.19,FIXTURES & FITTINGS,14/03/16,271.19,Technical And Service Support,Building Constr Materials
141392,OGILVIE FLEET LTD=============,00376558,1,400.81,LEASE CAR CHARGES,14/03/16,400.81,Procurement,Vehicle Management
141392,OGILVIE FLEET LTD=============,00376558,2,-36.61,VAT CAR LEASING,14/03/16,,Finance Services,Vehicle Management
141392,OGILVIE FLEET LTD=============,00376558,3,36.61,LEASE CAR CHARGES,14/03/16,,Procurement,Vehicle Management
141392,OGILVIE FLEET LTD=============,00376559,1,259.42,LEASE CAR CHARGES,14/03/16,259.42,Procurement,Vehicle Management
141392,OGILVIE FLEET LTD=============,00376559,2,-21.77,VAT CAR LEASING,14/03/16,,Finance Services,Vehicle Management
141392,OGILVIE FLEET LTD=============,00376559,3,21.77,LEASE CAR CHARGES,14/03/16,,Procurement,Vehicle Management
141392,OGILVIE FLEET LTD=============,00376560,1,270.17,LEASE CAR CHARGES,14/03/16,270.17,Procurement,Vehicle Management
141392,OGILVIE FLEET LTD=============,00376560,2,-22.75,VAT CAR LEASING,14/03/16,,Finance Services,Vehicle Management
141392,OGILVIE FLEET LTD=============,00376560,3,22.75,LEASE CAR CHARGES,14/03/16,,Procurement,Vehicle Management
141392,OGILVIE FLEET LTD=============,00376561,1,269.58,LEASE CAR CHARGES,14/03/16,269.58,Procurement,Vehicle Management
141392,OGILVIE FLEET LTD=============,00376561,2,-24.24,VAT CAR LEASING,14/03/16,,Finance Services,Vehicle Management
141392,OGILVIE FLEET LTD=============,00376561,3,24.24,LEASE CAR CHARGES,14/03/16,,Procurement,Vehicle Management
141392,OGILVIE FLEET LTD=============,00377764,1,373.28,LEASE CAR CHARGES,14/03/16,"6,505.68",Procurement,Vehicle Management
141392,OGILVIE FLEET LTD=============,00377764,2,"6,132.40",P/PAYMTS-CAR LEASG-RENTAL,14/03/16,,Finance Services,Vehicle Management
141392,OGILVIE FLEET LTD=============,00377764,3,-570.80,VAT CAR LEASING,14/03/16,,Finance Services,Vehicle Management
141392,OGILVIE FLEET LTD=============,00377764,4,570.80,LEASE CAR CHARGES,14/03/16,,Procurement,Vehicle Management
141392,OGILVIE FLEET LTD=============,00377765,1,300.45,LEASE CAR CHARGES,14/03/16,"3,927.36",Procurement,Vehicle Management
141392,OGILVIE FLEET LTD=============,00377765,2,"3,626.91",P/PAYMTS-CAR LEASG-RENTAL,14/03/16,,Finance Services,Vehicle Management
141392,OGILVIE FLEET LTD=============,00377765,3,-345.82,VAT CAR LEASING,14/03/16,,Finance Services,Vehicle Management
141392,OGILVIE FLEET LTD=============,00377765,4,345.82,LEASE CAR CHARGES,14/03/16,,Procurement,Vehicle Management
141392,THAMES WATER UTILITIES LTD====,0229569091B,1,331.94,WATER & SEWERAGE RATES,14/03/16,331.94,Technical And Service Support,Utilities
141392,THAMES WATER UTILITIES LTD====,0706863247B,1,361.72,WATER & SEWERAGE RATES,14/03/16,361.72,Technical And Service Support,Utilities
070316K,SOUTH WALES FIRE&RESCUE SERVIC,10000950,1,"3,857.10",FIRE AUTHS-MUTUAL ASSISTANCE,14/03/16,"3,857.10",National Operational Guidance Project,Human Resources
090316G,AFFINITY WATER,101069709,1,265.00,CURRENT HYDRANT COSTS,14/03/16,265.00,Operational Resilience,Utilities
090316K,AFFINITY WATER,101075734,1,520.00,CURRENT HYDRANT COSTS,14/03/16,520.00,Operational Resilience,Utilities
090316K,AFFINITY WATER,101075748,1,520.00,CURRENT HYDRANT COSTS,14/03/16,520.00,Operational Resilience,Utilities
090316K,AFFINITY WATER,101075749,1,520.00,CURRENT HYDRANT COSTS,14/03/16,520.00,Operational Resilience,Utilities
090316K,AFFINITY WATER,101075753,1,520.00,CURRENT HYDRANT COSTS,14/03/16,520.00,Operational Resilience,Utilities
090316K,AFFINITY WATER,101075754,1,520.00,CURRENT HYDRANT COSTS,14/03/16,520.00,Operational Resilience,Utilities
090316K,AFFINITY WATER,101075761,1,520.00,CURRENT HYDRANT COSTS,14/03/16,520.00,Operational Resilience,Utilities
090316K,AFFINITY WATER,101075765,1,680.00,CURRENT HYDRANT COSTS,14/03/16,680.00,Operational Resilience,Utilities
090316K,AFFINITY WATER,101075766,1,520.00,CURRENT HYDRANT COSTS,14/03/16,520.00,Operational Resilience,Utilities
090316K,AFFINITY WATER,101075773,1,520.00,CURRENT HYDRANT COSTS,14/03/16,520.00,Operational Resilience,Utilities
090316K,AFFINITY WATER,101075775,1,520.00,CURRENT HYDRANT COSTS,14/03/16,520.00,Operational Resilience,Utilities
090316K,AFFINITY WATER,101075776,1,520.00,CURRENT HYDRANT COSTS,14/03/16,520.00,Operational Resilience,Utilities
090316K,AFFINITY WATER,101075780,1,520.00,CURRENT HYDRANT COSTS,14/03/16,520.00,Operational Resilience,Utilities
090316K,AFFINITY WATER,101075781,1,520.00,CURRENT HYDRANT COSTS,14/03/16,520.00,Operational Resilience,Utilities
090316K,AFFINITY WATER,101075792,1,520.00,CURRENT HYDRANT COSTS,14/03/16,520.00,Operational Resilience,Utilities
090316K,KJA- ARTISTS,1114,1,350.00,PRINTING,14/03/16,350.00,Communications,Facilities & Management S
090316K,VISTA LANDSCAPE MANAGEMENT LTD,121613,1,510.88,GROUNDS MAINTENANCE,14/03/16,510.88,Technical And Service Support,"Works - Construction, R&M"
080316K,GEORGE JONES & SON LTD========,1256,1,"4,625.29",STRATEGIC (NON CYCLICAL),14/03/16,"4,625.29",Technical and Service Support,"Works - Construction, R&M"
080316K,GEORGE JONES & SON LTD========,1257,1,640.00,STRATEGIC (NON CYCLICAL),14/03/16,640.00,Technical and Service Support,"Works - Construction, R&M"
080316K,RUTH LEE LTD==================,14040,1,87.50,PROTECTIVE EQUIPMENT,14/03/16,252.00,Technical And Service Support,Fire & Rescue
080316K,RUTH LEE LTD==================,14040,2,154.50,PROTECTIVE EQUIPMENT,14/03/16,,Technical And Service Support,Fire & Rescue
080316K,RUTH LEE LTD==================,14040,3,10.00,PROTECTIVE EQUIPMENT,14/03/16,,Technical And Service Support,Fire & Rescue
040316K,KIER BUILDING SERV ENGINEERS==,15080866,1,"13,978.12",STRATEGIC (CYCLICAL),14/03/16,"13,978.12",Technical And Service Support,"Works - Construction, R&M"
090316K,RESPIREX======================,154676,1,"5,625.00",GENERAL,14/03/16,"5,625.00",Gas Tight Suits,Clothing
800077559,REDFERN TRAVEL LTD,1674112,1,845.40,ACCOMMODATION BOOKINGS,14/03/16,845.40,Operational Resilience,Human Resources
800077602,REDFERN TRAVEL LTD,1683366,1,764.80,OVERSEAS TRAVEL,14/03/16,764.80,Challenge Team,Human Resources
902608,LOSBERGER RAPID DEPLOYMENT,16840*,1,"16,705.60",OPERATIONAL EQUIP-PURCHASE,14/03/16,"28,302.39",Exercise Unified Response,Fire & Rescue
902608,LOSBERGER RAPID DEPLOYMENT,16840*,2,"1,852.00",OPERATIONAL EQUIP-PURCHASE,14/03/16,,Exercise Unified Response,Fire & Rescue
902608,LOSBERGER RAPID DEPLOYMENT,16840*,3,"7,597.76",OPERATIONAL EQUIP-PURCHASE,14/03/16,,Exercise Unified Response,Fire & Rescue
902608,LOSBERGER RAPID DEPLOYMENT,16840*,4,"1,776.00",OPERATIONAL EQUIP-PURCHASE,14/03/16,,Exercise Unified Response,Fire & Rescue
902608,LOSBERGER RAPID DEPLOYMENT,16840*,5,371.03,OPERATIONAL EQUIP-PURCHASE,14/03/16,,Exercise Unified Response,Fire & Rescue
090316K,ENTEL UK LTD==================,175623,1,480.00,RADIO,14/03/16,489.00,Information and Communication Technology,ICT
090316K,ENTEL UK LTD==================,175623,2,9.00,RADIO,14/03/16,,Information and Communication Technology,ICT
090316K,OPERATIONAL RESEARCH IN HEALTH,17B/LFB2/1C,1,"11,375.00",CONSULTANTS,14/03/16,"11,375.00",Information Management,Consultancy
090316K,DRON & WRIGHT=================,18062,1,"2,010.00",CONSULTANTS,14/03/16,"2,010.00",Technical And Service Support,Facilities & Management S
090316K,DRON & WRIGHT=================,18137,1,531.50,PROFESSIONAL SERVICES,14/03/16,"41,168.73",Technical And Service Support,Facilities & Management S
090316K,DRON & WRIGHT=================,18137,2,"4,233.16",PROFESSIONAL SERVICES,14/03/16,,Technical And Service Support,Facilities & Management S
090316K,DRON & WRIGHT=================,18137,3,"7,081.00",PROFESSIONAL SERVICES,14/03/16,,Technical And Service Support,Facilities & Management S
090316K,DRON & WRIGHT=================,18137,4,270.00,PROFESSIONAL SERVICES,14/03/16,,Technical And Service Support,Facilities & Management S
090316K,DRON & WRIGHT=================,18137,5,554.00,PROFESSIONAL SERVICES,14/03/16,,Technical And Service Support,Facilities & Management S
090316K,DRON & WRIGHT=================,18137,6,150.00,DISPOSAL COSTS-ESTATES AGENTS,14/03/16,,Technical and Service Support,Facilities & Management S
090316K,DRON & WRIGHT=================,18137,7,"2,984.60",DISPOSAL COSTS-ESTATES AGENTS,14/03/16,,Technical and Service Support,Facilities & Management S
090316K,DRON & WRIGHT=================,18137,8,817.00,DISPOSAL COSTS-ESTATES AGENTS,14/03/16,,Technical and Service Support,Facilities & Management S
090316K,DRON & WRIGHT=================,18137,9,480.00,DISPOSAL COSTS-ESTATES AGENTS,14/03/16,,Technical and Service Support,Facilities & Management S
090316K,DRON & WRIGHT=================,18137,10,"4,816.30",PROFESSIONAL SERVICES,14/03/16,,Technical And Service Support,Facilities & Management S
090316K,DRON & WRIGHT=================,18137,11,"1,511.00",PROFESSIONAL SERVICES,14/03/16,,Technical And Service Support,Facilities & Management S
090316K,DRON & WRIGHT=================,18137,12,"1,166.67",PROFESSIONAL SERVICES,14/03/16,,Technical And Service Support,Facilities & Management S
090316K,DRON & WRIGHT=================,18137,13,182.50,DISPOSAL COSTS-ESTATES AGENTS,14/03/16,,Technical and Service Support,Facilities & Management S
090316K,DRON & WRIGHT=================,18137,14,"5,080.68",DISPOSAL COSTS-ESTATES AGENTS,14/03/16,,Technical and Service Support,Facilities & Management S
090316K,DRON & WRIGHT=================,18137,15,"11,310.32",DISPOSAL COSTS-ESTATES AGENTS,14/03/16,,Technical and Service Support,Facilities & Management S
080316K,DRON & WRIGHT=================,18138,1,"3,187.00",PROFESSIONAL SERVICES,14/03/16,"3,187.00",Technical And Service Support,Facilities & Management S
080316K,ROLFE CONTRACTING LIMITED,21015,1,707.79,DEVELOPMENT  EXPENSES-CONTRACT,14/03/16,707.79,Technical and Service Support,"Works - Construction, R&M"
090316K,WHITE RIBBON CAMPAIGN,21022,1,400.00,COMMUNITY RELATIONS,14/03/16,400.00,Community Safety Delivery,Education
141392,THAMES WATER UTILITIES LTD====,2351007515G,1,"2,113.71",WATER & SEWERAGE RATES,14/03/16,"2,113.71",Technical And Service Support,Utilities
090316G,ABARIS INTERNATIONAL LIMITED==,23763,1,129.33,CLOTHING,14/03/16,612.65,Exercise Unified Response,Clothing
090316G,ABARIS INTERNATIONAL LIMITED==,23763,2,120.83,CLOTHING,14/03/16,,Exercise Unified Response,Clothing
090316G,ABARIS INTERNATIONAL LIMITED==,23763,3,120.83,CLOTHING,14/03/16,,Exercise Unified Response,Clothing
090316G,ABARIS INTERNATIONAL LIMITED==,23763,4,120.83,CLOTHING,14/03/16,,Exercise Unified Response,Clothing
090316G,ABARIS INTERNATIONAL LIMITED==,23763,5,120.83,CLOTHING,14/03/16,,Exercise Unified Response,Clothing
090316G,ABARIS INTERNATIONAL LIMITED==,23799,1,175.16,CLOTHING,14/03/16,295.99,Operations Fire Stations,Clothing
090316G,ABARIS INTERNATIONAL LIMITED==,23799,2,120.83,CLOTHING,14/03/16,,Operations Fire Stations,Clothing
090316K,DRAEGER SAFETY UK LIMITED=====,2910041329,1,974.86,REPAIR & MAINTENANCE,14/03/16,"1,238.92",Technical And Service Support,Fire & Rescue
090316K,DRAEGER SAFETY UK LIMITED=====,2910041329,2,264.06,REPAIR & MAINTENANCE,14/03/16,,Technical And Service Support,Fire & Rescue
090316K,DRAEGER SAFETY UK LIMITED=====,2910042317,1,392.00,PROTECTIVE EQUIPT - PARTS,14/03/16,"3,497.88",Technical and Service Support,Fire & Rescue
090316K,DRAEGER SAFETY UK LIMITED=====,2910042317,2,40.00,PROTECTIVE EQUIPT - PARTS,14/03/16,,Technical and Service Support,Fire & Rescue
090316K,DRAEGER SAFETY UK LIMITED=====,2910042317,3,81.00,PROTECTIVE EQUIPT - PARTS,14/03/16,,Technical and Service Support,Fire & Rescue
090316K,DRAEGER SAFETY UK LIMITED=====,2910042317,4,234.00,PROTECTIVE EQUIPT - PARTS,14/03/16,,Technical and Service Support,Fire & Rescue
090316K,DRAEGER SAFETY UK LIMITED=====,2910042317,5,50.00,PROTECTIVE EQUIPT - PARTS,14/03/16,,Technical and Service Support,Fire & Rescue
090316K,DRAEGER SAFETY UK LIMITED=====,2910042317,6,15.08,PROTECTIVE EQUIPT - PARTS,14/03/16,,Technical and Service Support,Fire & Rescue
090316K,DRAEGER SAFETY UK LIMITED=====,2910042317,7,354.00,PROTECTIVE EQUIPT - PARTS,14/03/16,,Technical and Service Support,Fire & Rescue
090316K,DRAEGER SAFETY UK LIMITED=====,2910042317,8,466.20,PROTECTIVE EQUIPT - PARTS,14/03/16,,Technical and Service Support,Fire & Rescue
090316K,DRAEGER SAFETY UK LIMITED=====,2910042317,9,110.00,PROTECTIVE EQUIPT - PARTS,14/03/16,,Technical and Service Support,Fire & Rescue
090316K,DRAEGER SAFETY UK LIMITED=====,2910042317,10,196.60,PROTECTIVE EQUIPT - PARTS,14/03/16,,Technical and Service Support,Fire & Rescue
090316K,DRAEGER SAFETY UK LIMITED=====,2910042317,11,347.00,PROTECTIVE EQUIPT - PARTS,14/03/16,,Technical and Service Support,Fire & Rescue
090316K,DRAEGER SAFETY UK LIMITED=====,2910042317,12,776.00,PROTECTIVE EQUIPT - PARTS,14/03/16,,Technical and Service Support,Fire & Rescue
090316K,DRAEGER SAFETY UK LIMITED=====,2910042317,13,204.00,PROTECTIVE EQUIPT - PARTS,14/03/16,,Technical and Service Support,Fire & Rescue
090316K,DRAEGER SAFETY UK LIMITED=====,2910042317,14,44.00,PROTECTIVE EQUIPT - PARTS,14/03/16,,Technical and Service Support,Fire & Rescue
090316K,DRAEGER SAFETY UK LIMITED=====,2910042317,15,188.00,PROTECTIVE EQUIPT - PARTS,14/03/16,,Technical and Service Support,Fire & Rescue
040316K,DRAEGER SAFETY UK LIMITED=====,2910043246,1,832.20,PROTECTIVE EQUIPT - PARTS,14/03/16,832.20,Technical and Service Support,Fire & Rescue
040316K,DRAEGER SAFETY UK LIMITED=====,2910043248,1,293.80,PROTECTIVE EQUIPT - PARTS,14/03/16,293.80,Technical and Service Support,Fire & Rescue
080316K,BOND DICKINSON LLP,3084528,1,"1,067.50",PROFESSIONAL SERVICES,14/03/16,"1,067.50",Property PFI,Legal Services
080316K,B NOKES CONTRACTS LTD,3161,1,"25,930.00",DEVELOPMENT  EXPENSES-CONTRACT,14/03/16,"77,702.04",Technical and Service Support,"Works - Construction, R&M"
080316K,B NOKES CONTRACTS LTD,3161,2,"51,772.04",DEVELOPMENT  EXPENSES-CONTRACT,14/03/16,,Technical and Service Support,"Works - Construction, R&M"
080316K,B NOKES CONTRACTS LTD,3163,1,420.00,REFUSE COLLECTION,14/03/16,420.00,Technical And Service Support,"Works - Construction, R&M"
080316K,B NOKES CONTRACTS LTD,3164,1,"5,510.00",STRATEGIC (NON CYCLICAL),14/03/16,"5,510.00",Technical and Service Support,"Works - Construction, R&M"
080316K,B NOKES CONTRACTS LTD,3165,1,"4,343.75",STRATEGIC (NON CYCLICAL),14/03/16,"4,343.75",Technical and Service Support,"Works - Construction, R&M"
080316K,B NOKES CONTRACTS LTD,3166,1,"3,382.50",STRATEGIC (NON CYCLICAL),14/03/16,"3,382.50",Technical and Service Support,"Works - Construction, R&M"
080316K,B NOKES CONTRACTS LTD,3167,1,"1,834.50",CATERING FIXTURES,14/03/16,"1,834.50",Technical And Service Support,"Works - Construction, R&M"
080316K,B NOKES CONTRACTS LTD,3168,1,"5,785.00",STRATEGIC (NON CYCLICAL),14/03/16,"5,785.00",Technical and Service Support,"Works - Construction, R&M"
080316K,B NOKES CONTRACTS LTD,3170,1,"9,220.00",STRATEGIC (NON CYCLICAL),14/03/16,"9,220.00",Technical and Service Support,"Works - Construction, R&M"
080316K,B NOKES CONTRACTS LTD,3171,1,420.00,TACTICAL DAY TO DAY,14/03/16,420.00,Technical And Service Support,"Works - Construction, R&M"
080316K,B NOKES CONTRACTS LTD,3173,1,952.50,GROUNDS MAINTENANCE,14/03/16,952.50,Technical And Service Support,"Works - Construction, R&M"
080316K,B NOKES CONTRACTS LTD,3174,1,808.25,TACTICAL DAY TO DAY,14/03/16,808.25,Technical And Service Support,"Works - Construction, R&M"
080316K,B NOKES CONTRACTS LTD,3175,1,390.00,STRATEGIC (NON CYCLICAL),14/03/16,"6,240.00",Technical and Service Support,"Works - Construction, R&M"
080316K,B NOKES CONTRACTS LTD,3175,2,390.00,STRATEGIC (NON CYCLICAL),14/03/16,,Technical and Service Support,"Works - Construction, R&M"
080316K,B NOKES CONTRACTS LTD,3175,3,390.00,STRATEGIC (NON CYCLICAL),14/03/16,,Technical and Service Support,"Works - Construction, R&M"
080316K,B NOKES CONTRACTS LTD,3175,4,390.00,STRATEGIC (NON CYCLICAL),14/03/16,,Technical and Service Support,"Works - Construction, R&M"
080316K,B NOKES CONTRACTS LTD,3175,5,390.00,DAY TO DAY MINOR IMPS,14/03/16,,Property PFI,"Works - Construction, R&M"
080316K,B NOKES CONTRACTS LTD,3175,6,390.00,STRATEGIC (NON CYCLICAL),14/03/16,,Technical and Service Support,"Works - Construction, R&M"
080316K,B NOKES CONTRACTS LTD,3175,7,390.00,STRATEGIC (NON CYCLICAL),14/03/16,,Technical and Service Support,"Works - Construction, R&M"
080316K,B NOKES CONTRACTS LTD,3175,8,390.00,STRATEGIC (NON CYCLICAL),14/03/16,,Technical and Service Support,"Works - Construction, R&M"
080316K,B NOKES CONTRACTS LTD,3175,9,390.00,STRATEGIC (NON CYCLICAL),14/03/16,,Technical and Service Support,"Works - Construction, R&M"
080316K,B NOKES CONTRACTS LTD,3175,10,390.00,DAY TO DAY MINOR IMPS,14/03/16,,Property PFI,"Works - Construction, R&M"
080316K,B NOKES CONTRACTS LTD,3175,11,390.00,STRATEGIC (NON CYCLICAL),14/03/16,,Technical and Service Support,"Works - Construction, R&M"
080316K,B NOKES CONTRACTS LTD,3175,12,390.00,STRATEGIC (NON CYCLICAL),14/03/16,,Technical and Service Support,"Works - Construction, R&M"
080316K,B NOKES CONTRACTS LTD,3175,13,390.00,STRATEGIC (NON CYCLICAL),14/03/16,,Technical and Service Support,"Works - Construction, R&M"
080316K,B NOKES CONTRACTS LTD,3175,14,390.00,STRATEGIC (NON CYCLICAL),14/03/16,,Technical and Service Support,"Works - Construction, R&M"
080316K,B NOKES CONTRACTS LTD,3175,15,390.00,STRATEGIC (NON CYCLICAL),14/03/16,,Technical and Service Support,"Works - Construction, R&M"
080316K,B NOKES CONTRACTS LTD,3175,16,390.00,DAY TO DAY MINOR IMPS,14/03/16,,Property PFI,"Works - Construction, R&M"
080316K,B NOKES CONTRACTS LTD,3176,1,"13,544.00",STRATEGIC (NON CYCLICAL),14/03/16,"13,544.00",Technical And Service Support,"Works - Construction, R&M"
090316K,TEAM PURPLE LIMITED===========,3371,1,184.50,CLOTHING,14/03/16,319.50,Operations Fire Stations,Fire & Rescue
090316K,TEAM PURPLE LIMITED===========,3371,2,135.00,CLOTHING,14/03/16,,Operations Fire Stations,Fire & Rescue
090316G,TEAM PURPLE LIMITED===========,3375,1,184.50,CLOTHING,14/03/16,342.00,Operations Fire Stations,Fire & Rescue
090316G,TEAM PURPLE LIMITED===========,3375,2,135.00,CLOTHING,14/03/16,,Operations Fire Stations,Fire & Rescue
090316G,TEAM PURPLE LIMITED===========,3375,3,22.50,CLOTHING,14/03/16,,Operations Fire Stations,Fire & Rescue
080316K,TEAM PURPLE LIMITED===========,3376,1,172.00,CLOTHING,14/03/16,307.00,Operations Fire Stations,Fire & Rescue
080316K,TEAM PURPLE LIMITED===========,3376,2,135.00,CLOTHING,14/03/16,,Operations Fire Stations,Fire & Rescue
090316K,BT GLOBAL SERVICES============,405825,1,"14,557.69",MAINTENANCE & SUPPORT,14/03/16,"14,557.69",Information and Communication Technology,ICT
090316K,BT GLOBAL SERVICES============,407839,1,"14,557.69",MAINTENANCE & SUPPORT,14/03/16,"14,557.69",Information and Communication Technology,ICT
080316K,DEALERSHIP SERVICES LTD,4191,1,138.00,CLOTHING,14/03/16,276.00,Cadets,Clothing
080316K,DEALERSHIP SERVICES LTD,4191,2,69.00,CLOTHING,14/03/16,,Cadets,Clothing
080316K,DEALERSHIP SERVICES LTD,4191,3,69.00,CLOTHING,14/03/16,,Cadets,Clothing
141395,GENERAL COUNCIL OF THE BAR,41926,1,320.00,PRACT CERT & DRIVING LICENCES,14/03/16,320.00,Legal & Democratic Services,Legal Services
141392,THAMES WATER UTILITIES LTD====,4200664575B,1,290.13,WATER & SEWERAGE RATES,14/03/16,290.13,Technical And Service Support,Utilities
080316K,EVOLUTION ENVIRONMENTAL LTD,4267,1,195.00,ASBESTOS,14/03/16,"1,030.00",Technical and Service Support,"Works - Construction, R&M"
080316K,EVOLUTION ENVIRONMENTAL LTD,4267,2,195.00,ASBESTOS,14/03/16,,Technical and Service Support,"Works - Construction, R&M"
080316K,EVOLUTION ENVIRONMENTAL LTD,4267,3,195.00,ASBESTOS,14/03/16,,Technical and Service Support,"Works - Construction, R&M"
080316K,EVOLUTION ENVIRONMENTAL LTD,4267,4,195.00,ASBESTOS,14/03/16,,Technical and Service Support,"Works - Construction, R&M"
080316K,EVOLUTION ENVIRONMENTAL LTD,4267,5,250.00,ASBESTOS,14/03/16,,Technical and Service Support,"Works - Construction, R&M"
080316K,CARPETS & FLOOR COVERS DIRECT=,4433,1,"1,728.00",FIXTURES & FITTINGS,14/03/16,"1,728.00",Technical And Service Support,Building Constr Materials
080316K,VIGILANCE PROPERTIES,4589,1,"3,732.00",DAY TO DAY MINOR IMPS,14/03/16,"3,732.00",Property PFI,Facilities & Management S
080316K,VIGILANCE PROPERTIES,4590,1,"1,680.00",DAY TO DAY MINOR IMPS,14/03/16,"1,680.00",Property PFI,Facilities & Management S
141392,THAMES WATER UTILITIES LTD====,4746934238,1,870.22,WATER & SEWERAGE RATES,14/03/16,870.22,Technical And Service Support,Utilities
800077575,HAYS SPECIALIST RECRUITMENT,531775,1,"2,299.40",FRS STAFF AGENCY,14/03/16,"2,299.40",Vehicle & Equipment Programme,Human Resources
141392,THAMES WATER UTILITIES LTD====,6138388400B,1,"1,013.72",WATER & SEWERAGE RATES,14/03/16,"1,013.72",Technical And Service Support,Utilities
080316K,MOORE STEPHENS CONSULTING LTD=,674326,1,"4,000.00",MAINTENANCE & SUPPORT,14/03/16,"4,000.00",Information Management,ICT
090316K,*SP SERVICES,802684,1,45.00,HYGIENE,14/03/16,496.50,Operational Policy,Healthcare
090316K,*SP SERVICES,802684,2,52.00,HYGIENE,14/03/16,,Operational Policy,Healthcare
090316K,*SP SERVICES,802684,3,23.00,HYGIENE,14/03/16,,Operational Policy,Healthcare
090316K,*SP SERVICES,802684,4,34.00,HYGIENE,14/03/16,,Operational Policy,Healthcare
090316K,*SP SERVICES,802684,5,41.00,HYGIENE,14/03/16,,Operational Policy,Healthcare
090316K,*SP SERVICES,802684,6,45.00,HYGIENE,14/03/16,,Operational Policy,Healthcare
090316K,*SP SERVICES,802684,7,18.00,HYGIENE,14/03/16,,Operational Policy,Healthcare
090316K,*SP SERVICES,802684,8,49.00,HYGIENE,14/03/16,,Operational Policy,Healthcare
090316K,*SP SERVICES,802684,9,26.50,HYGIENE,14/03/16,,Operational Policy,Healthcare
090316K,*SP SERVICES,802684,10,70.00,HYGIENE,14/03/16,,Operational Policy,Healthcare
090316K,*SP SERVICES,802684,11,93.00,HYGIENE,14/03/16,,Operational Policy,Healthcare
080316K,*SP SERVICES,802747,1,27.80,HYGIENE,14/03/16,372.12,Operations Fire Stations,Healthcare
080316K,*SP SERVICES,802747,2,27.80,HYGIENE,14/03/16,,Operations Fire Stations,Healthcare
080316K,*SP SERVICES,802747,3,27.80,HYGIENE,14/03/16,,Operations Fire Stations,Healthcare
080316K,*SP SERVICES,802747,4,10.50,HYGIENE,14/03/16,,Operations Fire Stations,Healthcare
080316K,*SP SERVICES,802747,5,24.75,HYGIENE,14/03/16,,Operations Fire Stations,Healthcare
080316K,*SP SERVICES,802747,6,149.75,HYGIENE,14/03/16,,Operations Fire Stations,Healthcare
080316K,*SP SERVICES,802747,7,49.75,HYGIENE,14/03/16,,Operations Fire Stations,Healthcare
080316K,*SP SERVICES,802747,8,24.12,HYGIENE,14/03/16,,Operations Fire Stations,Healthcare
080316K,*SP SERVICES,802747,9,29.85,HYGIENE,14/03/16,,Operations Fire Stations,Healthcare
080316K,SHARPE PRITCHARD==============,81076,1,676.00,CONSULTANTS,14/03/16,"1,212.00",Technical And Service Support,Legal Services
080316K,SHARPE PRITCHARD==============,81076,2,536.00,CONSULTANTS,14/03/16,,Technical And Service Support,Legal Services
080316K,SHARPE PRITCHARD==============,83567,1,"7,600.00",DISPOSAL COSTS-ESTATES AGENTS,14/03/16,"10,115.00",Technical and Service Support,Legal Services
080316K,SHARPE PRITCHARD==============,83567,2,"2,515.00",DISPOSAL COSTS-ESTATES AGENTS,14/03/16,,Technical and Service Support,Legal Services
080316K,SHARPE PRITCHARD==============,83662,1,"5,625.00",DISPOSAL COSTS-ESTATES AGENTS,14/03/16,"5,625.00",Technical and Service Support,Legal Services
080316K,MERLIN ELECTRICAL SERVICES LTD,8480,1,615.83,TACTICAL DAY TO DAY,14/03/16,615.83,Technical And Service Support,Facilities & Management S
090316G,IRG ADVISORS LLP,851657,1,"14,407.20",FRS STAFF AGENCY,14/03/16,"14,407.20",Legal & Democratic Services,Human Resources
290216K,CENTERPRISE INTERNATIONAL LTD,90174633,1,358.80,STATIONERY CONSUMABLES,14/03/16,358.80,Operational Policy,ICT
090316K,CITY UNIVERSITY===============,90345828,1,"5,000.00",MEDICAL EXPENSES CONTRACT,14/03/16,"5,000.00",HR Management,TRAINING AND EDUCATIONAL
141392,THAMES WATER UTILITIES LTD====,9264684334S,1,439.81,WATER & SEWERAGE RATES,14/03/16,439.81,Technical And Service Support,Utilities
141395,LONDON PENSIONS FUND AUTHORITY,981,1,"84,398.05",LOCAL GOVT PENSION SCHEME PAYM,14/03/16,"84,398.05",Central Finance,Financial Services
141392,THAMES WATER UTILITIES LTD====,9860242378B,1,836.39,WATER & SEWERAGE RATES,14/03/16,836.39,Technical And Service Support,Utilities
090316G,THAMES WATER UTILITIES LTD====,CBA1600560,1,"1,185.00",CURRENT HYDRANT COSTS,14/03/16,"1,185.00",Operational Resilience,Utilities
090316K,CFOA (SERVICES) LTD===========,CSL15472,1,330.00,PROFESSIONAL DEVELOPMENT,14/03/16,"1,570.00",Fire Safety Regulation,Human Resources
090316K,CFOA (SERVICES) LTD===========,CSL15472,2,330.00,PROFESSIONAL DEVELOPMENT,14/03/16,,Fire Safety Regulation,Human Resources
090316K,CFOA (SERVICES) LTD===========,CSL15472,3,330.00,PROFESSIONAL DEVELOPMENT,14/03/16,,Fire Safety Regulation,Human Resources
090316K,CFOA (SERVICES) LTD===========,CSL15472,4,125.00,PROFESSIONAL DEVELOPMENT,14/03/16,,Fire Safety Regulation,Human Resources
090316K,CFOA (SERVICES) LTD===========,CSL15472,5,125.00,PROFESSIONAL DEVELOPMENT,14/03/16,,Fire Safety Regulation,Human Resources
090316K,CFOA (SERVICES) LTD===========,CSL15472,6,330.00,PROFESSIONAL DEVELOPMENT,14/03/16,,Fire Safety Regulation,Human Resources
080316K,E&S B DAVIS LTD,DAV/59504,1,295.00,OPERATIONAL EQUIP-PURCHASE,14/03/16,295.00,Operations Fire Stations,Environmental Services
080316K,E&S B DAVIS LTD,DAV/60158,1,295.00,OPERATIONAL EQUIP-PURCHASE,14/03/16,295.00,Operations Fire Stations,Environmental Services
080316K,E&S B DAVIS LTD,DAV/60788,1,295.00,OPERATIONAL EQUIP-PURCHASE,14/03/16,295.00,Operations Fire Stations,Environmental Services
080316K,QUANTECH ENVIRONMENTAL LIMITED,E20779,1,"24,960.00",STRATEGIC (NON CYCLICAL),14/03/16,"24,960.00",Technical and Service Support,Building Constr Materials
080316K,KIER BUILDING SERV ENGINEERS==,F00057308,1,"2,972.18",STRATEGIC (NON CYCLICAL),14/03/16,"2,972.18",Technical and Service Support,"Works - Construction, R&M"
080316K,KIER BUILDING SERV ENGINEERS==,F00057311,1,"3,318.24",STRATEGIC (NON CYCLICAL),14/03/16,"3,318.24",Technical and Service Support,"Works - Construction, R&M"
080316K,WM ENGINEERING SERVICES LTD===,I-5012,1,339.00,TACTICAL DAY TO DAY,14/03/16,339.00,Technical And Service Support,"Works - Construction, R&M"
090316K,WM ENGINEERING SERVICES LTD===,I-5040,1,400.35,TACTICAL DAY TO DAY,14/03/16,400.35,Technical And Service Support,"Works - Construction, R&M"
090316K,WM ENGINEERING SERVICES LTD===,I-5041,1,262.65,TACTICAL DAY TO DAY,14/03/16,262.65,Technical And Service Support,"Works - Construction, R&M"
090316K,WM ENGINEERING SERVICES LTD===,I-5042,1,358.75,TACTICAL DAY TO DAY,14/03/16,358.75,Technical And Service Support,"Works - Construction, R&M"
080316K,HALL FUELS,I08240611,1,"1,967.00",FUEL,14/03/16,"1,967.00",Operations Fire Stations,Vehicle Management
260216G,IPAD HIRE LTD,I3705,1,885.00,GENERAL,14/03/16,885.00,Exercise Unified Response,ICT
090316K,MOTT MACDONALD============,IN00328664,1,"3,925.00",CONSULTANTS,14/03/16,"3,925.00",London Coordination Centre,Consultancy
090316K,MOTT MACDONALD============,IN00335478,1,"4,441.00",CONSULTANTS,14/03/16,"4,441.00",London Coordination Centre,Consultancy
090316K,MOTT MACDONALD============,IN0335477,1,"1,335.00",CONSULTANTS,14/03/16,"1,335.00",London Coordination Centre,Consultancy
080316K,LEARNING TREE INTERNATIONAL LT,IN512224,1,"2,095.00",PROFESSIONAL DEVELOPMENT,14/03/16,"2,095.00",Information Management,Human Resources
090316G,PANORAMA ANTENNAS LTD=========,INV-84327,1,"9,980.78",PURCHASE,14/03/16,"9,980.78",Information and Communication Technology,Building Constr Materials
090316K,WALTER FRANK & SONS LIMITED===,INV/17958,1,375.00,OPERATIONAL EQUIP-PURCHASE,14/03/16,"1,236.00",Technical And Service Support,Fire & Rescue
090316K,WALTER FRANK & SONS LIMITED===,INV/17958,2,80.00,OPERATIONAL EQUIP-PURCHASE,14/03/16,,Technical And Service Support,Fire & Rescue
090316K,WALTER FRANK & SONS LIMITED===,INV/17958,3,720.00,OPERATIONAL EQUIP-PURCHASE,14/03/16,,Technical And Service Support,Fire & Rescue
090316K,WALTER FRANK & SONS LIMITED===,INV/17958,4,42.00,OPERATIONAL EQUIP-PURCHASE,14/03/16,,Technical And Service Support,Fire & Rescue
090316K,WALTER FRANK & SONS LIMITED===,INV/17958,5,19.00,OPERATIONAL EQUIP-PURCHASE,14/03/16,,Technical And Service Support,Fire & Rescue
141392,JCT600 VEHICLE LEASING,INV00113641,1,452.12,LEASE CAR CHARGES,14/03/16,452.12,Procurement,Vehicle Management
141392,JCT600 VEHICLE LEASING,INV00113641,2,-38.74,VAT CAR LEASING,14/03/16,,Finance Services,Vehicle Management
141392,JCT600 VEHICLE LEASING,INV00113641,3,38.74,LEASE CAR CHARGES,14/03/16,,Procurement,Vehicle Management
141392,JCT600 VEHICLE LEASING,INV00113642,1,499.09,LEASE CAR CHARGES,14/03/16,499.09,Procurement,Vehicle Management
141392,JCT600 VEHICLE LEASING,INV00113642,2,-44.31,VAT CAR LEASING,14/03/16,,Finance Services,Vehicle Management
141392,JCT600 VEHICLE LEASING,INV00113642,3,44.31,LEASE CAR CHARGES,14/03/16,,Procurement,Vehicle Management
141392,JCT600 VEHICLE LEASING,INV00113643,1,346.50,LEASE CAR CHARGES,14/03/16,346.50,Procurement,Vehicle Management
141392,JCT600 VEHICLE LEASING,INV00113643,2,-30.84,VAT CAR LEASING,14/03/16,,Finance Services,Vehicle Management
141392,JCT600 VEHICLE LEASING,INV00113643,3,30.84,LEASE CAR CHARGES,14/03/16,,Procurement,Vehicle Management
090316K,SOFTCAT LIMITED,INV01312498,1,590.20,STATIONERY CONSUMABLES,14/03/16,"1,180.40",Operational Resilience,ICT
090316K,SOFTCAT LIMITED,INV01312498,2,590.20,STATIONERY CONSUMABLES,14/03/16,,Health and Safety,ICT
080316K,NIMSKI LTD,INV203,1,"18,715.00",GENERAL,14/03/16,"18,715.00",Exercise Unified Response,Arts & Leisure Services
080316K,READE SIGNS LTD.,INV57625,1,"2,339.50",STRATEGIC (NON CYCLICAL),14/03/16,"2,339.50",Technical and Service Support,Building Constr Materials
080316K,THE BEST YOU CORPORATION LTD,NLP08,1,"2,057.00",PROFESSIONAL DEVELOPMENT,14/03/16,"2,057.00",Development and Training,Human Resources
080316K,PILLINGER CONTROLS LTD========,PI74928,1,"3,971.00",CONSULTANTS,14/03/16,"3,971.00",Technical And Service Support,Environmental Services
090316K,SUTTON & EAST SURREY WATER PLC,SI035786,1,"1,152.00",CURRENT HYDRANT COSTS,14/03/16,"1,152.00",Operational Resilience,Utilities
090316K,SUTTON & EAST SURREY WATER PLC,SI035791,1,305.00,CURRENT HYDRANT COSTS,14/03/16,305.00,Operational Resilience,Utilities
090316K,SUTTON & EAST SURREY WATER PLC,SI035792,1,"1,152.00",CURRENT HYDRANT COSTS,14/03/16,"1,152.00",Operational Resilience,Utilities
090316K,SUTTON & EAST SURREY WATER PLC,SI035794,1,413.00,CURRENT HYDRANT COSTS,14/03/16,413.00,Operational Resilience,Utilities
080316K,TAKAGARI,T387,1,"7,037.50",GENERAL,14/03/16,"7,037.50",Exercise Unified Response,Facilities & Management S
800077024,*THOMAS KNEALE & CO LTD,TK113278,1,468.93,COMMUNITY RELATIONS,14/03/16,"3,154.18",Community Safety Delivery,Furniture
800077024,*THOMAS KNEALE & CO LTD,TK113278,2,468.93,COMMUNITY RELATIONS,14/03/16,,Community Safety Delivery,Furniture
800077024,*THOMAS KNEALE & CO LTD,TK113278,3,401.94,COMMUNITY RELATIONS,14/03/16,,Community Safety Delivery,Furniture
800077024,*THOMAS KNEALE & CO LTD,TK113278,4,300.86,COMMUNITY RELATIONS,14/03/16,,Community Safety Delivery,Furniture
800077024,*THOMAS KNEALE & CO LTD,TK113278,5,300.86,COMMUNITY RELATIONS,14/03/16,,Community Safety Delivery,Furniture
800077024,*THOMAS KNEALE & CO LTD,TK113278,6,257.88,COMMUNITY RELATIONS,14/03/16,,Community Safety Delivery,Furniture
800077024,*THOMAS KNEALE & CO LTD,TK113278,7,10.89,CLOTHING,14/03/16,,Operations Fire Stations,Furniture
800077024,*THOMAS KNEALE & CO LTD,TK113278,8,0.99,CLOTHING,14/03/16,,Operations Fire Stations,Furniture
800077024,*THOMAS KNEALE & CO LTD,TK113278,9,6.94,CLOTHING,14/03/16,,Operations Fire Stations,Furniture
800077024,*THOMAS KNEALE & CO LTD,TK113278,10,2.96,CLOTHING,14/03/16,,Operations Fire Stations,Furniture
800077024,*THOMAS KNEALE & CO LTD,TK113278,11,3.47,CLOTHING,14/03/16,,Operations Fire Stations,Furniture
800077024,*THOMAS KNEALE & CO LTD,TK113278,12,10.89,CLOTHING,14/03/16,,Operations Fire Stations,Furniture
800077024,*THOMAS KNEALE & CO LTD,TK113278,13,10.89,CLOTHING,14/03/16,,Operations Fire Stations,Furniture
800077024,*THOMAS KNEALE & CO LTD,TK113278,14,10.89,CLOTHING,14/03/16,,Operations Fire Stations,Furniture
800077024,*THOMAS KNEALE & CO LTD,TK113278,15,3.47,CLOTHING,14/03/16,,Operations Fire Stations,Furniture
800077024,*THOMAS KNEALE & CO LTD,TK113278,16,1.48,CLOTHING,14/03/16,,Operations Fire Stations,Furniture
800077024,*THOMAS KNEALE & CO LTD,TK113278,17,0.99,CLOTHING,14/03/16,,Operations Fire Stations,Furniture
800077024,*THOMAS KNEALE & CO LTD,TK113278,18,3.47,CLOTHING,14/03/16,,Operations Fire Stations,Furniture
800077024,*THOMAS KNEALE & CO LTD,TK113278,19,1.48,CLOTHING,14/03/16,,Operations Fire Stations,Furniture
800077024,*THOMAS KNEALE & CO LTD,TK113278,20,10.89,CLOTHING,14/03/16,,Operations Fire Stations,Furniture
800077024,*THOMAS KNEALE & CO LTD,TK113278,21,10.89,CLOTHING,14/03/16,,Operations Fire Stations,Furniture
800077024,*THOMAS KNEALE & CO LTD,TK113278,22,10.89,CLOTHING,14/03/16,,Operations Fire Stations,Furniture
800077024,*THOMAS KNEALE & CO LTD,TK113278,23,10.89,CLOTHING,14/03/16,,Operations Fire Stations,Furniture
800077024,*THOMAS KNEALE & CO LTD,TK113278,24,2.96,CLOTHING,14/03/16,,Operations Fire Stations,Furniture
800077024,*THOMAS KNEALE & CO LTD,TK113278,25,6.94,CLOTHING,14/03/16,,Operations Fire Stations,Furniture
800077024,*THOMAS KNEALE & CO LTD,TK113278,26,3.47,CLOTHING,14/03/16,,Operations Fire Stations,Furniture
800077024,*THOMAS KNEALE & CO LTD,TK113278,27,1.48,CLOTHING,14/03/16,,Operations Fire Stations,Furniture
800077024,*THOMAS KNEALE & CO LTD,TK113278,28,10.89,CLOTHING,14/03/16,,Operations Fire Stations,Furniture
800077024,*THOMAS KNEALE & CO LTD,TK113278,29,0.99,CLOTHING,14/03/16,,Operations Fire Stations,Furniture
800077024,*THOMAS KNEALE & CO LTD,TK113278,30,2.84,OFFICE FURNITURE,14/03/16,,Operations Fire Stations,Furniture
800077024,*THOMAS KNEALE & CO LTD,TK113278,31,10.89,CLOTHING,14/03/16,,Operations Fire Stations,Furniture
800077024,*THOMAS KNEALE & CO LTD,TK113278,32,10.89,CLOTHING,14/03/16,,Operations Fire Stations,Furniture
800077024,*THOMAS KNEALE & CO LTD,TK113278,33,10.89,CLOTHING,14/03/16,,Operations Fire Stations,Furniture
800077024,*THOMAS KNEALE & CO LTD,TK113278,34,0.99,CLOTHING,14/03/16,,Operations Fire Stations,Furniture
800077024,*THOMAS KNEALE & CO LTD,TK113278,35,6.94,CLOTHING,14/03/16,,Operations Fire Stations,Furniture
800077024,*THOMAS KNEALE & CO LTD,TK113278,36,6.94,CLOTHING,14/03/16,,Operations Fire Stations,Furniture
800077024,*THOMAS KNEALE & CO LTD,TK113278,37,215.92,OFFICE FURNITURE,14/03/16,,Operations Fire Stations,Furniture
800077024,*THOMAS KNEALE & CO LTD,TK113278,38,0.99,CLOTHING,14/03/16,,Operations Fire Stations,Furniture
800077024,*THOMAS KNEALE & CO LTD,TK113278,39,10.89,CLOTHING,14/03/16,,Operations Fire Stations,Furniture
800077024,*THOMAS KNEALE & CO LTD,TK113278,40,10.89,CLOTHING,14/03/16,,Operations Fire Stations,Furniture
800077024,*THOMAS KNEALE & CO LTD,TK113278,41,0.99,CLOTHING,14/03/16,,Operations Fire Stations,Furniture
800077024,*THOMAS KNEALE & CO LTD,TK113278,42,6.94,CLOTHING,14/03/16,,Operations Fire Stations,Furniture
800077024,*THOMAS KNEALE & CO LTD,TK113278,43,1.48,CLOTHING,14/03/16,,Operations Fire Stations,Furniture
800077024,*THOMAS KNEALE & CO LTD,TK113278,44,10.89,CLOTHING,14/03/16,,Operations Fire Stations,Furniture
800077024,*THOMAS KNEALE & CO LTD,TK113278,45,3.47,CLOTHING,14/03/16,,Operations Fire Stations,Furniture
800077024,*THOMAS KNEALE & CO LTD,TK113278,46,1.48,CLOTHING,14/03/16,,Operations Fire Stations,Furniture
800077024,*THOMAS KNEALE & CO LTD,TK113278,47,10.89,CLOTHING,14/03/16,,Operations Fire Stations,Furniture
800077024,*THOMAS KNEALE & CO LTD,TK113278,48,0.99,CLOTHING,14/03/16,,Operations Fire Stations,Furniture
800077024,*THOMAS KNEALE & CO LTD,TK113278,49,3.47,CLOTHING,14/03/16,,Operations Fire Stations,Furniture
800077024,*THOMAS KNEALE & CO LTD,TK113278,50,1.48,CLOTHING,14/03/16,,Operations Fire Stations,Furniture
800077024,*THOMAS KNEALE & CO LTD,TK113278,51,10.89,CLOTHING,14/03/16,,Operations Fire Stations,Furniture
800077024,*THOMAS KNEALE & CO LTD,TK113278,52,0.99,CLOTHING,14/03/16,,Operations Fire Stations,Furniture
800077024,*THOMAS KNEALE & CO LTD,TK113278,53,3.47,CLOTHING,14/03/16,,Operations Fire Stations,Furniture
800077024,*THOMAS KNEALE & CO LTD,TK113278,54,1.48,CLOTHING,14/03/16,,Operations Fire Stations,Furniture
800077024,*THOMAS KNEALE & CO LTD,TK113278,55,10.89,CLOTHING,14/03/16,,Command Units,Furniture
800077024,*THOMAS KNEALE & CO LTD,TK113278,56,3.47,CLOTHING,14/03/16,,Operations Fire Stations,Furniture
800077024,*THOMAS KNEALE & CO LTD,TK113278,57,4.98,OFFICE FURNITURE,14/03/16,,Operations Fire Stations,Furniture
800077024,*THOMAS KNEALE & CO LTD,TK113278,58,3.47,CLOTHING,14/03/16,,Operations Fire Stations,Furniture
800077024,*THOMAS KNEALE & CO LTD,TK113278,59,1.48,CLOTHING,14/03/16,,Operations Fire Stations,Furniture
800077024,*THOMAS KNEALE & CO LTD,TK113278,60,3.47,CLOTHING,14/03/16,,Operations Fire Stations,Furniture
800077024,*THOMAS KNEALE & CO LTD,TK113278,61,1.48,CLOTHING,14/03/16,,Operations Fire Stations,Furniture
800077024,*THOMAS KNEALE & CO LTD,TK113278,62,1.48,CLOTHING,14/03/16,,Operations Fire Stations,Furniture
800077024,*THOMAS KNEALE & CO LTD,TK113278,63,3.47,CLOTHING,14/03/16,,Operations Fire Stations,Furniture
800077024,*THOMAS KNEALE & CO LTD,TK113278,64,200.97,COMMUNITY RELATIONS,14/03/16,,Community Safety Delivery,Furniture
800077024,*THOMAS KNEALE & CO LTD,TK113278,65,128.94,COMMUNITY RELATIONS,14/03/16,,Community Safety Delivery,Furniture
800077024,*THOMAS KNEALE & CO LTD,TK113278,66,103.60,OFFICE FURNITURE,14/03/16,,Property PFI,Furniture
110316K,ADVANCED FURNITURE============,0000077648,1,405.00,OFFICE FURNITURE,17/03/16,405.00,Technical And Service Support,Furniture
110316K,GOVNET COMMUNICATIONS=========,0000097484,1,"1,295.00",PROFESSIONAL DEVELOPMENT,17/03/16,"1,295.00",Fire Safety Regulation,Human Resources
040316K,HEALTH MANAGEMENT LIMITED=====,0000144625,1,250.00,THIRD PARTY REPORTS,17/03/16,"1,770.20",HR Management,Healthcare
040316K,HEALTH MANAGEMENT LIMITED=====,0000144625,2,"1,520.20",THIRD PARTY REPORTS,17/03/16,,HR Management,Healthcare
110316K,HEALTH MANAGEMENT LIMITED=====,0000144775,1,"1,200.00",THIRD PARTY REPORTS,17/03/16,"1,200.00",HR Management,Healthcare
100316K,ADAM PHONES LTD===============,01151784,1,80.00,CELLULAR TELEPHONES,17/03/16,970.44,Information and Communication Technology,ICT
100316K,ADAM PHONES LTD===============,01151784,2,890.44,CELLULAR TELEPHONES,17/03/16,,Information and Communication Technology,ICT
100316K,LONDON LEADERS DEVELOPMENT SCH,040216,1,807.80,GENERAL,17/03/16,807.80,Cadets,Human Resources
080316K,TMP (LIMITED) UK,100000145390,1,"24,500.00",MAINTENANCE & SUPPORT,17/03/16,"24,500.00",Information and Communication Technology,Human Resources
100316K,AFFINITY WATER,101075742,1,300.00,CURRENT HYDRANT COSTS,17/03/16,300.00,Operational Resilience,Utilities
100316K,AFFINITY WATER,101075745,1,520.00,CURRENT HYDRANT COSTS,17/03/16,520.00,Operational Resilience,Utilities
100316K,AFFINITY WATER,101075757,1,520.00,CURRENT HYDRANT COSTS,17/03/16,520.00,Operational Resilience,Utilities
100316K,AFFINITY WATER,101075758,1,520.00,CURRENT HYDRANT COSTS,17/03/16,520.00,Operational Resilience,Utilities
100316K,AFFINITY WATER,101075762,1,520.00,CURRENT HYDRANT COSTS,17/03/16,520.00,Operational Resilience,Utilities
100316K,AFFINITY WATER,101075763,1,520.00,CURRENT HYDRANT COSTS,17/03/16,520.00,Operational Resilience,Utilities
100316K,AFFINITY WATER,101075767,1,300.00,CURRENT HYDRANT COSTS,17/03/16,300.00,Operational Resilience,Utilities
100316K,AFFINITY WATER,101075769,1,360.00,CURRENT HYDRANT COSTS,17/03/16,360.00,Operational Resilience,Utilities
100316K,AFFINITY WATER,101075770,1,520.00,CURRENT HYDRANT COSTS,17/03/16,520.00,Operational Resilience,Utilities
100316K,AFFINITY WATER,101075790,1,360.00,CURRENT HYDRANT COSTS,17/03/16,360.00,Operational Resilience,Utilities
100316K,AFFINITY WATER,101075794,1,300.00,CURRENT HYDRANT COSTS,17/03/16,300.00,Operational Resilience,Utilities
100316K,AFFINITY WATER,101075798,1,400.00,CURRENT HYDRANT COSTS,17/03/16,400.00,Operational Resilience,Utilities
100316K,AFFINITY WATER,101075819,1,360.00,CURRENT HYDRANT COSTS,17/03/16,360.00,Operational Resilience,Utilities
100316K,AFFINITY WATER,101075822,1,360.00,CURRENT HYDRANT COSTS,17/03/16,360.00,Operational Resilience,Utilities
100316K,AFFINITY WATER,101075824,1,360.00,CURRENT HYDRANT COSTS,17/03/16,360.00,Operational Resilience,Utilities
141396,PROLEC CONTRACTORS LTD,10466,1,862.50,STRATEGIC (NON CYCLICAL),17/03/16,"1,725.00",Technical and Service Support,Building Constr Materials
141396,PROLEC CONTRACTORS LTD,10466,2,862.50,STRATEGIC (NON CYCLICAL),17/03/16,,Technical and Service Support,Building Constr Materials
141396,PROLEC CONTRACTORS LTD,10467,1,300.00,GENERAL,17/03/16,300.00,Exercise Unified Response,Building Constr Materials
141396,PROLEC CONTRACTORS LTD,10470,1,"1,742.25",STRATEGIC (NON CYCLICAL),17/03/16,"1,742.25",Technical and Service Support,Building Constr Materials
141396,PROLEC CONTRACTORS LTD,10471,1,"1,558.25",STRATEGIC (NON CYCLICAL),17/03/16,"1,558.25",Technical and Service Support,Building Constr Materials
141396,PROLEC CONTRACTORS LTD,10472,1,"3,432.72",STRATEGIC (NON CYCLICAL),17/03/16,"3,432.72",Technical and Service Support,Building Constr Materials
800078505,*JAMES HUNTER (OUTFITTERS) LTD,107965,1,312.89,CLOTHING,17/03/16,312.89,Operations Fire Stations,Clothing
800075090,*JAMES HUNTER (OUTFITTERS) LTD,108497,1,318.85,CLOTHING,17/03/16,318.85,Operations Fire Stations,Clothing
040316K,*SPRUE SAFETY PRODUCTS LTD====,1089315,1,"2,000.00",FIRE DETECTORS,17/03/16,"2,000.00",Operations Non Fire Stations,Health & Safety
040316K,*SPRUE SAFETY PRODUCTS LTD====,1089316,1,"2,200.00",FIRE DETECTORS,17/03/16,"3,960.00",Operations Non Fire Stations,Health & Safety
040316K,*SPRUE SAFETY PRODUCTS LTD====,1089316,2,"1,760.00",FIRE DETECTORS,17/03/16,,Operations Non Fire Stations,Health & Safety
080316K,*SPRUE SAFETY PRODUCTS LTD====,1089350,1,"3,708.00",FIRE DETECTORS,17/03/16,"3,708.00",Operations Non Fire Stations,Health & Safety
110316K,INFOR (UNITED KINGDOM) LIMITED,11604365-GB04G,1,640.00,MAINTENANCE & SUPPORT,17/03/16,640.00,Information and Communication Technology,ICT
040316K,INFOR (UNITED KINGDOM) LIMITED,11604368-GB04G,1,640.00,MAINTENANCE & SUPPORT,17/03/16,640.00,Information and Communication Technology,ICT
141398,THAMES WATER UTILITIES LTD====,1295196012B,1,261.95,WATER & SEWERAGE RATES,17/03/16,261.95,Technical And Service Support,Utilities
141398,EDF ENERGY===================,13152100002*,1,"20,179.47",ELECTRICITY,17/03/16,"20,179.47",Technical And Service Support,Utilities
090316G,IMTECH INVIRON,15006154 R7,1,"1,317.00",DEVELOPMENT  EXPENSES-CONTRACT,17/03/16,"107,509.00",Technical and Service Support,Facilities & Management S
090316G,IMTECH INVIRON,15006154 R7,2,"24,210.00",DEVELOPMENT  EXPENSES-CONTRACT,17/03/16,,Technical and Service Support,Facilities & Management S
090316G,IMTECH INVIRON,15006154 R7,3,"11,412.00",DEVELOPMENT  EXPENSES-CONTRACT,17/03/16,,Technical and Service Support,Facilities & Management S
090316G,IMTECH INVIRON,15006154 R7,4,"8,864.00",DEVELOPMENT  EXPENSES-CONTRACT,17/03/16,,Technical and Service Support,Facilities & Management S
090316G,IMTECH INVIRON,15006154 R7,5,"3,592.00",DEVELOPMENT  EXPENSES-CONTRACT,17/03/16,,Technical and Service Support,Facilities & Management S
090316G,IMTECH INVIRON,15006154 R7,6,"11,655.00",DEVELOPMENT  EXPENSES-CONTRACT,17/03/16,,Technical and Service Support,Facilities & Management S
090316G,IMTECH INVIRON,15006154 R7,7,"10,783.00",DEVELOPMENT  EXPENSES-CONTRACT,17/03/16,,Technical and Service Support,Facilities & Management S
090316G,IMTECH INVIRON,15006154 R7,8,"1,056.00",DEVELOPMENT  EXPENSES-CONTRACT,17/03/16,,Technical and Service Support,Facilities & Management S
090316G,IMTECH INVIRON,15006154 R7,9,"4,204.00",DEVELOPMENT  EXPENSES-CONTRACT,17/03/16,,Technical and Service Support,Facilities & Management S
090316G,IMTECH INVIRON,15006154 R7,10,"4,561.00",DEVELOPMENT  EXPENSES-CONTRACT,17/03/16,,Technical and Service Support,Facilities & Management S
090316G,IMTECH INVIRON,15006154 R7,11,"8,358.00",DEVELOPMENT  EXPENSES-CONTRACT,17/03/16,,Technical and Service Support,Facilities & Management S
090316G,IMTECH INVIRON,15006154 R7,12,300.00,DEVELOPMENT  EXPENSES-CONTRACT,17/03/16,,Technical and Service Support,Facilities & Management S
090316G,IMTECH INVIRON,15006154 R7,13,"2,229.00",DEVELOPMENT  EXPENSES-CONTRACT,17/03/16,,Technical and Service Support,Facilities & Management S
090316G,IMTECH INVIRON,15006154 R7,14,"3,318.00",DEVELOPMENT  EXPENSES-CONTRACT,17/03/16,,Technical and Service Support,Facilities & Management S
090316G,IMTECH INVIRON,15006154 R7,15,"11,650.00",DEVELOPMENT  EXPENSES-CONTRACT,17/03/16,,Technical and Service Support,Facilities & Management S
110316K,KIER BUILDING SERV ENGINEERS==,15080852,1,"31,352.62",TACTICAL DAY TO DAY,17/03/16,"70,134.01",Technical And Service Support,"Works - Construction, R&M"
110316K,KIER BUILDING SERV ENGINEERS==,15080852,2,567.26,TACTICAL DAY TO DAY,17/03/16,,Technical And Service Support,"Works - Construction, R&M"
110316K,KIER BUILDING SERV ENGINEERS==,15080852,3,"1,796.69",TACTICAL DAY TO DAY,17/03/16,,Technical And Service Support,"Works - Construction, R&M"
110316K,KIER BUILDING SERV ENGINEERS==,15080852,4,"2,268.24",TACTICAL DAY TO DAY,17/03/16,,Technical And Service Support,"Works - Construction, R&M"
110316K,KIER BUILDING SERV ENGINEERS==,15080852,5,"25,739.02",STRATEGIC (CYCLICAL),17/03/16,,Technical And Service Support,"Works - Construction, R&M"
110316K,KIER BUILDING SERV ENGINEERS==,15080852,6,849.13,STRATEGIC (CYCLICAL),17/03/16,,Technical And Service Support,"Works - Construction, R&M"
110316K,KIER BUILDING SERV ENGINEERS==,15080852,7,"1,619.86",STRATEGIC (CYCLICAL),17/03/16,,Technical And Service Support,"Works - Construction, R&M"
110316K,KIER BUILDING SERV ENGINEERS==,15080852,8,"5,941.19",STRATEGIC (CYCLICAL),17/03/16,,Technical And Service Support,"Works - Construction, R&M"
140316G,RESPIREX======================,154329,1,"3,150.00",GENERAL,17/03/16,"3,150.00",Gas Tight Suits,Clothing
110316K,RESPIREX======================,154931,1,"4,500.00",GENERAL,17/03/16,"4,500.00",Gas Tight Suits,Clothing
260216G,CARLSON WAGONLIT UK LIMITED,16-504-0080946,1,"6,601.10",GENERAL,17/03/16,"6,601.10",Exercise Unified Response,Arts & Leisure Services
100316K,KBR,1601G393001,1,"127,416.00",PROFESSIONAL SERVICES,17/03/16,"127,416.00",Review of Property Services,Facilities & Management S
080316K,IRON MOUNTAIN (UK) LTD========,16203347,1,"2,337.78",MAINTENANCE & SUPPORT,17/03/16,"2,337.78",Information and Communication Technology,ICT
110316K,VECTOR COMMAND LTD============,1690,1,"44,748.00",MAINTENANCE & SUPPORT,17/03/16,"44,748.00",Information and Communication Technology,ICT
110316K,VECTOR COMMAND LTD============,1691,1,"68,699.00",MAINTENANCE & SUPPORT,17/03/16,"68,699.00",Information and Communication Technology,ICT
110316K,BDG WORKFUTURES LTD===========,201402288,1,"2,797.00",PROF FEES-MISCELLANEOUS,17/03/16,"2,797.00",Technical and Service Support,Consultancy
090316K,EJT ASSOCIATES LIMITED========,2015-16/071,1,425.00,CONSULTANTS,17/03/16,425.00,Operational Response,Human Resources
020316K,DYSLEXIA ACTION,202032,1,525.00,LEARNING SUPPORT,17/03/16,525.00,Development and Training,Human Resources
110316K,THE DOCUMENT WAREHOUSE UK LTD,2144,1,"3,287.50",GENERAL,17/03/16,"3,287.50",Strategy & Inclusion,Facilities & Management S
141398,EDF ENERGY===================,23682100002*,1,"15,021.47",ELECTRICITY,17/03/16,"15,021.47",Technical And Service Support,Utilities
800076860,ADECCO UK LIMITED=============,27220260,1,"1,162.70",FRS STAFF AGENCY,17/03/16,"1,162.70",National Operational Guidance Project,Human Resources
800076791,ADECCO UK LIMITED=============,27282592,1,"1,835.15",FRS STAFF AGENCY,17/03/16,"1,835.15",Vehicle & Equipment Programme,Human Resources
800076593,ADECCO UK LIMITED=============,27282608,1,"1,518.44",FRS STAFF AGENCY,17/03/16,"1,518.44",Legal & Democratic Services,Human Resources
800076792,ADECCO UK LIMITED=============,27289033,1,"1,468.12",FRS STAFF AGENCY,17/03/16,"1,468.12",Vehicle & Equipment Programme,Human Resources
800076861,ADECCO UK LIMITED=============,27292399,1,"1,212.00",FRS STAFF AGENCY,17/03/16,"1,212.00",Technical And Service Support,Human Resources
800076793,ADECCO UK LIMITED=============,27295147,1,"1,835.15",FRS STAFF AGENCY,17/03/16,"1,835.15",Vehicle & Equipment Programme,Human Resources
800076862,ADECCO UK LIMITED=============,27305584,1,"1,212.00",FRS STAFF AGENCY,17/03/16,"1,212.00",Technical And Service Support,Human Resources
800076838,ADECCO UK LIMITED=============,27315787,1,439.60,FRS STAFF AGENCY,17/03/16,439.60,Technical And Service Support,Human Resources
800076594,ADECCO UK LIMITED=============,27335448,1,"1,697.08",FRS STAFF AGENCY,17/03/16,"1,697.08",Legal & Democratic Services,Human Resources
800076597,ADECCO UK LIMITED=============,27335452,1,439.60,FRS STAFF AGENCY,17/03/16,439.60,Fire Safety Regulation,Human Resources
800076720,ADECCO UK LIMITED=============,27335453,1,439.60,FRS STAFF AGENCY,17/03/16,439.60,Fire Safety Regulation,Human Resources
800076704,ADECCO UK LIMITED=============,27335472,1,922.25,FRS STAFF AGENCY,17/03/16,922.25,Technical And Service Support,Human Resources
800076598,ADECCO UK LIMITED=============,27343112,1,439.60,FRS STAFF AGENCY,17/03/16,439.60,Fire Safety Regulation,Human Resources
800076721,ADECCO UK LIMITED=============,27343113,1,351.68,FRS STAFF AGENCY,17/03/16,351.68,Fire Safety Regulation,Human Resources
800076639,ADECCO UK LIMITED=============,27343121,1,"2,452.25",FRS STAFF AGENCY,17/03/16,"2,452.25",Legal & Democratic Services,Human Resources
800076584,ADECCO UK LIMITED=============,27343141,1,605.64,FRS STAFF AGENCY,17/03/16,605.64,Community Safety Delivery,Human Resources
800076585,ADECCO UK LIMITED=============,27343142,1,757.05,FRS STAFF AGENCY,17/03/16,757.05,Community Safety Delivery,Human Resources
800076533,ADECCO UK LIMITED=============,27343149,1,757.05,FRS STAFF AGENCY,17/03/16,757.05,Exercise Unified Response,Human Resources
800076863,ADECCO UK LIMITED=============,27346742,1,"1,212.00",FRS STAFF AGENCY,17/03/16,"1,212.00",Technical And Service Support,Human Resources
800076864,ADECCO UK LIMITED=============,27346743,1,"1,212.00",FRS STAFF AGENCY,17/03/16,"1,212.00",Technical And Service Support,Human Resources
800076865,ADECCO UK LIMITED=============,27346744,1,"1,212.00",FRS STAFF AGENCY,17/03/16,"1,212.00",Technical And Service Support,Human Resources
800076687,ADECCO UK LIMITED=============,27349844,1,"1,162.70",FRS STAFF AGENCY,17/03/16,"1,162.70",Technical And Service Support,Human Resources
800076840,ADECCO UK LIMITED=============,27349848,1,263.76,FRS STAFF AGENCY,17/03/16,263.76,Technical And Service Support,Human Resources
800076599,ADECCO UK LIMITED=============,27349850,1,439.60,FRS STAFF AGENCY,17/03/16,439.60,Fire Safety Regulation,Human Resources
800076722,ADECCO UK LIMITED=============,27349851,1,439.60,FRS STAFF AGENCY,17/03/16,439.60,Fire Safety Regulation,Human Resources
800076745,ADECCO UK LIMITED=============,27349857,1,299.75,FRS STAFF AGENCY,17/03/16,299.75,National Operational Guidance Project,Human Resources
800076828,ADECCO UK LIMITED=============,27349868,1,900.20,FRS STAFF AGENCY,17/03/16,900.20,Information Management,Human Resources
800076476,ADECCO UK LIMITED=============,27349869,1,768.25,FRS STAFF AGENCY,17/03/16,768.25,Procurement,Human Resources
800076586,ADECCO UK LIMITED=============,27349879,1,757.05,FRS STAFF AGENCY,17/03/16,757.05,Community Safety Delivery,Human Resources
800076738,ADECCO UK LIMITED=============,27349880,1,722.70,FRS STAFF AGENCY,17/03/16,722.70,National Operational Guidance Project,Human Resources
800076529,ADECCO UK LIMITED=============,27349881,1,654.43,FRS STAFF AGENCY,17/03/16,654.43,National Operational Guidance Project,Human Resources
800076705,ADECCO UK LIMITED=============,27349886,1,922.25,FRS STAFF AGENCY,17/03/16,922.25,Technical And Service Support,Human Resources
800076497,ADECCO UK LIMITED=============,27349887,1,757.05,FRS STAFF AGENCY,17/03/16,757.05,Communications,Human Resources
800076534,ADECCO UK LIMITED=============,27349889,1,757.05,FRS STAFF AGENCY,17/03/16,757.05,Exercise Unified Response,Human Resources
800076822,ADECCO UK LIMITED=============,27349890,1,439.60,FRS STAFF AGENCY,17/03/16,439.60,Operations Non Fire Stations,Human Resources
800076779,ADECCO UK LIMITED=============,27349891,1,427.04,FRS STAFF AGENCY,17/03/16,427.04,Operations Non Fire Stations,Human Resources
800076866,ADECCO UK LIMITED=============,27353407,1,727.20,FRS STAFF AGENCY,17/03/16,727.20,Technical And Service Support,Human Resources
800076867,ADECCO UK LIMITED=============,27353408,1,"1,212.00",FRS STAFF AGENCY,17/03/16,"1,212.00",Technical And Service Support,Human Resources
800076876,ADECCO UK LIMITED=============,27353423,1,"1,336.04",FRS STAFF AGENCY,17/03/16,"1,336.04",Legal & Democratic Services,Human Resources
800076688,ADECCO UK LIMITED=============,27356156,1,"1,162.70",FRS STAFF AGENCY,17/03/16,"1,162.70",Technical And Service Support,Human Resources
800076637,ADECCO UK LIMITED=============,27356157,1,428.16,FRS STAFF AGENCY,17/03/16,428.16,Finance Services,Human Resources
800076647,ADECCO UK LIMITED=============,27356158,1,624.40,FRS STAFF AGENCY,17/03/16,624.40,Information Management,Human Resources
800076654,ADECCO UK LIMITED=============,27356159,1,"1,162.70",FRS STAFF AGENCY,17/03/16,"1,162.70",Technical And Service Support,Human Resources
800076600,ADECCO UK LIMITED=============,27356160,1,439.60,FRS STAFF AGENCY,17/03/16,439.60,Fire Safety Regulation,Human Resources
800076723,ADECCO UK LIMITED=============,27356161,1,439.60,FRS STAFF AGENCY,17/03/16,439.60,Fire Safety Regulation,Human Resources
800076641,ADECCO UK LIMITED=============,27356168,1,"1,471.35",FRS STAFF AGENCY,17/03/16,"1,471.35",Legal & Democratic Services,Human Resources
800076661,ADECCO UK LIMITED=============,27356169,1,905.73,FRS STAFF AGENCY,17/03/16,905.73,Technical And Service Support,Human Resources
800076795,ADECCO UK LIMITED=============,27356171,1,"2,046.25",FRS STAFF AGENCY,17/03/16,"2,046.25",Vehicle & Equipment Programme,Human Resources
800076730,ADECCO UK LIMITED=============,27356173,1,345.40,FRS STAFF AGENCY,17/03/16,345.40,Fire Safety Regulation,Human Resources
800076829,ADECCO UK LIMITED=============,27356175,1,900.20,FRS STAFF AGENCY,17/03/16,900.20,Information Management,Human Resources
800076477,ADECCO UK LIMITED=============,27356176,1,768.25,FRS STAFF AGENCY,17/03/16,768.25,Procurement,Human Resources
800076762,ADECCO UK LIMITED=============,27356178,1,624.40,FRS STAFF AGENCY,17/03/16,624.40,HR Management,Human Resources
800076837,ADECCO UK LIMITED=============,27356180,1,428.96,FRS STAFF AGENCY,17/03/16,428.96,Communications,Human Resources
800076578,ADECCO UK LIMITED=============,27356182,1,439.60,FRS STAFF AGENCY,17/03/16,439.60,Fire Safety Regulation,Human Resources
800076587,ADECCO UK LIMITED=============,27356183,1,757.05,FRS STAFF AGENCY,17/03/16,757.05,Community Safety Delivery,Human Resources
800076739,ADECCO UK LIMITED=============,27356184,1,963.60,FRS STAFF AGENCY,17/03/16,963.60,National Operational Guidance Project,Human Resources
800076530,ADECCO UK LIMITED=============,27356185,1,654.43,FRS STAFF AGENCY,17/03/16,654.43,National Operational Guidance Project,Human Resources
800076695,ADECCO UK LIMITED=============,27356186,1,624.40,FRS STAFF AGENCY,17/03/16,624.40,HR Management,Human Resources
800076706,ADECCO UK LIMITED=============,27356187,1,737.80,FRS STAFF AGENCY,17/03/16,737.80,Technical And Service Support,Human Resources
800076498,ADECCO UK LIMITED=============,27356188,1,757.05,FRS STAFF AGENCY,17/03/16,757.05,Communications,Human Resources
800076535,ADECCO UK LIMITED=============,27356189,1,757.05,FRS STAFF AGENCY,17/03/16,757.05,Exercise Unified Response,Human Resources
800076823,ADECCO UK LIMITED=============,27356190,1,364.24,FRS STAFF AGENCY,17/03/16,364.24,Operations Non Fire Stations,Human Resources
800076780,ADECCO UK LIMITED=============,27356191,1,439.60,FRS STAFF AGENCY,17/03/16,439.60,Operations Non Fire Stations,Human Resources
800076620,ADECCO UK LIMITED=============,27356194,1,263.76,FRS STAFF AGENCY,17/03/16,263.76,Fire Safety Regulation,Human Resources
800076570,ADECCO UK LIMITED=============,27356195,1,757.05,FRS STAFF AGENCY,17/03/16,757.05,Information and Communication Technology,Human Resources
800076848,ADECCO UK LIMITED=============,27356196,1,603.82,FRS STAFF AGENCY,17/03/16,603.82,Strategy & Inclusion,Human Resources
800076849,ADECCO UK LIMITED=============,27356197,1,"1,509.55",FRS STAFF AGENCY,17/03/16,"1,509.55",Strategy & Inclusion,Human Resources
800076850,ADECCO UK LIMITED=============,27356198,1,"1,423.29",FRS STAFF AGENCY,17/03/16,"1,423.29",Strategy & Inclusion,Human Resources
800076746,ADECCO UK LIMITED=============,27356199,1,299.75,FRS STAFF AGENCY,17/03/16,299.75,National Operational Guidance Project,Human Resources
800077262,ADECCO UK LIMITED=============,27356200,1,394.15,FRS STAFF AGENCY,17/03/16,394.15,National Operational Guidance Project,Human Resources
800076648,ADECCO UK LIMITED=============,27361912,1,499.52,FRS STAFF AGENCY,17/03/16,499.52,Information Management,Human Resources
800076655,ADECCO UK LIMITED=============,27361913,1,930.16,FRS STAFF AGENCY,17/03/16,930.16,Technical And Service Support,Human Resources
800076642,ADECCO UK LIMITED=============,27361915,1,"1,961.80",FRS STAFF AGENCY,17/03/16,"1,961.80",Legal & Democratic Services,Human Resources
800076662,ADECCO UK LIMITED=============,27361916,1,905.73,FRS STAFF AGENCY,17/03/16,905.73,Technical And Service Support,Human Resources
800076505,ADECCO UK LIMITED=============,27361917,1,321.12,FRS STAFF AGENCY,17/03/16,321.12,Operations Non Fire Stations,Human Resources
800076796,ADECCO UK LIMITED=============,27361918,1,"1,227.75",FRS STAFF AGENCY,17/03/16,"1,227.75",Vehicle & Equipment Programme,Human Resources
800076608,ADECCO UK LIMITED=============,27361920,1,263.76,FRS STAFF AGENCY,17/03/16,263.76,Technical And Service Support,Human Resources
800076731,ADECCO UK LIMITED=============,27361921,1,351.68,FRS STAFF AGENCY,17/03/16,351.68,Fire Safety Regulation,Human Resources
800076478,ADECCO UK LIMITED=============,27361922,1,537.78,FRS STAFF AGENCY,17/03/16,537.78,Procurement,Human Resources
800076675,ADECCO UK LIMITED=============,27361924,1,499.52,FRS STAFF AGENCY,17/03/16,499.52,Technical And Service Support,Human Resources
800076714,ADECCO UK LIMITED=============,27361925,1,302.82,FRS STAFF AGENCY,17/03/16,302.82,Community Safety Delivery,Human Resources
800076632,ADECCO UK LIMITED=============,27361926,1,263.76,FRS STAFF AGENCY,17/03/16,263.76,Technical And Service Support,Human Resources
800076588,ADECCO UK LIMITED=============,27361928,1,454.23,FRS STAFF AGENCY,17/03/16,454.23,Community Safety Delivery,Human Resources
800076707,ADECCO UK LIMITED=============,27361930,1,368.90,FRS STAFF AGENCY,17/03/16,368.90,Technical And Service Support,Human Resources
800076536,ADECCO UK LIMITED=============,27361931,1,605.64,FRS STAFF AGENCY,17/03/16,605.64,Exercise Unified Response,Human Resources
800076824,ADECCO UK LIMITED=============,27361932,1,314.00,FRS STAFF AGENCY,17/03/16,314.00,Operations Non Fire Stations,Human Resources
800076781,ADECCO UK LIMITED=============,27361933,1,301.44,FRS STAFF AGENCY,17/03/16,301.44,Operations Non Fire Stations,Human Resources
800076624,ADECCO UK LIMITED=============,27361934,1,339.12,FRS STAFF AGENCY,17/03/16,339.12,Fire Safety Regulation,Human Resources
800076621,ADECCO UK LIMITED=============,27361935,1,263.76,FRS STAFF AGENCY,17/03/16,263.76,Fire Safety Regulation,Human Resources
800076571,ADECCO UK LIMITED=============,27361936,1,302.82,FRS STAFF AGENCY,17/03/16,302.82,Information and Communication Technology,Human Resources
800076513,ADECCO UK LIMITED=============,27361938,1,446.00,FRS STAFF AGENCY,17/03/16,446.00,Operations Non Fire Stations,Human Resources
800076696,ADECCO UK LIMITED=============,27361939,1,499.52,FRS STAFF AGENCY,17/03/16,499.52,HR Management,Human Resources
800076763,ADECCO UK LIMITED=============,27361940,1,499.52,FRS STAFF AGENCY,17/03/16,499.52,HR Management,Human Resources
800076689,ADECCO UK LIMITED=============,27361941,1,930.16,FRS STAFF AGENCY,17/03/16,930.16,Technical And Service Support,Human Resources
800076851,ADECCO UK LIMITED=============,27361942,1,"1,207.64",FRS STAFF AGENCY,17/03/16,"1,207.64",Strategy & Inclusion,Human Resources
800076491,ADECCO UK LIMITED=============,27361943,1,321.12,FRS STAFF AGENCY,17/03/16,321.12,Fire Safety Regulation,Human Resources
800076563,ADECCO UK LIMITED=============,27361944,1,499.52,FRS STAFF AGENCY,17/03/16,499.52,Fire Safety Regulation,Human Resources
800076724,ADECCO UK LIMITED=============,27361945,1,374.64,FRS STAFF AGENCY,17/03/16,374.64,Fire Safety Regulation,Human Resources
800076601,ADECCO UK LIMITED=============,27361946,1,499.52,FRS STAFF AGENCY,17/03/16,499.52,Fire Safety Regulation,Human Resources
800076817,ADECCO UK LIMITED=============,27361947,1,499.52,FRS STAFF AGENCY,17/03/16,499.52,Fire Safety Regulation,Human Resources
800076878,ADECCO UK LIMITED=============,27365125,1,"1,388.64",FRS STAFF AGENCY,17/03/16,"1,388.64",Legal & Democratic Services,Human Resources
800076663,ADECCO UK LIMITED=============,27366894,1,517.56,FRS STAFF AGENCY,17/03/16,517.56,Technical And Service Support,Human Resources
800076715,ADECCO UK LIMITED=============,27366897,1,454.23,FRS STAFF AGENCY,17/03/16,454.23,Community Safety Delivery,Human Resources
800076852,ADECCO UK LIMITED=============,27366898,1,905.73,FRS STAFF AGENCY,17/03/16,905.73,Strategy & Inclusion,Human Resources
800076842,ADECCO UK LIMITED=============,27366900,1,374.64,FRS STAFF AGENCY,17/03/16,374.64,Technical And Service Support,Human Resources
800077263,ADECCO UK LIMITED=============,27366902,1,394.15,FRS STAFF AGENCY,17/03/16,394.15,National Operational Guidance Project,Human Resources
800076747,ADECCO UK LIMITED=============,27366903,1,449.63,FRS STAFF AGENCY,17/03/16,449.63,National Operational Guidance Project,Human Resources
800076664,ADECCO UK LIMITED=============,27371877,1,"1,164.51",FRS STAFF AGENCY,17/03/16,"1,164.51",Technical And Service Support,Human Resources
800076506,ADECCO UK LIMITED=============,27371878,1,624.40,FRS STAFF AGENCY,17/03/16,624.40,Operations Non Fire Stations,Human Resources
800076609,ADECCO UK LIMITED=============,27371879,1,439.60,FRS STAFF AGENCY,17/03/16,439.60,Technical And Service Support,Human Resources
800076732,ADECCO UK LIMITED=============,27371880,1,314.00,FRS STAFF AGENCY,17/03/16,314.00,Fire Safety Regulation,Human Resources
800076479,ADECCO UK LIMITED=============,27371881,1,768.25,FRS STAFF AGENCY,17/03/16,768.25,Procurement,Human Resources
800076716,ADECCO UK LIMITED=============,27371883,1,757.05,FRS STAFF AGENCY,17/03/16,757.05,Community Safety Delivery,Human Resources
800076580,ADECCO UK LIMITED=============,27371884,1,439.60,FRS STAFF AGENCY,17/03/16,439.60,Fire Safety Regulation,Human Resources
800076589,ADECCO UK LIMITED=============,27371885,1,757.05,FRS STAFF AGENCY,17/03/16,757.05,Community Safety Delivery,Human Resources
800076740,ADECCO UK LIMITED=============,27371886,1,963.60,FRS STAFF AGENCY,17/03/16,963.60,National Operational Guidance Project,Human Resources
800076537,ADECCO UK LIMITED=============,27371887,1,757.05,FRS STAFF AGENCY,17/03/16,757.05,Exercise Unified Response,Human Resources
800076782,ADECCO UK LIMITED=============,27371889,1,439.60,FRS STAFF AGENCY,17/03/16,439.60,Operations Non Fire Stations,Human Resources
800076625,ADECCO UK LIMITED=============,27371890,1,395.64,FRS STAFF AGENCY,17/03/16,395.64,Fire Safety Regulation,Human Resources
800076622,ADECCO UK LIMITED=============,27371891,1,263.76,FRS STAFF AGENCY,17/03/16,263.76,Fire Safety Regulation,Human Resources
800076572,ADECCO UK LIMITED=============,27371892,1,757.05,FRS STAFF AGENCY,17/03/16,757.05,Information and Communication Technology,Human Resources
800076525,ADECCO UK LIMITED=============,27371894,1,624.40,FRS STAFF AGENCY,17/03/16,624.40,Procurement,Human Resources
800076830,ADECCO UK LIMITED=============,27371895,1,900.20,FRS STAFF AGENCY,17/03/16,900.20,Information Management,Human Resources
800076682,ADECCO UK LIMITED=============,27371896,1,495.18,FRS STAFF AGENCY,17/03/16,495.18,Technical And Service Support,Human Resources
800076683,ADECCO UK LIMITED=============,27371897,1,641.90,FRS STAFF AGENCY,17/03/16,641.90,Technical And Service Support,Human Resources
800076499,ADECCO UK LIMITED=============,27371898,1,605.64,FRS STAFF AGENCY,17/03/16,605.64,Communications,Human Resources
800076514,ADECCO UK LIMITED=============,27371899,1,624.40,FRS STAFF AGENCY,17/03/16,624.40,Operations Non Fire Stations,Human Resources
800076697,ADECCO UK LIMITED=============,27371900,1,624.40,FRS STAFF AGENCY,17/03/16,624.40,HR Management,Human Resources
800076764,ADECCO UK LIMITED=============,27371901,1,624.40,FRS STAFF AGENCY,17/03/16,624.40,HR Management,Human Resources
800076690,ADECCO UK LIMITED=============,27371902,1,"1,162.70",FRS STAFF AGENCY,17/03/16,"1,162.70",Technical And Service Support,Human Resources
800076853,ADECCO UK LIMITED=============,27371903,1,"1,509.55",FRS STAFF AGENCY,17/03/16,"1,509.55",Strategy & Inclusion,Human Resources
800076492,ADECCO UK LIMITED=============,27371904,1,499.52,FRS STAFF AGENCY,17/03/16,499.52,Fire Safety Regulation,Human Resources
800076564,ADECCO UK LIMITED=============,27371905,1,374.64,FRS STAFF AGENCY,17/03/16,374.64,Fire Safety Regulation,Human Resources
800076725,ADECCO UK LIMITED=============,27371906,1,624.40,FRS STAFF AGENCY,17/03/16,624.40,Fire Safety Regulation,Human Resources
800076602,ADECCO UK LIMITED=============,27371907,1,624.40,FRS STAFF AGENCY,17/03/16,624.40,Fire Safety Regulation,Human Resources
800076818,ADECCO UK LIMITED=============,27371908,1,624.40,FRS STAFF AGENCY,17/03/16,624.40,Fire Safety Regulation,Human Resources
800076843,ADECCO UK LIMITED=============,27371909,1,374.64,FRS STAFF AGENCY,17/03/16,374.64,Technical And Service Support,Human Resources
800076708,ADECCO UK LIMITED=============,27371911,1,922.25,FRS STAFF AGENCY,17/03/16,922.25,Technical And Service Support,Human Resources
800076643,ADECCO UK LIMITED=============,27371912,1,980.90,FRS STAFF AGENCY,17/03/16,980.90,Legal & Democratic Services,Human Resources
800076545,ADECCO UK LIMITED=============,27371913,1,624.40,FRS STAFF AGENCY,17/03/16,624.40,Fire Safety Regulation,Human Resources
800076485,ADECCO UK LIMITED=============,27371914,1,624.40,FRS STAFF AGENCY,17/03/16,624.40,Procurement,Human Resources
800076649,ADECCO UK LIMITED=============,27371915,1,624.40,FRS STAFF AGENCY,17/03/16,624.40,Information Management,Human Resources
800077264,ADECCO UK LIMITED=============,27371916,1,788.30,FRS STAFF AGENCY,17/03/16,788.30,National Operational Guidance Project,Human Resources
800076656,ADECCO UK LIMITED=============,27371917,1,"1,162.70",FRS STAFF AGENCY,17/03/16,"1,162.70",Technical And Service Support,Human Resources
800076797,ADECCO UK LIMITED=============,27371918,1,"2,046.25",FRS STAFF AGENCY,17/03/16,"2,046.25",Vehicle & Equipment Programme,Human Resources
800076748,ADECCO UK LIMITED=============,27371919,1,749.38,FRS STAFF AGENCY,17/03/16,749.38,National Operational Guidance Project,Human Resources
800076879,ADECCO UK LIMITED=============,27375048,1,"1,472.80",FRS STAFF AGENCY,17/03/16,"1,472.80",Legal & Democratic Services,Human Resources
800077258,ADECCO UK LIMITED=============,27375049,1,757.05,FRS STAFF AGENCY,17/03/16,757.05,Information and Communication Technology,Human Resources
800077259,ADECCO UK LIMITED=============,27375050,1,757.05,FRS STAFF AGENCY,17/03/16,757.05,Information and Communication Technology,Human Resources
800077260,ADECCO UK LIMITED=============,27375051,1,529.94,FRS STAFF AGENCY,17/03/16,529.94,Information and Communication Technology,Human Resources
800076665,ADECCO UK LIMITED=============,27377681,1,"1,509.55",FRS STAFF AGENCY,17/03/16,"1,509.55",Technical And Service Support,Human Resources
800076610,ADECCO UK LIMITED=============,27377682,1,351.68,FRS STAFF AGENCY,17/03/16,351.68,Technical And Service Support,Human Resources
800076733,ADECCO UK LIMITED=============,27377683,1,439.60,FRS STAFF AGENCY,17/03/16,439.60,Fire Safety Regulation,Human Resources
800076480,ADECCO UK LIMITED=============,27377684,1,768.25,FRS STAFF AGENCY,17/03/16,768.25,Procurement,Human Resources
800076677,ADECCO UK LIMITED=============,27377685,1,428.16,FRS STAFF AGENCY,17/03/16,428.16,Technical And Service Support,Human Resources
800076717,ADECCO UK LIMITED=============,27377686,1,757.05,FRS STAFF AGENCY,17/03/16,757.05,Community Safety Delivery,Human Resources
800076581,ADECCO UK LIMITED=============,27377688,1,439.60,FRS STAFF AGENCY,17/03/16,439.60,Fire Safety Regulation,Human Resources
800076538,ADECCO UK LIMITED=============,27377691,1,757.05,FRS STAFF AGENCY,17/03/16,757.05,Exercise Unified Response,Human Resources
800076783,ADECCO UK LIMITED=============,27377692,1,439.60,FRS STAFF AGENCY,17/03/16,439.60,Operations Non Fire Stations,Human Resources
800076626,ADECCO UK LIMITED=============,27377693,1,263.76,FRS STAFF AGENCY,17/03/16,263.76,Fire Safety Regulation,Human Resources
800076573,ADECCO UK LIMITED=============,27377694,1,757.05,FRS STAFF AGENCY,17/03/16,757.05,Information and Communication Technology,Human Resources
800076758,ADECCO UK LIMITED=============,27377695,1,973.14,FRS STAFF AGENCY,17/03/16,973.14,Review of Property Services,Human Resources
800076526,ADECCO UK LIMITED=============,27377696,1,624.40,FRS STAFF AGENCY,17/03/16,624.40,Procurement,Human Resources
800076831,ADECCO UK LIMITED=============,27377697,1,900.20,FRS STAFF AGENCY,17/03/16,900.20,Information Management,Human Resources
800076684,ADECCO UK LIMITED=============,27377698,1,623.56,FRS STAFF AGENCY,17/03/16,623.56,Technical And Service Support,Human Resources
800076531,ADECCO UK LIMITED=============,27377699,1,392.66,FRS STAFF AGENCY,17/03/16,392.66,National Operational Guidance Project,Human Resources
800076500,ADECCO UK LIMITED=============,27377700,1,757.05,FRS STAFF AGENCY,17/03/16,757.05,Communications,Human Resources
800076515,ADECCO UK LIMITED=============,27377701,1,374.64,FRS STAFF AGENCY,17/03/16,374.64,Operations Non Fire Stations,Human Resources
800076698,ADECCO UK LIMITED=============,27377702,1,624.40,FRS STAFF AGENCY,17/03/16,624.40,HR Management,Human Resources
800076765,ADECCO UK LIMITED=============,27377703,1,624.40,FRS STAFF AGENCY,17/03/16,624.40,HR Management,Human Resources
800076691,ADECCO UK LIMITED=============,27377704,1,"1,162.70",FRS STAFF AGENCY,17/03/16,"1,162.70",Technical And Service Support,Human Resources
800076854,ADECCO UK LIMITED=============,27377705,1,"1,509.55",FRS STAFF AGENCY,17/03/16,"1,509.55",Strategy & Inclusion,Human Resources
800076493,ADECCO UK LIMITED=============,27377706,1,499.52,FRS STAFF AGENCY,17/03/16,499.52,Fire Safety Regulation,Human Resources
800076565,ADECCO UK LIMITED=============,27377707,1,624.40,FRS STAFF AGENCY,17/03/16,624.40,Fire Safety Regulation,Human Resources
800076726,ADECCO UK LIMITED=============,27377708,1,624.40,FRS STAFF AGENCY,17/03/16,624.40,Fire Safety Regulation,Human Resources
800076603,ADECCO UK LIMITED=============,27377709,1,570.88,FRS STAFF AGENCY,17/03/16,570.88,Fire Safety Regulation,Human Resources
800076819,ADECCO UK LIMITED=============,27377710,1,624.40,FRS STAFF AGENCY,17/03/16,624.40,Fire Safety Regulation,Human Resources
800076844,ADECCO UK LIMITED=============,27377711,1,374.64,FRS STAFF AGENCY,17/03/16,374.64,Technical And Service Support,Human Resources
800076709,ADECCO UK LIMITED=============,27377713,1,922.25,FRS STAFF AGENCY,17/03/16,922.25,Technical And Service Support,Human Resources
800076644,ADECCO UK LIMITED=============,27377714,1,"1,471.35",FRS STAFF AGENCY,17/03/16,"1,471.35",Legal & Democratic Services,Human Resources
800076546,ADECCO UK LIMITED=============,27377715,1,624.40,FRS STAFF AGENCY,17/03/16,624.40,Fire Safety Regulation,Human Resources
800076486,ADECCO UK LIMITED=============,27377716,1,624.40,FRS STAFF AGENCY,17/03/16,624.40,Procurement,Human Resources
800076650,ADECCO UK LIMITED=============,27377717,1,624.40,FRS STAFF AGENCY,17/03/16,624.40,Information Management,Human Resources
800077265,ADECCO UK LIMITED=============,27377718,1,"1,576.60",FRS STAFF AGENCY,17/03/16,"1,576.60",National Operational Guidance Project,Human Resources
800076657,ADECCO UK LIMITED=============,27377719,1,"1,162.70",FRS STAFF AGENCY,17/03/16,"1,162.70",Technical And Service Support,Human Resources
800076798,ADECCO UK LIMITED=============,27377720,1,"2,046.25",FRS STAFF AGENCY,17/03/16,"2,046.25",Vehicle & Equipment Programme,Human Resources
800076507,ADECCO UK LIMITED=============,27377721,1,624.40,FRS STAFF AGENCY,17/03/16,624.40,Operations Non Fire Stations,Human Resources
800076749,ADECCO UK LIMITED=============,27377722,1,899.25,FRS STAFF AGENCY,17/03/16,899.25,National Operational Guidance Project,Human Resources
800076870,ADECCO UK LIMITED=============,27380685,1,"1,212.00",FRS STAFF AGENCY,17/03/16,"1,212.00",Technical And Service Support,Human Resources
800076872,ADECCO UK LIMITED=============,27380686,1,"1,212.00",FRS STAFF AGENCY,17/03/16,"1,212.00",Technical And Service Support,Human Resources
800076611,ADECCO UK LIMITED=============,27383204,1,351.68,FRS STAFF AGENCY,17/03/16,351.68,Technical And Service Support,Human Resources
800076481,ADECCO UK LIMITED=============,27383205,1,768.25,FRS STAFF AGENCY,17/03/16,768.25,Procurement,Human Resources
800076678,ADECCO UK LIMITED=============,27383206,1,624.40,FRS STAFF AGENCY,17/03/16,624.40,Technical And Service Support,Human Resources
800076718,ADECCO UK LIMITED=============,27383207,1,757.05,FRS STAFF AGENCY,17/03/16,757.05,Community Safety Delivery,Human Resources
800076634,ADECCO UK LIMITED=============,27383210,1,263.76,FRS STAFF AGENCY,17/03/16,263.76,Technical And Service Support,Human Resources
800076582,ADECCO UK LIMITED=============,27383211,1,439.60,FRS STAFF AGENCY,17/03/16,439.60,Fire Safety Regulation,Human Resources
800076784,ADECCO UK LIMITED=============,27383213,1,439.60,FRS STAFF AGENCY,17/03/16,439.60,Operations Non Fire Stations,Human Resources
800076627,ADECCO UK LIMITED=============,27383215,1,263.76,FRS STAFF AGENCY,17/03/16,263.76,Fire Safety Regulation,Human Resources
800076574,ADECCO UK LIMITED=============,27383216,1,605.64,FRS STAFF AGENCY,17/03/16,605.64,Information and Communication Technology,Human Resources
800076759,ADECCO UK LIMITED=============,27383217,1,973.14,FRS STAFF AGENCY,17/03/16,973.14,Review of Property Services,Human Resources
800076527,ADECCO UK LIMITED=============,27383218,1,624.40,FRS STAFF AGENCY,17/03/16,624.40,Procurement,Human Resources
800076832,ADECCO UK LIMITED=============,27383219,1,900.20,FRS STAFF AGENCY,17/03/16,900.20,Information Management,Human Resources
800076685,ADECCO UK LIMITED=============,27383220,1,632.73,FRS STAFF AGENCY,17/03/16,632.73,Technical And Service Support,Human Resources
800076532,ADECCO UK LIMITED=============,27383221,1,392.66,FRS STAFF AGENCY,17/03/16,392.66,National Operational Guidance Project,Human Resources
800076501,ADECCO UK LIMITED=============,27383222,1,757.05,FRS STAFF AGENCY,17/03/16,757.05,Communications,Human Resources
800076516,ADECCO UK LIMITED=============,27383223,1,624.40,FRS STAFF AGENCY,17/03/16,624.40,Operations Non Fire Stations,Human Resources
800076699,ADECCO UK LIMITED=============,27383224,1,624.40,FRS STAFF AGENCY,17/03/16,624.40,HR Management,Human Resources
800076766,ADECCO UK LIMITED=============,27383225,1,624.40,FRS STAFF AGENCY,17/03/16,624.40,HR Management,Human Resources
800076692,ADECCO UK LIMITED=============,27383226,1,"1,162.70",FRS STAFF AGENCY,17/03/16,"1,162.70",Technical And Service Support,Human Resources
800076494,ADECCO UK LIMITED=============,27383228,1,624.40,FRS STAFF AGENCY,17/03/16,624.40,Fire Safety Regulation,Human Resources
800076566,ADECCO UK LIMITED=============,27383229,1,624.40,FRS STAFF AGENCY,17/03/16,624.40,Fire Safety Regulation,Human Resources
800076727,ADECCO UK LIMITED=============,27383230,1,499.52,FRS STAFF AGENCY,17/03/16,499.52,Fire Safety Regulation,Human Resources
800076604,ADECCO UK LIMITED=============,27383231,1,624.40,FRS STAFF AGENCY,17/03/16,624.40,Fire Safety Regulation,Human Resources
800076820,ADECCO UK LIMITED=============,27383232,1,624.40,FRS STAFF AGENCY,17/03/16,624.40,Fire Safety Regulation,Human Resources
800076845,ADECCO UK LIMITED=============,27383233,1,374.64,FRS STAFF AGENCY,17/03/16,374.64,Technical And Service Support,Human Resources
800076710,ADECCO UK LIMITED=============,27383235,1,922.25,FRS STAFF AGENCY,17/03/16,922.25,Technical And Service Support,Human Resources
800076547,ADECCO UK LIMITED=============,27383236,1,624.40,FRS STAFF AGENCY,17/03/16,624.40,Fire Safety Regulation,Human Resources
800076487,ADECCO UK LIMITED=============,27383237,1,624.40,FRS STAFF AGENCY,17/03/16,624.40,Procurement,Human Resources
800076651,ADECCO UK LIMITED=============,27383238,1,624.40,FRS STAFF AGENCY,17/03/16,624.40,Information Management,Human Resources
800077266,ADECCO UK LIMITED=============,27383239,1,788.30,FRS STAFF AGENCY,17/03/16,788.30,National Operational Guidance Project,Human Resources
800076658,ADECCO UK LIMITED=============,27383240,1,"1,162.70",FRS STAFF AGENCY,17/03/16,"1,162.70",Technical And Service Support,Human Resources
800076799,ADECCO UK LIMITED=============,27383241,1,"2,046.25",FRS STAFF AGENCY,17/03/16,"2,046.25",Vehicle & Equipment Programme,Human Resources
800076508,ADECCO UK LIMITED=============,27383242,1,499.52,FRS STAFF AGENCY,17/03/16,499.52,Operations Non Fire Stations,Human Resources
800076670,ADECCO UK LIMITED=============,27383243,1,624.40,FRS STAFF AGENCY,17/03/16,624.40,Operations Non Fire Stations,Human Resources
800076671,ADECCO UK LIMITED=============,27383244,1,499.52,FRS STAFF AGENCY,17/03/16,499.52,Operations Non Fire Stations,Human Resources
800076672,ADECCO UK LIMITED=============,27383245,1,588.72,FRS STAFF AGENCY,17/03/16,588.72,Operations Non Fire Stations,Human Resources
800076734,ADECCO UK LIMITED=============,27383246,1,439.60,FRS STAFF AGENCY,17/03/16,439.60,Fire Safety Regulation,Human Resources
800076750,ADECCO UK LIMITED=============,27383247,1,299.75,FRS STAFF AGENCY,17/03/16,299.75,National Operational Guidance Project,Human Resources
800076881,ADECCO UK LIMITED=============,27386225,1,"1,599.04",FRS STAFF AGENCY,17/03/16,"1,599.04",Legal & Democratic Services,Human Resources
800076666,ADECCO UK LIMITED=============,27388733,1,"1,509.55",FRS STAFF AGENCY,17/03/16,"1,509.55",Technical And Service Support,Human Resources
800076719,ADECCO UK LIMITED=============,27388734,1,454.23,FRS STAFF AGENCY,17/03/16,454.23,Community Safety Delivery,Human Resources
800076635,ADECCO UK LIMITED=============,27388735,1,263.76,FRS STAFF AGENCY,17/03/16,263.76,Technical And Service Support,Human Resources
800076583,ADECCO UK LIMITED=============,27388736,1,351.68,FRS STAFF AGENCY,17/03/16,351.68,Fire Safety Regulation,Human Resources
800076785,ADECCO UK LIMITED=============,27388738,1,427.04,FRS STAFF AGENCY,17/03/16,427.04,Operations Non Fire Stations,Human Resources
800076628,ADECCO UK LIMITED=============,27388739,1,420.76,FRS STAFF AGENCY,17/03/16,420.76,Fire Safety Regulation,Human Resources
800076575,ADECCO UK LIMITED=============,27388740,1,757.05,FRS STAFF AGENCY,17/03/16,757.05,Information and Communication Technology,Human Resources
800076760,ADECCO UK LIMITED=============,27388741,1,973.14,FRS STAFF AGENCY,17/03/16,973.14,Review of Property Services,Human Resources
800076528,ADECCO UK LIMITED=============,27388742,1,624.40,FRS STAFF AGENCY,17/03/16,624.40,Procurement,Human Resources
800076833,ADECCO UK LIMITED=============,27388743,1,900.20,FRS STAFF AGENCY,17/03/16,900.20,Information Management,Human Resources
800076686,ADECCO UK LIMITED=============,27388744,1,641.90,FRS STAFF AGENCY,17/03/16,641.90,Technical And Service Support,Human Resources
800076502,ADECCO UK LIMITED=============,27388745,1,757.05,FRS STAFF AGENCY,17/03/16,757.05,Communications,Human Resources
800076517,ADECCO UK LIMITED=============,27388746,1,624.40,FRS STAFF AGENCY,17/03/16,624.40,Operations Non Fire Stations,Human Resources
800076767,ADECCO UK LIMITED=============,27388748,1,624.40,FRS STAFF AGENCY,17/03/16,624.40,HR Management,Human Resources
800076567,ADECCO UK LIMITED=============,27388753,1,499.52,FRS STAFF AGENCY,17/03/16,499.52,Fire Safety Regulation,Human Resources
800076728,ADECCO UK LIMITED=============,27388754,1,624.40,FRS STAFF AGENCY,17/03/16,624.40,Fire Safety Regulation,Human Resources
800076605,ADECCO UK LIMITED=============,27388755,1,624.40,FRS STAFF AGENCY,17/03/16,624.40,Fire Safety Regulation,Human Resources
800076821,ADECCO UK LIMITED=============,27388756,1,624.40,FRS STAFF AGENCY,17/03/16,624.40,Fire Safety Regulation,Human Resources
800076645,ADECCO UK LIMITED=============,27388760,1,"1,471.35",FRS STAFF AGENCY,17/03/16,"1,471.35",Legal & Democratic Services,Human Resources
800076548,ADECCO UK LIMITED=============,27388761,1,499.52,FRS STAFF AGENCY,17/03/16,499.52,Fire Safety Regulation,Human Resources
800076488,ADECCO UK LIMITED=============,27388762,1,624.40,FRS STAFF AGENCY,17/03/16,624.40,Procurement,Human Resources
800076652,ADECCO UK LIMITED=============,27388763,1,374.64,FRS STAFF AGENCY,17/03/16,374.64,Information Management,Human Resources
800076659,ADECCO UK LIMITED=============,27388764,1,"1,162.70",FRS STAFF AGENCY,17/03/16,"1,162.70",Technical And Service Support,Human Resources
800076800,ADECCO UK LIMITED=============,27388765,1,"2,046.25",FRS STAFF AGENCY,17/03/16,"2,046.25",Vehicle & Equipment Programme,Human Resources
800076509,ADECCO UK LIMITED=============,27388766,1,624.40,FRS STAFF AGENCY,17/03/16,624.40,Operations Non Fire Stations,Human Resources
800076735,ADECCO UK LIMITED=============,27388769,1,439.60,FRS STAFF AGENCY,17/03/16,439.60,Fire Safety Regulation,Human Resources
800076751,ADECCO UK LIMITED=============,27388770,1,899.25,FRS STAFF AGENCY,17/03/16,899.25,National Operational Guidance Project,Human Resources
800076612,ADECCO UK LIMITED=============,27388772,1,439.60,FRS STAFF AGENCY,17/03/16,439.60,Technical And Service Support,Human Resources
040316K,DRAEGER SAFETY UK LIMITED=====,2910043402,1,632.80,PROTECTIVE EQUIPT - PARTS,17/03/16,632.80,Technical and Service Support,Fire & Rescue
090316K,DRAEGER SAFETY UK LIMITED=====,2910043563,1,81.00,PROTECTIVE EQUIPT - PARTS,17/03/16,"4,057.78",Technical and Service Support,Fire & Rescue
090316K,DRAEGER SAFETY UK LIMITED=====,2910043563,2,"1,418.50",PROTECTIVE EQUIPT - PARTS,17/03/16,,Technical and Service Support,Fire & Rescue
090316K,DRAEGER SAFETY UK LIMITED=====,2910043563,3,64.56,PROTECTIVE EQUIPT - PARTS,17/03/16,,Technical and Service Support,Fire & Rescue
090316K,DRAEGER SAFETY UK LIMITED=====,2910043563,4,41.80,PROTECTIVE EQUIPT - PARTS,17/03/16,,Technical and Service Support,Fire & Rescue
090316K,DRAEGER SAFETY UK LIMITED=====,2910043563,5,196.60,PROTECTIVE EQUIPT - PARTS,17/03/16,,Technical and Service Support,Fire & Rescue
090316K,DRAEGER SAFETY UK LIMITED=====,2910043563,6,234.24,PROTECTIVE EQUIPT - PARTS,17/03/16,,Technical and Service Support,Fire & Rescue
090316K,DRAEGER SAFETY UK LIMITED=====,2910043563,7,"1,138.60",PROTECTIVE EQUIPT - PARTS,17/03/16,,Technical and Service Support,Fire & Rescue
090316K,DRAEGER SAFETY UK LIMITED=====,2910043563,8,466.38,PROTECTIVE EQUIPT - PARTS,17/03/16,,Technical and Service Support,Fire & Rescue
090316K,DRAEGER SAFETY UK LIMITED=====,2910043563,9,416.10,PROTECTIVE EQUIPT - PARTS,17/03/16,,Technical and Service Support,Fire & Rescue
141398,EDF ENERGY===================,30152100002*,1,"1,291.20",ELECTRICITY,17/03/16,"1,291.20",Technical And Service Support,Utilities
080316K,B NOKES CONTRACTS LTD,3162,1,255.00,TACTICAL DAY TO DAY,17/03/16,255.00,Technical And Service Support,"Works - Construction, R&M"
080316K,B NOKES CONTRACTS LTD,3169,1,"1,481.00",STRATEGIC (NON CYCLICAL),17/03/16,"1,481.00",Technical and Service Support,"Works - Construction, R&M"
110316K,DELTOR COMMUNICATIONS LTD.===,33132,1,"5,331.20",PRINTING,17/03/16,"5,331.20",Communications,Facilities & Management S
110316K,DELTOR COMMUNICATIONS LTD.===,33133,1,373.00,PRINTING,17/03/16,373.00,Communications,Facilities & Management S
090316K,HUNTERS CONTRACTS LIMITED,353511,1,259.00,OFFICE FURNITURE,17/03/16,259.00,Operations Fire Stations,Furniture
090316K,W.GILCHRIST & CO,3618,1,210.10,PURCHASE,17/03/16,829.66,Technical And Service Support,Catering
090316K,W.GILCHRIST & CO,3618,2,590.56,PURCHASE,17/03/16,,Technical And Service Support,Catering
090316K,W.GILCHRIST & CO,3618,3,29.00,PURCHASE,17/03/16,,Technical And Service Support,Catering
100316K,COMPUTACENTRE================,3880773875,1,"1,097.91",STATIONERY CONSUMABLES,17/03/16,"1,097.91",Operational Resilience,ICT
100316K,COMPUTACENTRE================,3880776851,1,"6,433.24",STATIONERY CONSUMABLES,17/03/16,"6,433.24",Operational Resilience,ICT
100316K,LIFTING GEAR AND SAFETY LTD,42670,1,961.10,PUBLIC RELATIONS,17/03/16,961.10,Exercise Unified Response,Facilities & Management S
100316K,MITIE SECURITY (LONDON) LTD===,44/608187,1,"16,133.28",PREMISES SECURITY,17/03/16,"16,133.28",Technical And Service Support,Facilities & Management S
100316K,SPORTSAFE UK LTD==============,484010,1,295.00,GYM EQUIPMENT,17/03/16,295.00,Technical And Service Support,Sports & Playground Equip
100316K,SPORTSAFE UK LTD==============,484013,1,265.00,GYM EQUIPMENT,17/03/16,265.00,Technical And Service Support,Sports & Playground Equip
100316K,SPORTSAFE UK LTD==============,484017,1,290.00,GYM EQUIPMENT,17/03/16,290.00,Technical And Service Support,Sports & Playground Equip
100316K,SPORTSAFE UK LTD==============,484022,1,255.00,GYM EQUIPMENT,17/03/16,255.00,Technical And Service Support,Sports & Playground Equip
110316K,SPORTSAFE UK LTD==============,484451,1,285.00,GYM EQUIPMENT,17/03/16,285.00,Technical And Service Support,Sports & Playground Equip
110316K,SPORTSAFE UK LTD==============,484455,1,255.00,GYM EQUIPMENT,17/03/16,255.00,Technical And Service Support,Sports & Playground Equip
800077503,*OCS GROUP UK LTD,5000165369-01,1,"3,278.55",CATERING,17/03/16,"3,278.55",Technical And Service Support,Catering
800077506,*OCS GROUP UK LTD,5000165369-04,1,687.72,CATERING,17/03/16,687.72,Technical And Service Support,Catering
800077414,*OCS GROUP UK LTD,5000172982-17,1,356.00,REFRESHMENTS,17/03/16,356.00,Communications,Catering
800077434,*OCS GROUP UK LTD,5000172982-37,1,534.00,REFRESHMENTS,17/03/16,534.00,Exercise Unified Response,Catering
800077439,*OCS GROUP UK LTD,5000172982-42,1,465.25,REFRESHMENTS,17/03/16,465.25,Community Safety Delivery,Catering
800077461,*OCS GROUP UK LTD,5000172982-64,1,836.96,REFRESHMENTS,17/03/16,836.96,Operational Policy,Catering
141398,EDF ENERGY===================,50152100002*,1,"3,980.77",ELECTRICITY,17/03/16,"3,980.77",Technical And Service Support,Utilities
800077296,HAYS SPECIALIST RECRUITMENT,531468,1,422.94,FRS STAFF AGENCY,17/03/16,422.94,Information and Communication Technology,Human Resources
800077314,HAYS SPECIALIST RECRUITMENT,531469,1,610.75,FRS STAFF AGENCY,17/03/16,610.75,Procurement,Human Resources
800077303,HAYS SPECIALIST RECRUITMENT,531470,1,486.82,FRS STAFF AGENCY,17/03/16,486.82,Legal & Democratic Services,Human Resources
800077295,HAYS SPECIALIST RECRUITMENT,531471,1,357.63,FRS STAFF AGENCY,17/03/16,357.63,Technical And Service Support,Human Resources
800077306,HAYS SPECIALIST RECRUITMENT,531472,1,850.15,FRS STAFF AGENCY,17/03/16,850.15,Information Management,Human Resources
800077327,HAYS SPECIALIST RECRUITMENT,531473,1,830.50,FRS STAFF AGENCY,17/03/16,830.50,Procurement,Human Resources
800077309,HAYS SPECIALIST RECRUITMENT,531474,1,596.05,FRS STAFF AGENCY,17/03/16,596.05,HR Management,Human Resources
800077308,HAYS SPECIALIST RECRUITMENT,531476,1,610.75,FRS STAFF AGENCY,17/03/16,610.75,Fire Safety Regulation,Human Resources
800077294,HAYS SPECIALIST RECRUITMENT,531477,1,991.50,FRS STAFF AGENCY,17/03/16,991.50,Operational Resilience,Human Resources
800077311,HAYS SPECIALIST RECRUITMENT,531479,1,852.58,FRS STAFF AGENCY,17/03/16,852.58,Legal & Democratic Services,Human Resources
800077313,HAYS SPECIALIST RECRUITMENT,531480,1,"1,159.42",FRS STAFF AGENCY,17/03/16,"1,159.42",Technical And Service Support,Human Resources
800077321,HAYS SPECIALIST RECRUITMENT,531481,1,596.05,FRS STAFF AGENCY,17/03/16,596.05,Fire Safety Regulation,Human Resources
800077316,HAYS SPECIALIST RECRUITMENT,531482,1,596.05,FRS STAFF AGENCY,17/03/16,596.05,HR Management,Human Resources
800077291,HAYS SPECIALIST RECRUITMENT,531483,1,641.48,FRS STAFF AGENCY,17/03/16,641.48,Procurement,Human Resources
800077320,HAYS SPECIALIST RECRUITMENT,531484,1,707.70,FRS STAFF AGENCY,17/03/16,707.70,Communications,Human Resources
800077322,HAYS SPECIALIST RECRUITMENT,531485,1,596.05,FRS STAFF AGENCY,17/03/16,596.05,Operations Non Fire Stations,Human Resources
800077335,HAYS SPECIALIST RECRUITMENT,531486,1,596.05,FRS STAFF AGENCY,17/03/16,596.05,Operations Non Fire Stations,Human Resources
800077315,HAYS SPECIALIST RECRUITMENT,531487,1,911.75,FRS STAFF AGENCY,17/03/16,911.75,Procurement,Human Resources
800077340,HAYS SPECIALIST RECRUITMENT,531488,1,876.75,FRS STAFF AGENCY,17/03/16,876.75,Technical And Service Support,Human Resources
800077302,HAYS SPECIALIST RECRUITMENT,531489,1,596.05,FRS STAFF AGENCY,17/03/16,596.05,Information Management,Human Resources
800077338,HAYS SPECIALIST RECRUITMENT,531490,1,"1,119.24",FRS STAFF AGENCY,17/03/16,"1,119.24",National Operational Guidance Project,Human Resources
800077323,HAYS SPECIALIST RECRUITMENT,531491,1,476.84,FRS STAFF AGENCY,17/03/16,476.84,Fire Safety Regulation,Human Resources
800077332,HAYS SPECIALIST RECRUITMENT,531492,1,583.90,FRS STAFF AGENCY,17/03/16,583.90,Technical And Service Support,Human Resources
800077341,HAYS SPECIALIST RECRUITMENT,531494,1,"1,189.08",FRS STAFF AGENCY,17/03/16,"1,189.08",Review of Property Services,Human Resources
800077304,HAYS SPECIALIST RECRUITMENT,531495,1,936.75,FRS STAFF AGENCY,17/03/16,936.75,Technical And Service Support,Human Resources
800077326,HAYS SPECIALIST RECRUITMENT,531496,1,596.05,FRS STAFF AGENCY,17/03/16,596.05,Fire Safety Regulation,Human Resources
800077297,HAYS SPECIALIST RECRUITMENT,531498,1,368.64,FRS STAFF AGENCY,17/03/16,368.64,National Operational Guidance Project,Human Resources
800077307,HAYS SPECIALIST RECRUITMENT,531499,1,596.05,FRS STAFF AGENCY,17/03/16,596.05,Fire Safety Regulation,Human Resources
800077301,HAYS SPECIALIST RECRUITMENT,531501,1,596.05,FRS STAFF AGENCY,17/03/16,596.05,Operations Non Fire Stations,Human Resources
800077328,HAYS SPECIALIST RECRUITMENT,531502,1,707.70,FRS STAFF AGENCY,17/03/16,707.70,Strategy & Inclusion,Human Resources
800077339,HAYS SPECIALIST RECRUITMENT,531503,1,357.63,FRS STAFF AGENCY,17/03/16,357.63,Technical And Service Support,Human Resources
800077330,HAYS SPECIALIST RECRUITMENT,531504,1,"1,068.55",FRS STAFF AGENCY,17/03/16,"1,068.55",Technical And Service Support,Human Resources
800077334,HAYS SPECIALIST RECRUITMENT,531506,1,596.05,FRS STAFF AGENCY,17/03/16,596.05,Fire Safety Regulation,Human Resources
800077305,HAYS SPECIALIST RECRUITMENT,531508,1,370.40,FRS STAFF AGENCY,17/03/16,370.40,Technical And Service Support,Human Resources
800077298,HAYS SPECIALIST RECRUITMENT,531510,1,"1,343.10",FRS STAFF AGENCY,17/03/16,"1,343.10",National Operational Guidance Project,Human Resources
800077318,HAYS SPECIALIST RECRUITMENT,531511,1,"1,407.51",FRS STAFF AGENCY,17/03/16,"1,407.51",Legal & Democratic Services,Human Resources
800077337,HAYS SPECIALIST RECRUITMENT,531513,1,603.40,FRS STAFF AGENCY,17/03/16,603.40,Procurement,Human Resources
800077299,HAYS SPECIALIST RECRUITMENT,531514,1,596.05,FRS STAFF AGENCY,17/03/16,596.05,Operations Non Fire Stations,Human Resources
800077292,HAYS SPECIALIST RECRUITMENT,531515,1,596.05,FRS STAFF AGENCY,17/03/16,596.05,Fire Safety Regulation,Human Resources
800077317,HAYS SPECIALIST RECRUITMENT,531516,1,707.70,FRS STAFF AGENCY,17/03/16,707.70,Community Safety Delivery,Human Resources
800077329,HAYS SPECIALIST RECRUITMENT,531518,1,"1,446.55",FRS STAFF AGENCY,17/03/16,"1,446.55",Strategy & Inclusion,Human Resources
800077331,HAYS SPECIALIST RECRUITMENT,531519,1,707.70,FRS STAFF AGENCY,17/03/16,707.70,Exercise Unified Response,Human Resources
800079417,HAYS SPECIALIST RECRUITMENT,534428,1,704.90,FRS STAFF AGENCY,17/03/16,704.90,Information and Communication Technology,Human Resources
800079404,HAYS SPECIALIST RECRUITMENT,534429,1,527.87,FRS STAFF AGENCY,17/03/16,527.87,Procurement,Human Resources
800079407,HAYS SPECIALIST RECRUITMENT,534430,1,"1,063.77",FRS STAFF AGENCY,17/03/16,"1,063.77",Legal & Democratic Services,Human Resources
800079399,HAYS SPECIALIST RECRUITMENT,534431,1,596.05,FRS STAFF AGENCY,17/03/16,596.05,Technical And Service Support,Human Resources
800079425,HAYS SPECIALIST RECRUITMENT,534433,1,773.21,FRS STAFF AGENCY,17/03/16,773.21,Procurement,Human Resources
800079401,HAYS SPECIALIST RECRUITMENT,534434,1,596.05,FRS STAFF AGENCY,17/03/16,596.05,HR Management,Human Resources
800079393,HAYS SPECIALIST RECRUITMENT,534435,1,610.75,FRS STAFF AGENCY,17/03/16,610.75,Fire Safety Regulation,Human Resources
800079409,HAYS SPECIALIST RECRUITMENT,534436,1,991.50,FRS STAFF AGENCY,17/03/16,991.50,Operational Resilience,Human Resources
800079395,HAYS SPECIALIST RECRUITMENT,534437,1,"1,375.12",FRS STAFF AGENCY,17/03/16,"1,375.12",Legal & Democratic Services,Human Resources
800079408,HAYS SPECIALIST RECRUITMENT,534438,1,"1,319.34",FRS STAFF AGENCY,17/03/16,"1,319.34",Technical And Service Support,Human Resources
800079422,HAYS SPECIALIST RECRUITMENT,534439,1,357.63,FRS STAFF AGENCY,17/03/16,357.63,Fire Safety Regulation,Human Resources
800079406,HAYS SPECIALIST RECRUITMENT,534440,1,801.85,FRS STAFF AGENCY,17/03/16,801.85,Procurement,Human Resources
800079415,HAYS SPECIALIST RECRUITMENT,534441,1,707.70,FRS STAFF AGENCY,17/03/16,707.70,Communications,Human Resources
800079419,HAYS SPECIALIST RECRUITMENT,534442,1,527.93,FRS STAFF AGENCY,17/03/16,527.93,Operations Non Fire Stations,Human Resources
800079396,HAYS SPECIALIST RECRUITMENT,534444,1,596.05,FRS STAFF AGENCY,17/03/16,596.05,Operations Non Fire Stations,Human Resources
800079416,HAYS SPECIALIST RECRUITMENT,534445,1,911.75,FRS STAFF AGENCY,17/03/16,911.75,Procurement,Human Resources
800079429,HAYS SPECIALIST RECRUITMENT,534446,1,526.05,FRS STAFF AGENCY,17/03/16,526.05,Technical And Service Support,Human Resources
800079386,HAYS SPECIALIST RECRUITMENT,534447,1,596.05,FRS STAFF AGENCY,17/03/16,596.05,Information Management,Human Resources
800079430,HAYS SPECIALIST RECRUITMENT,534448,1,419.71,FRS STAFF AGENCY,17/03/16,419.71,National Operational Guidance Project,Human Resources
800079388,HAYS SPECIALIST RECRUITMENT,534449,1,527.93,FRS STAFF AGENCY,17/03/16,527.93,Fire Safety Regulation,Human Resources
800079397,HAYS SPECIALIST RECRUITMENT,534450,1,557.75,FRS STAFF AGENCY,17/03/16,557.75,Technical And Service Support,Human Resources
800079385,HAYS SPECIALIST RECRUITMENT,534451,1,"1,584.15",FRS STAFF AGENCY,17/03/16,"1,584.15",Procurement,Human Resources
800079412,HAYS SPECIALIST RECRUITMENT,534452,1,924.84,FRS STAFF AGENCY,17/03/16,924.84,Review of Property Services,Human Resources
800079394,HAYS SPECIALIST RECRUITMENT,534453,1,936.75,FRS STAFF AGENCY,17/03/16,936.75,Technical And Service Support,Human Resources
800079390,HAYS SPECIALIST RECRUITMENT,534454,1,596.05,FRS STAFF AGENCY,17/03/16,596.05,Fire Safety Regulation,Human Resources
800079389,HAYS SPECIALIST RECRUITMENT,534455,1,622.65,FRS STAFF AGENCY,17/03/16,622.65,Communications,Human Resources
800079424,HAYS SPECIALIST RECRUITMENT,534456,1,596.05,FRS STAFF AGENCY,17/03/16,596.05,Fire Safety Regulation,Human Resources
800079420,HAYS SPECIALIST RECRUITMENT,534457,1,476.84,FRS STAFF AGENCY,17/03/16,476.84,Technical And Service Support,Human Resources
800079426,HAYS SPECIALIST RECRUITMENT,534458,1,476.84,FRS STAFF AGENCY,17/03/16,476.84,Operations Non Fire Stations,Human Resources
800079414,HAYS SPECIALIST RECRUITMENT,534461,1,"1,068.55",FRS STAFF AGENCY,17/03/16,"1,068.55",Technical And Service Support,Human Resources
800079410,HAYS SPECIALIST RECRUITMENT,534463,1,622.30,FRS STAFF AGENCY,17/03/16,622.30,Strategy & Inclusion,Human Resources
800079387,HAYS SPECIALIST RECRUITMENT,534465,1,570.50,FRS STAFF AGENCY,17/03/16,570.50,Fire Safety Regulation,Human Resources
800079405,HAYS SPECIALIST RECRUITMENT,534466,1,"2,299.40",FRS STAFF AGENCY,17/03/16,"2,299.40",Vehicle & Equipment Programme,Human Resources
800079411,HAYS SPECIALIST RECRUITMENT,534467,1,451.29,FRS STAFF AGENCY,17/03/16,451.29,Technical And Service Support,Human Resources
800079418,HAYS SPECIALIST RECRUITMENT,534468,1,"1,790.80",FRS STAFF AGENCY,17/03/16,"1,790.80",National Operational Guidance Project,Human Resources
800079423,HAYS SPECIALIST RECRUITMENT,534469,1,"1,172.92",FRS STAFF AGENCY,17/03/16,"1,172.92",Legal & Democratic Services,Human Resources
